Workbook

Sheet MENUDATOS (hidden)
A1: Cuadro 1 | B1: PADRÓN NACIONAL ELECTORAL TOTAL Y VARIACIÓN SEGÚN PROVINCIA Y SEXO | C1: 1
A2: Gráfico 1 | B2: PADRÓN NACIONAL ELECTORAL, POR PROCESO ELECTORAL, SEGÚN PROVINCIA | C2: G1
A3: Cuadro 2 | B3: COMPARATIVO PADRÓN ELECTORAL, FEBRERO 2018 Y 2022 | C3: 2
A4: Cuadro 3 | B4: PADRÓN NACIONAL ELECTORAL, POR SEXO, SEGÚN PROVINCIA, CANTÓN Y DISTRITO | C4: 3
A5: Cuadro 4 | B5: PADRÓN NACIONAL ELECTORAL, POR GRUPOS DE EDAD SEGÚN PROVINCIA, CANTÓN Y DISTRITO | C5: 4
A6: Cuadro 5 | B6: ELECTORADO POR PROVINCIA , SEGÚN SEXO Y GRUPOS DE EDAD | C6: 5
A7: Gráfico 2 | B7: DISTRIBUCIÓN DEL PADRÓN ELECTORAL POR SEXO Y GRUPOS DE EDAD | C7: G2
A8: Cuadro 6 | B8: ELECTORADO EN EL EXTRANJERO POR SEXO SEGÚN UBICACIÓN GEOGRÁFICA Y PAÍS | C8: 6
A9: Cuadro 7 | B9: ELECTORADO EN EL EXTRANJERO POR SEXO SEGÚN CONSULADO | C9: 7
A10: Cuadro 8 | B10: ELECTORADO NATURALIZADO POR PAÍS DE ORIGEN SEGÚN SEXO Y GRUPOS DE EDAD | C10: 8
A11: Cuadro 9 | B11: PROMEDIO, MEDIANA Y MODA DE LA EDAD DEL ELECTORADO | C11: 9
A12: Cuadro 10 | B12: NUEVOS ELECTORES POR SEXO, SEGÚN EDAD Y NATURALIZADOS | C12: 10
B13: ---- MENÚ PRINCIPAL ---- | C13: INICIO
A15: Cuadro 11 | B15: CANTONES Y DISTRITOS ADMINISTRATIVOS Y ELECTORALES SEGÚN PROVINCIA | C15: 11
A16: Cuadro 12 | B16: MOVIMIENTOS DE DISTRITOS ELECTORALES EL LA DIVISIÓN TERRITORIAL ELECTORAL, SEGÚN PROVINCIA | C16: 12
A17: Cuadro 13 | B17: MOVIMIENTOS DE POBLADOS EN LA DTE, SEGÚN PROVINCIA | C17: 13
A18: Cuadro 14 | B18: JUNTAS ELECTORALES, CENTROS DE VOTACIÓN Y TRANSMISIÓN SEGÚN PROVINCIA | C18: 14
A19: Cuadro 15 | B19: JUNTAS RECEPTORAS Y ELECTORADO H. DE LARGA ESTANCIA, C.ATENCIÓN INTITUCIONAL Y Z.INDÍGENAS SEGÚN PROVINCIA | C19: 15
A20: Cuadro 16 | B20: JUNTAS RECEPTORAS Y ELECTORADO EN HOGARES DE LARGA ESTANCIA SEGÚN PROVINCIA Y DISTRITO ELECTORAL | C20: 16
A21: Cuadro 17 | B21: JUNTAS RECEPTORAS Y ELECTORADO EN CENTROS DE ATENCIÓN INSTITUCIONAL SEGÚN PROVINCIA Y DISTRITO ELECTORAL | C21: 17
A22: Cuadro 18 | B22: JUNTAS RECEPTORAS Y ELECTORADO EN ZONAS INDÍGENAS SEGÚN PROVINCIA Y DISTRITO ELECTORAL | C22: 18
A23: Cuadro 19 | B23: JUNTAS RECEPTORAS Y ELECTORADO EN CENTROS DE SALUD MENTAL SEGÚN PROVINCIA Y DISTRITO ELECTORAL | C23: 19
A24: Cuadro 20 | B24: CONFORMACIÓN DE JUNTAS CANTONALES POR SEXO, SEGÚN PARTIDO | C24: 20
A25: Cuadro 21 | B25: CONFORMACIÓN DE JUNTAS CANTONALES POR PROVINCIA, SEGÚN PARTIDO | C25: 21
B26: ---- MENÚ PRINCIPAL ---- | C26: INICIO
A28: Cuadro 22 | B28: PARTIDOS POLÍTICOS QUE PARTICIPAN SEGÚN ESCALA | C28: 22
A29: Cuadro 23 | B29: MONTO PRESUPUESTADO PARA LAS ELECCIONES SEGÚN AÑO | C29: 23
A30: Cuadro 24 | B30: DONACIONES REPORTADAS SEGÚN AÑO | C30: 24
A31: Cuadro 25 | B31: DONACIONES REPORTADAS SEGÚN PARTIDO POLÍTICO | C31: 25
A32: Cuadro 26 | B32: FISCALIZACIÓN DE LOS PARTIDOS POLÍTICOS, POR AÑO, SEGÚN TIPO DE FISCALIZACIÓN | C32: 26
B33: ---- MENÚ PRINCIPAL ---- | C33: INICIO
A35: Cuadro 27 | B35: COMPOSICIÓN DE PAPELETAS POR SEXO SEGÚN TIPO DE CANDIDATURA | C35: 27
A36: Gráfico 3 | B36: DISTRIBUCIÓN DEL TIPO DE CANDIDATURAS POR SEXO | C36: G3
A37: Cuadro 28 | B37: CANDIDATURAS A PRESIDENCIA Y VICEPRESIDENCIAS, POR SEXO SEGÚN GRUPOS DE EDAD | C37: 28
A38: Cuadro 29 | B38: CANDIDATOS DIPUTACIONES POR CARGO Y SEXO SEGÚN GRUPOS DE EDAD | C38: 29
A39: Gráfico 4 | B39: PIRÁMIDE POBLACIONAL DE CANDIDATOS DIPUTACIONES POR SEXO SEGÚN GRUPOS DE EDAD | C39: G4
A40: Cuadro 30 | B40: CANDIDATURAS A DIPUTACIONES POR SEXO Y CARGO SEGÚN PARTIDO | C40: 30
A41: Cuadro 31 | B41: EDAD PROMEDIO CANDIDATOS A DIPUTACIONES POR CARGO Y SEXO SEGÚN PARTIDO | C41: 31
A42: Cuadro 32 | B42: CANDIDATURAS A DIPUTACIONES PROPIETARIAS POR SEXO SEGÚN POSICIÓN EN LA PAPELETA | C42: 32
A43: Cuadro 33 | B43: CANDIDATURAS A DIPUTACIONES PROPIETARIAS POR POSICIÓN EN LA PAPELETA SEGÚN PARTIDO | C43: 33
A44: Cuadro 34 | B44: CANDIDATOS DIPUTACIONES POR SEXO SEGÚN CARGO Y PROVINCIA | C44: 34
A45: Gráfico 5 | B45: CANDIDATURAS A DIPUTACIONES EN PROPIEDAD POR PROVINCIA Y SEXO | C45: G5
A46: Cuadro 35 | B46: CANDIDATURAS A DIPUTACIONES POR AÑO ELECCIÓN SEGÚN PROVINCIA PERIODO 2006 - 2020 | C46: 35
A47: Cuadro 36 | B47: CANDIDATURAS A DIPUTACIONES POR AÑO ELECCIÓN SEGÚN PARTIDO PERIODO 2006 - 2020 | C47: 36
B48: ---- MENÚ PRINCIPAL ---- | C48: INICIO

Sheet 1
A2: CUADRO 1
A3: COSTA RICA: TOTAL Y VARIACIÓN DEL PADRÓN NACIONAL ELECTORAL
A4: SEGÚN PROVINCIA Y SEXO, DE FEBRERO 2018 A FEBRERO 2022
A6: PROVINCIA Y SEXO | B6: PADRÓN NACIONAL ELECTORAL | D6: VARIACIÓN
B8: FEBRERO 2018 | C8: FEBRERO 2022 | D8: ABSOLUTO | E8: %
A9: COSTA RICA | B9: 3322329 | C9: 3541908 | D9: =+C9-B9 -> 219579 | E9: =+D9/B9*100 -> 6.609188915
A10: HOMBRES | B10: 1655105 | C10: 1760469 | D10: =+C10-B10 -> 105364 | E10: 6.366000949
A11: MUJERES | B11: 1667224 | C11: 1781439 | D11: 114215 | E11: 6.850609156
A12: SAN JOSÉ | B12: 1114779 | C12: 1157828 | D12: 43049 | E12: 3.861662267
A13: HOMBRES | B13: 543289 | C13: 563372 | D13: 20083 | E13: 3.69655929
A14: MUJERES | B14: 571490 | C14: 594456 | D14: 22966 | E14: 4.018617999
A15: ALAJUELA | B15: 630990 | C15: 679763 | D15: 48773 | E15: 7.729599518
A16: HOMBRES | B16: 318070 | C16: 341769 | D16: 23699 | E16: 7.450875593
A17: MUJERES | B17: 312920 | C17: 337994 | D17: 25074 | E17: 8.012910648
A18: CARTAGO | B18: 387905 | C18: 409888 | D18: 21983 | E18: 5.667109215
A19: HOMBRES | B19: 192700 | C19: 203140 | D19: 10440 | E19: 5.417747794
A20: MUJERES | B20: 195205 | C20: 206748 | D20: 11543 | E20: 5.913270664
A21: HEREDIA | B21: 332859 | C21: 355728 | D21: 22869 | E21: 6.870476688
A22: HOMBRES | B22: 163675 | C22: 174461 | D22: 10786 | E22: 6.589888499
A23: MUJERES | B23: 169184 | C23: 181267 | D23: 12083 | E23: 7.141928315
A24: GUANACASTE | B24: 240637 | C24: 259988 | D24: 19351 | E24: 8.041572992
A25: HOMBRES | B25: 121354 | C25: 130743 | D25: 9389 | E25: 7.736868995
A26: MUJERES | B26: 119283 | C26: 129245 | D26: 9962 | E26: 8.351567281
A27: PUNTARENAS | B27: 310662 | C27: 332926 | D27: 22264 | E27: 7.166631258
A28: HOMBRES | B28: 159033 | C28: 169840 | D28: 10807 | E28: 6.795444971
A29: MUJERES | B29: 151629 | C29: 163086 | D29: 11457 | E29: 7.555942465
A30: LIMÓN | B30: 272633 | C30: 294954 | D30: 22321 | E30: 8.187196708
A31: HOMBRES | B31: 140456 | C31: 151106 | D31: 10650 | E31: 7.582445748
A32: MUJERES | B32: 132177 | C32: 143848 | D32: 11671 | E32: 8.829826672
A33: EN EL EXTRANJERO 1/ | B33: 31864 | C33: 50833 | D33: 18969 | E33: 59.53113231
A34: HOMBRES | B34: 16528 | C34: 26038 | D34: 9510 | E34: 57.53872217
A35: MUJERES | B35: 15336 | C35: 24795 | D35: 9459 | E35: 61.67840376
A38: 1/ Personas costarricenses inscrita que pueden ejercer el voto en extranjero para designar los puestos de Presidencia y Vicepresidencias, así como en consultas populares de orden nacional, según el artículo 187 del Código Electoral.
A39: Fuente: Sección Padrón Electoral del Tribunal Supremo de Elecciones.

Sheet G1
K4: 2018 | L4: 2022
J6: EXTRANJERO | K6: 31864 | L6: =+'1'!C33 -> 50833
J7: GUANACASTE | K7: 240637 | L7: =+'1'!C24 -> 259988
J8: LIMÓN | K8: 272633 | L8: =+'1'!C30 -> 294954
J9: PUNTARENAS | K9: 310662 | L9: =+'1'!C27 -> 332926
J10: HEREDIA | K10: 332859 | L10: =+'1'!C21 -> 355728
J11: CARTAGO | K11: 387905 | L11: =+'1'!C18 -> 409888
J12: ALAJUELA | K12: 630990 | L12: =+'1'!C15 -> 679763
J13: SAN JOSÉ | K13: 1114779 | L13: =+'1'!C12 -> 1157828
L15: =SUM(L6:L13) -> 3541908
A45: Fuente: Cuadro 1.

Sheet 2
A2: CUADRO 2
A3: COSTA RICA: PADRÓN NACIONAL ELECTORAL, POR SEXO, SEGÚN PROVINCIA, CANTÓN
A4: Y EXTRANJERO, FEBRERO DE 2018 Y 2022
A6: PROVINCIA, CANTÓN Y EXTRANJERO | B6: PADRÓN NACIONAL ELECTORAL
B7: FEBRERO 2018 | E7: FEBRERO 2022
B8: TOTAL | C8: HOMBRES | D8: MUJERES | E8: TOTAL | F8: HOMBRES | G8: MUJERES
A10: COSTA RICA | B10: =SUM(B11:B18) -> 3322329 | C10: 1655105 | D10: 1667224 | E10: 3541908 | F10: 1760469 | G10: 1781439
A11: SAN JOSÉ | B11: =SUM(C11:D11) -> 1114779 | C11: =+C19 -> 543289 | D11: =+D19 -> 571490 | E11: =+E19 -> 1157828 | F11: =+F19 -> 563372 | G11: 594456
A12: ALAJUELA | B12: =SUM(C12:D12) -> 630990 | C12: =+C40 -> 318070 | D12: =+D40 -> 312920 | E12: =SUM(F12:G12) -> 679763 | F12: =+F40 -> 341769 | G12: =+G40 -> 337994
A13: CARTAGO | B13: 387905 | C13: =+C57 -> 192700 | D13: =+D57 -> 195205 | E13: 409888 | F13: =+F57 -> 203140 | G13: =+G57 -> 206748
A14: HEREDIA | B14: 332859 | C14: =+C66 -> 163675 | D14: =+D66 -> 169184 | E14: 355728 | F14: =+F66 -> 174461 | G14: =+G66 -> 181267
A15: GUANACASTE | B15: 240637 | C15: =+C77 -> 121354 | D15: =+D77 -> 119283 | E15: 259988 | F15: =+F77 -> 130743 | G15: =+G77 -> 129245
A16: PUNTARENAS | B16: 310662 | C16: =+C89 -> 159033 | D16: =+D89 -> 151629 | E16: 332926 | F16: =+F89 -> 169840 | G16: =+G89 -> 163086
A17: LIMÓN | B17: 272633 | C17: =+C101 -> 140456 | D17: =+D101 -> 132177 | E17: 294954 | F17: =+F101 -> 151106 | G17: =+G101 -> 143848
A18: EXTRANJERO | B18: 31864 | C18: =+C108 -> 16528 | D18: =+D108 -> 15336 | E18: 50833 | F18: =+F108 -> 26038 | G18: =+G108 -> 24795
A19: SAN JOSÉ | B19: 1114779 | C19: 543289 | D19: 571490 | E19: 1157828 | F19: 563372 | G19: 594456
A20: SAN JOSÉ | B20: 234558 | C20: 113514 | D20: 121044 | E20: 237755 | F20: 115004 | G20: 122751
A21: ESCAZÚ | B21: 46971 | C21: 22957 | D21: 24014 | E21: 50442 | F21: 24607 | G21: 25835
A22: DESAMPARADOS | B22: 160243 | C22: 78427 | D22: 81816 | E22: 166029 | F22: 81210 | G22: 84819
A23: PURISCAL | B23: 28424 | C23: 14235 | D23: 14189 | E23: 29937 | F23: 15005 | G23: 14932
A24: TARRAZÚ | B24: 12188 | C24: 6119 | D24: 6069 | E24: 12707 | F24: 6353 | G24: 6354
A25: ASERRÍ | B25: 42853 | C25: 21439 | D25: 21414 | E25: 44906 | F25: 22426 | G25: 22480
A26: MORA | B26: 21361 | C26: 10503 | D26: 10858 | E26: 23192 | F26: 11393 | G26: 11799
A27: GOICOECHEA | B27: 90058 | C27: 43176 | D27: 46882 | E27: 92060 | F27: 43951 | G27: 48109
A28: SANTA ANA | B28: 35074 | C28: 17130 | D28: 17944 | E28: 39066 | F28: 18941 | G28: 20125
A29: ALAJUELITA | B29: 50373 | C29: 24920 | D29: 25453 | E29: 53246 | F29: 26363 | G29: 26883
A30: VÁZQUEZ DE CORONADO | B30: 53496 | C30: 25783 | D30: 27713 | E30: 56128 | F30: 26992 | G30: 29136
A31: ACOSTA | B31: 16608 | C31: 8504 | D31: 8104 | E31: 17750 | F31: 9087 | G31: 8663
A32: TIBÁS | B32: 55965 | C32: 26235 | D32: 29730 | E32: 56540 | F32: 26463 | G32: 30077
A33: MORAVIA | B33: 44209 | C33: 21149 | D33: 23060 | E33: 45628 | F33: 21814 | G33: 23814
A34: MONTES DE OCA | B34: 42391 | C34: 19898 | D34: 22493 | E34: 43081 | F34: 20203 | G34: 22878
A35: TURRUBARES | B35: 4593 | C35: 2358 | D35: 2235 | E35: 4974 | F35: 2586 | G35: 2388
A36: DOTA | B36: 5566 | C36: 2786 | D36: 2780 | E36: 5851 | F36: 2896 | G36: 2955
A37: CURRIDABAT | B37: 48859 | C37: 23440 | D37: 25419 | E37: 51539 | F37: 24598 | G37: 26941
A38: PÉREZ ZELEDÓN | B38: 111779 | C38: 56046 | D38: 55733 | E38: 117466 | F38: 58629 | G38: 58837
A39: LEÓN CORTÉS CASTRO | B39: 9210 | C39: 4670 | D39: 4540 | E39: 9531 | F39: 4851 | G39: 4680
A40: ALAJUELA | B40: 630990 | C40: 318070 | D40: 312920 | E40: 679763 | F40: 341769 | G40: 337994
A41: ALAJUELA | B41: 201480 | C41: 101525 | D41: 99955 | E41: 215633 | F41: 108638 | G41: 106995
A42: SAN RAMÓN | B42: 63586 | C42: 31682 | D42: 31904 | E42: 68598 | F42: 34032 | G42: 34566
A43: GRECIA | B43: 59285 | C43: 29510 | D43: 29775 | E43: 56993 | F43: 28135 | G43: 28858
A44: SAN MATEO | B44: 4602 | C44: 2370 | D44: 2232 | E44: 5007 | F44: 2580 | G44: 2427
A45: ATENAS | B45: 20429 | C45: 10228 | D45: 10201 | E45: 21886 | F45: 10933 | G45: 10953
A46: NARANJO | B46: 31782 | C46: 15775 | D46: 16007 | E46: 33531 | F46: 16582 | G46: 16949
A47: PALMARES | B47: 28973 | C47: 14326 | D47: 14647 | E47: 30113 | F47: 14882 | G47: 15231
A48: POÁS | B48: 21821 | C48: 10913 | D48: 10908 | E48: 23616 | F48: 11775 | G48: 11841
A49: OROTINA | B49: 15594 | C49: 7829 | D49: 7765 | E49: 16820 | F49: 8390 | G49: 8430
A50: SAN CARLOS | B50: 108240 | C50: 55144 | D50: 53096 | E50: 118385 | F50: 59975 | G50: 58410
A51: ZARCERO | B51: 9056 | C51: 4469 | D51: 4587 | E51: 9422 | F51: 4645 | G51: 4777
A52: SARCHÍ | B52: 14668 | C52: 7312 | D52: 7356 | E52: 15414 | F52: 7698 | G52: 7716
A53: UPALA | B53: 28352 | C53: 14765 | D53: 13587 | E53: 31777 | F53: 16422 | G53: 15355
A54: LOS CHILES | B54: 12152 | C54: 6524 | D54: 5628 | E54: 13869 | F54: 7380 | G54: 6489
A55: GUATUSO | B55: 10970 | C55: 5698 | D55: 5272 | E55: 11919 | F55: 6189 | G55: 5730
A56: RIO CUARTO | B56: NA | C56: NA | D56: NA | E56: 6780 | F56: 3513 | G56: 3267
A57: CARTAGO | B57: 387905 | C57: 192700 | D57: 195205 | E57: 409888 | F57: 203140 | G57: 206748
A58: CARTAGO | B58: 121426 | C58: 59857 | D58: 61569 | E58: 128069 | F58: 62952 | G58: 65117
A59: PARAÍSO | B59: 46757 | C59: 23197 | D59: 23560 | E59: 49474 | F59: 24611 | G59: 24863
A60: LA UNIÓN | B60: 70313 | C60: 34646 | D60: 35667 | E60: 74518 | F60: 36556 | G60: 37962
A61: JIMÉNEZ | B61: 12064 | C61: 6158 | D61: 5906 | E61: 12781 | F61: 6408 | G61: 6373
A62: TURRIALBA | B62: 57210 | C62: 28541 | D62: 28669 | E62: 59569 | F62: 29670 | G62: 29899
A63: ALVARADO | B63: 10590 | C63: 5295 | D63: 5295 | E63: 11495 | F63: 5761 | G63: 5734
A64: OREAMUNO | B64: 36202 | C64: 17817 | D64: 18385 | E64: 38162 | F64: 18807 | G64: 19355
A65: EL GUARCO | B65: 33343 | C65: 17189 | D65: 16154 | E65: 35820 | F65: 18375 | G65: 17445
A66: HEREDIA | B66: 332859 | C66: 163675 | D66: 169184 | E66: 355728 | F66: 174461 | G66: 181267
A67: HEREDIA | B67: 96661 | C67: 46371 | D67: 50290 | E67: 101774 | F67: 48853 | G67: 52921
A68: BARVA | B68: 32786 | C68: 16058 | D68: 16728 | E68: 35151 | F68: 17133 | G68: 18018
A69: SANTO DOMINGO | B69: 34421 | C69: 16941 | D69: 17480 | E69: 36195 | F69: 17701 | G69: 18494
A70: SANTA BÁRBARA | B70: 26746 | C70: 13268 | D70: 13478 | E70: 28615 | F70: 14165 | G70: 14450
A71: SAN RAFAEL | B71: 35395 | C71: 17629 | D71: 17766 | E71: 38295 | F71: 18981 | G71: 19314
A72: SAN ISIDRO | B72: 16081 | C72: 8055 | D72: 8026 | E72: 17236 | F72: 8590 | G72: 8646
A73: BELÉN | B73: 18745 | C73: 9226 | D73: 9519 | E73: 19738 | F73: 9724 | G73: 10014
A74: FLORES | B74: 16683 | C74: 8087 | D74: 8596 | E74: 18075 | F74: 8729 | G74: 9346
A75: SAN PABLO | B75: 21950 | C75: 10596 | D75: 11354 | E75: 23488 | F75: 11313 | G75: 12175
A76: SARAPIQUÍ | B76: 33391 | C76: 17444 | D76: 15947 | E76: 37161 | F76: 19272 | G76: 17889
A77: GUANACASTE | B77: 240637 | C77: 121354 | D77: 119283 | E77: 259988 | F77: 130743 | G77: 129245
A78: LIBERIA | B78: 44938 | C78: 22492 | D78: 22446 | E78: 49177 | F78: 24478 | G78: 24699
A79: NICOYA | B79: 40987 | C79: 20606 | D79: 20381 | E79: 43811 | F79: 22008 | G79: 21803
A80: SANTA CRUZ | B80: 41107 | C80: 20895 | D80: 20212 | E80: 44639 | F80: 22601 | G80: 22038
A81: BAGACES | B81: 13686 | C81: 6876 | D81: 6810 | E81: 14900 | F81: 7483 | G81: 7417
A82: CARRILLO | B82: 24283 | C82: 12280 | D82: 12003 | E82: 26622 | F82: 13422 | G82: 13200
A83: CAÑAS | B83: 19476 | C83: 9750 | D83: 9726 | E83: 20485 | F83: 10219 | G83: 10266
A84: ABANGARES | B84: 13610 | C84: 6933 | D84: 6677 | E84: 14376 | F84: 7323 | G84: 7053
A85: TILARÁN | B85: 15049 | C85: 7514 | D85: 7535 | E85: 15917 | F85: 7953 | G85: 7964
A86: NANDAYURE | B86: 8464 | C86: 4341 | D86: 4123 | E86: 8887 | F86: 4546 | G86: 4341
A87: LA CRUZ | B87: 13023 | C87: 6593 | D87: 6430 | E87: 14838 | F87: 7494 | G87: 7344
A88: HOJANCHA | B88: 6014 | C88: 3074 | D88: 2940 | E88: 6336 | F88: 3216 | G88: 3120
A89: PUNTARENAS | B89: 310662 | C89: 159033 | D89: 151629 | E89: 332926 | F89: 169840 | G89: 163086
A90: PUNTARENAS | B90: 86571 | C90: 44277 | D90: 42294 | E90: 91131 | F90: 46419 | G90: 44712
A91: ESPARZA | B91: 22598 | C91: 11197 | D91: 11401 | E91: 24333 | F91: 12050 | G91: 12283
A92: BUENOS AIRES | B92: 31975 | C92: 16618 | D92: 15357 | E92: 34086 | F92: 17647 | G92: 16439
A93: MONTES DE ORO | B93: 10241 | C93: 5115 | D93: 5126 | E93: 10838 | F93: 5362 | G93: 5476
A94: OSA | B94: 22210 | C94: 11678 | D94: 10532 | E94: 24398 | F94: 12797 | G94: 11601
A95: QUEPOS | B95: 19595 | C95: 10367 | D95: 9228 | E95: 21174 | F95: 11118 | G95: 10056
A96: GOLFITO | B96: 29563 | C96: 15292 | D96: 14271 | E96: 31565 | F96: 16306 | G96: 15259
A97: COTO BRUS | B97: 29923 | C97: 15075 | D97: 14848 | E97: 32411 | F97: 16358 | G97: 16053
A98: PARRITA | B98: 12052 | C98: 6225 | D98: 5827 | E98: 13183 | F98: 6775 | G98: 6408
A99: CORREDORES | B99: 34163 | C99: 17044 | D99: 17119 | E99: 36286 | F99: 18032 | G99: 18254
A100: GARABITO | B100: 11771 | C100: 6145 | D100: 5626 | E100: 13521 | F100: 6976 | G100: 6545
A101: LIMÓN | B101: 272633 | C101: 140456 | D101: 132177 | E101: 294954 | F101: 151106 | G101: 143848
A102: LIMÓN | B102: 68866 | C102: 34537 | D102: 34329 | E102: 73109 | F102: 36438 | G102: 36671
A103: POCOCÍ | B103: 92004 | C103: 47930 | D103: 44074 | E103: 99081 | F103: 51320 | G103: 47761
A104: SIQUIRRES | B104: 40171 | C104: 20896 | D104: 19275 | E104: 42665 | F104: 22053 | G104: 20612
A105: TALAMANCA | B105: 20870 | C105: 10891 | D105: 9979 | E105: 24381 | F105: 12685 | G105: 11696
A106: MATINA | B106: 21862 | C106: 11387 | D106: 10475 | E106: 24028 | F106: 12507 | G106: 11521
A107: GUÁCIMO | B107: 28860 | C107: 14815 | D107: 14045 | E107: 31690 | F107: 16103 | G107: 15587
A108: EXTRANJERO | B108: 31864 | C108: 16528 | D108: 15336 | E108: 50833 | F108: 26038 | G108: 24795
A111: Fuente: Sección Padrón Electoral del Tribunal Supremo de Elecciones.
A113: NA : No Aplica debido a que el cantón de Rio Cuarto se creó mediante ley n.º 9440 publicadad en la Gaceta el 26/10/2018.

Sheet 3
A2: CUADRO 3
A3: COSTA RICA: PADRÓN NACIONAL ELECTORAL, POR SEXO, SEGÚN PROVINCIA, CANTÓN DISTRITO ADMINISTRATIVO Y PAÍSES EN EL EXTRANJERO ELECCIONES PRESIDENCIALES FEBRERO 2022
A4: (Cifras absolutas y relativas)
A6: PROVINCIA, CANTÓN, DISTRITO ADMINISTRATIVO Y PAÍSES EN EL EXTRANJERO | B6: TOTAL | C6: SEXO
C7: HOMBRES | D7: % | E7: MUJERES | F7: %
A9: COSTA RICA | B9: =+B10+B154+B287+B347+B405+B478+B550+B587 -> 3541908 | C9: =+C10+C154+C287+C347+C405+C478+C550+C587 -> 1760469 | D9: =+C9/B9*100 -> 49.70397311 | E9: =+E10+E154+E287+E347+E405+E478+E550+E587 -> 1781439 | F9: =+E9/B9*100 -> 50.29602689
A10: PROVINCIA: SAN JOSÉ | B10: 1157828 | C10: 563372 | D10: =+C10/B10*100 -> 48.657659 | E10: 594456 | F10: =+E10/B10*100 -> 51.342341
A11: CANTÓN: SAN JOSÉ | B11: 237755 | C11: 115004 | D11: 48.37080188 | E11: 122751 | F11: 51.62919812
A12: CARMEN | B12: 5100 | C12: 2387 | D12: 46.80392157 | E12: 2713 | F12: 53.19607843
A13: MERCED | B13: 10072 | C13: 5276 | D13: 52.38284353 | E13: 4796 | F13: 47.61715647
A14: HOSPITAL | B14: 18145 | C14: 8995 | D14: 49.57288509 | E14: 9150 | F14: 50.42711491
A15: CATEDRAL | B15: 15220 | C15: 7398 | D15: 48.60709593 | E15: 7822 | F15: 51.39290407
A16: ZAPOTE | B16: 18417 | C16: 8579 | D16: 46.58196232 | E16: 9838 | F16: 53.41803768
A17: SAN FRANCISCO DE DOS RÍOS | B17: 18155 | C17: 8453 | D17: 46.56017626 | E17: 9702 | F17: 53.43982374
A18: URUCA | B18: 17840 | C18: 8770 | D18: 49.15919283 | E18: 9070 | F18: 50.84080717
A19: MATA REDONDA | B19: 7809 | C19: 3825 | D19: 48.98194391 | E19: 3984 | F19: 51.01805609
A20: PAVAS | B20: 52007 | C20: 25210 | D20: 48.47424385 | E20: 26797 | F20: 51.52575615
A21: HATILLO | B21: 44148 | C21: 21032 | D21: 47.63975718 | E21: 23116 | F21: 52.36024282
A22: SAN SEBASTIÁN | B22: 30842 | C22: 15079 | D22: 48.8911225 | E22: 15763 | F22: 51.1088775
A23: CANTÓN: ESCAZÚ | B23: 50442 | C23: 24607 | D23: 48.7827604 | E23: 25835 | F23: 51.2172396
A24: ESCAZÚ | B24: 12626 | C24: 6071 | D24: 48.08332013 | E24: 6555 | F24: 51.91667987
A25: SAN ANTONIO | B25: 16599 | C25: 8359 | D25: 50.35845533 | E25: 8240 | F25: 49.64154467
A26: SAN RAFAEL | B26: 21217 | C26: 10177 | D26: 47.96625348 | E26: 11040 | F26: 52.03374652
A27: CANTÓN: DESAMPARADOS | B27: 166029 | C27: 81210 | D27: 48.91314168 | E27: 84819 | F27: 51.08685832
A28: DESAMPARADOS | B28: 30777 | C28: 14927 | D28: 48.50050362 | E28: 15850 | F28: 51.49949638
A29: SAN MIGUEL | B29: 29937 | C29: 14689 | D29: 49.06637272 | E29: 15248 | F29: 50.93362728
A30: SAN JUAN DE DIOS | B30: 13651 | C30: 6756 | D30: 49.49087979 | E30: 6895 | F30: 50.50912021
A31: SAN RAFAEL ARRIBA | B31: 11910 | C31: 5779 | D31: 48.52225021 | E31: 6131 | F31: 51.47774979
A32: SAN ANTONIO | B32: 9467 | C32: 4556 | D32: 48.12506602 | E32: 4911 | F32: 51.87493398
A33: FRAILES | B33: 3093 | C33: 1568 | D33: 50.69511801 | E33: 1525 | F33: 49.30488199
A34: PATARRÁ | B34: 7465 | C34: 3784 | D34: 50.68988614 | E34: 3681 | F34: 49.31011386
A35: SAN CRISTÓBAL | B35: 3363 | C35: 1665 | D35: 49.50936664 | E35: 1698 | F35: 50.49063336
A36: ROSARIO | B36: 3244 | C36: 1684 | D36: 51.91122072 | E36: 1560 | F36: 48.08877928
A37: DAMAS | B37: 9385 | C37: 4563 | D37: 48.62013852 | E37: 4822 | F37: 51.37986148
A38: SAN RAFAEL ABAJO | B38: 16758 | C38: 8133 | D38: 48.5320444 | E38: 8625 | F38: 51.4679556
A39: GRAVILIAS | B39: 13065 | C39: 6222 | D39: 47.62342135 | E39: 6843 | F39: 52.37657865
A40: LOS GUIDO | B40: 13914 | C40: 6884 | D40: 49.47534857 | E40: 7030 | F40: 50.52465143
A41: CANTÓN: PURISCAL | B41: 29937 | C41: 15005 | D41: 50.1219227 | E41: 14932 | F41: 49.8780773
A42: SANTIAGO | B42: 10935 | C42: 5304 | D42: 48.5048011 | E42: 5631 | F42: 51.4951989
A43: MERCEDES SUR | B43: 4887 | C43: 2512 | D43: 51.40167792 | E43: 2375 | F43: 48.59832208
A44: BARBACOAS | B44: 3939 | C44: 1983 | D44: 50.34272658 | E44: 1956 | F44: 49.65727342
A45: GRIFO ALTO | B45: 1044 | C45: 519 | D45: 49.71264368 | E45: 525 | F45: 50.28735632
A46: SAN RAFAEL | B46: 1388 | C46: 685 | D46: 49.35158501 | E46: 703 | F46: 50.64841499
A47: CANDELARITA | B47: 1491 | C47: 775 | D47: 51.97853789 | E47: 716 | F47: 48.02146211
A48: DESAMPARADITOS | B48: 621 | C48: 317 | D48: 51.04669887 | E48: 304 | F48: 48.95330113
A49: SAN ANTONIO | B49: 3401 | C49: 1707 | D49: 50.19112026 | E49: 1694 | F49: 49.80887974
A50: CHIRES | B50: 2231 | C50: 1203 | D50: 53.92200807 | E50: 1028 | F50: 46.07799193
A51: CANTÓN: TARRAZÚ | B51: 12707 | C51: 6353 | D51: 49.99606516 | E51: 6354 | F51: 50.00393484
A52: SAN MARCOS | B52: 8122 | C52: 4006 | D52: 49.32282689 | E52: 4116 | F52: 50.67717311
A53: SAN LORENZO | B53: 3111 | C53: 1581 | D53: 50.81967213 | E53: 1530 | F53: 49.18032787
A54: SAN CARLOS | B54: 1474 | C54: 766 | D54: 51.96743555 | E54: 708 | F54: 48.03256445
A55: CANTÓN: ASERRÍ | B55: 44906 | C55: 22426 | D55: 49.9398744 | E55: 22480 | F55: 50.0601256
A56: ASERRÍ | B56: 25101 | C56: 12411 | D56: 49.44424525 | E56: 12690 | F56: 50.55575475
A57: TARBACA | B57: 1874 | C57: 990 | D57: 52.82817503 | E57: 884 | F57: 47.17182497
A58: VUELTA DE JORCO | B58: 5314 | C58: 2689 | D58: 50.60218291 | E58: 2625 | F58: 49.39781709
A59: SAN GABRIEL | B59: 4214 | C59: 2058 | D59: 48.8372093 | E59: 2156 | F59: 51.1627907
A60: LEGUA | B60: 1010 | C60: 530 | D60: 52.47524752 | E60: 480 | F60: 47.52475248
A61: MONTERREY | B61: 717 | C61: 339 | D61: 47.28033473 | E61: 378 | F61: 52.71966527
A62: SALITRILLOS | B62: 6676 | C62: 3409 | D62: 51.06351108 | E62: 3267 | F62: 48.93648892
A63: CANTÓN: MORA | B63: 23192 | C63: 11393 | D63: 49.12469817 | E63: 11799 | F63: 50.87530183
A64: COLÓN | B64: 13282 | C64: 6422 | D64: 48.35115193 | E64: 6860 | F64: 51.64884807
A65: GUAYABO | B65: 3443 | C65: 1663 | D65: 48.30090038 | E65: 1780 | F65: 51.69909962
A66: TABARCIA | B66: 3648 | C66: 1824 | D66: 50 | E66: 1824 | F66: 50
A67: PIEDRAS NEGRAS | B67: 277 | C67: 146 | D67: 52.70758123 | E67: 131 | F67: 47.29241877
A68: PICAGRES | B68: 580 | C68: 303 | D68: 52.24137931 | E68: 277 | F68: 47.75862069
A69: JARIS | B69: 925 | C69: 490 | D69: 52.97297297 | E69: 435 | F69: 47.02702703
A70: QUITIRRISÍ | B70: 1037 | C70: 545 | D70: 52.55544841 | E70: 492 | F70: 47.44455159
A71: CANTÓN: GOICOECHEA | B71: 92060 | C71: 43951 | D71: 47.7416902 | E71: 48109 | F71: 52.2583098
A72: GUADALUPE | B72: 20315 | C72: 9656 | D72: 47.53138075 | E72: 10659 | F72: 52.46861925
A73: SAN FRANCISCO | B73: 1999 | C73: 1000 | D73: 50.02501251 | E73: 999 | F73: 49.97498749
A74: CALLE BLANCOS | B74: 11670 | C74: 5507 | D74: =+C74/B74*100 -> 47.18937446 | E74: 6163 | F74: =+E74/B74*100 -> 52.81062554
A75: MATA DE PLÁTANO | B75: 13723 | C75: 6610 | D75: 48.16731035 | E75: 7113 | F75: 51.83268965
A76: IPÍS | B76: 23938 | C76: 11340 | D76: 47.37237864 | E76: 12598 | F76: 52.62762136
A77: RANCHO REDONDO | B77: 3476 | C77: 1744 | D77: 50.1726122 | E77: 1732 | F77: 49.8273878
A78: PURRAL | B78: 16939 | C78: 8094 | D78: 47.78322215 | E78: 8845 | F78: 52.21677785
A79: CANTÓN: SANTA ANA | B79: 39066 | C79: 18941 | D79: 48.48461578 | E79: 20125 | F79: 51.51538422
A80: SANTA ANA | B80: 9488 | C80: 4573 | D80: 48.19772344 | E80: 4915 | F80: 51.80227656
A81: SALITRAL | B81: 3237 | C81: 1622 | D81: 50.10812481 | E81: 1615 | F81: 49.89187519
A82: POZOS | B82: 12337 | C82: 5929 | D82: 48.05868526 | E82: 6408 | F82: 51.94131474
A83: URUCA | B83: 6508 | C83: 3152 | D83: 48.43269822 | E83: 3356 | F83: 51.56730178
A84: PIEDADES | B84: 5665 | C84: 2781 | D84: 49.09090909 | E84: 2884 | F84: 50.90909091
A85: BRASIL | B85: 1831 | C85: 884 | D85: 48.27962862 | E85: 947 | F85: 51.72037138
A86: CANTÓN: ALAJUELITA | B86: 53246 | C86: 26363 | D86: 49.51170041 | E86: 26883 | F86: 50.48829959
A87: ALAJUELITA | B87: 10322 | C87: 5050 | D87: 48.92462701 | E87: 5272 | F87: 51.07537299
A88: SAN JOSECITO | B88: 8077 | C88: 4011 | D88: 49.65952705 | E88: 4066 | F88: 50.34047295
A89: SAN ANTONIO | B89: 2147 | C89: 1058 | D89: 49.27806241 | E89: 1089 | F89: 50.72193759
A90: CONCEPCIÓN | B90: 12929 | C90: 6494 | D90: 50.22816923 | E90: 6435 | F90: 49.77183077
A91: SAN FELIPE | B91: 19771 | C91: 9750 | D91: 49.31465277 | E91: 10021 | F91: 50.68534723
A92: CANTÓN: VÁZQUEZ DE CORONADO | B92: 56128 | C92: 26992 | D92: 48.09007982 | E92: 29136 | F92: 51.90992018
A93: SAN ISIDRO | B93: 16294 | C93: 7774 | D93: 47.7108138 | E93: 8520 | F93: 52.2891862
A94: SAN RAFAEL | B94: 6216 | C94: 3079 | D94: 49.53346203 | E94: 3137 | F94: 50.46653797
A95: DULCE NOMBRE DE JESÚS | B95: 10390 | C95: 5053 | D95: 48.63330125 | E95: 5337 | F95: 51.36669875
A96: PATALILLO | B96: 17502 | C96: 8249 | D96: 47.13175637 | E96: 9253 | F96: 52.86824363
A97: CASCAJAL | B97: 5726 | C97: 2837 | D97: 49.54593084 | E97: 2889 | F97: 50.45406916
A98: CANTÓN: ACOSTA | B98: 17750 | C98: 9087 | D98: 51.1943662 | E98: 8663 | F98: 48.8056338
A99: SAN IGNACIO | B99: 8112 | C99: 3974 | D99: 48.98915187 | E99: 4138 | F99: 51.01084813
A100: GUAITIL | B100: 2104 | C100: 1126 | D100: 53.51711027 | E100: 978 | F100: 46.48288973
A101: PALMICHAL | B101: 3958 | C101: 2027 | D101: 51.2127337 | E101: 1931 | F101: 48.7872663
A102: CANGREJAL | B102: 1614 | C102: 855 | D102: 52.9739777 | E102: 759 | F102: 47.0260223
A103: SABANILLAS | B103: 1962 | C103: 1105 | D103: 56.32008155 | E103: 857 | F103: 43.67991845
A104: CANTÓN: TIBÁS | B104: 56540 | C104: 26463 | D104: 46.80403254 | E104: 30077 | F104: 53.19596746
A105: SAN JUAN | B105: 21573 | C105: 10038 | D105: 46.5303852 | E105: 11535 | F105: 53.4696148
A106: CINCO ESQUINAS | B106: 7693 | C106: 3741 | D106: 48.62862342 | E106: 3952 | F106: 51.37137658
A107: ANSELMO LLORENTE | B107: 8590 | C107: 3954 | D107: 46.03026775 | E107: 4636 | F107: 53.96973225
A108: LEÓN XIII | B108: 8027 | C108: 3775 | D108: 47.02877787 | E108: 4252 | F108: 52.97122213
A109: COLIMA | B109: 10657 | C109: 4955 | D109: 46.49526133 | E109: 5702 | F109: 53.50473867
A110: CANTÓN: MORAVIA | B110: 45628 | C110: 21814 | D110: 47.80836329 | E110: 23814 | F110: 52.19163671
A111: SAN VICENTE | B111: 26114 | C111: 12191 | D111: 46.68377116 | E111: 13923 | F111: 53.31622884
A112: SAN JERÓNIMO | B112: 4795 | C112: 2417 | D112: 50.40667362 | E112: 2378 | F112: 49.59332638
A113: LA TRINIDAD | B113: 14719 | C113: 7206 | D113: 48.95713024 | E113: 7513 | F113: 51.04286976
A114: CANTÓN: MONTES DE OCA | B114: 43081 | C114: 20203 | D114: 46.89538312 | E114: 22878 | F114: 53.10461688
A115: SAN PEDRO | B115: 21054 | C115: 9899 | D115: 47.01719388 | E115: 11155 | F115: 52.98280612
A116: SABANILLA | B116: 12149 | C116: 5664 | D116: 46.62112108 | E116: 6485 | F116: 53.37887892
A117: MERCEDES | B117: 2732 | C117: 1293 | D117: 47.32796486 | E117: 1439 | F117: 52.67203514
A118: SAN RAFAEL | B118: 7146 | C118: 3347 | D118: 46.83739155 | E118: 3799 | F118: 53.16260845
A119: CANTÓN: TURRUBARES | B119: 4974 | C119: 2586 | D119: 51.99034982 | E119: 2388 | F119: 48.00965018
A120: SAN PABLO | B120: 1458 | C120: 719 | D120: 49.31412894 | E120: 739 | F120: 50.68587106
A121: SAN PEDRO | B121: 522 | C121: 264 | D121: 50.57471264 | E121: 258 | F121: 49.42528736
A122: SAN JUAN DE MATA | B122: 1059 | C122: 573 | D122: 54.10764873 | E122: 486 | F122: 45.89235127
A123: SAN LUIS | B123: 476 | C123: 261 | D123: 54.83193277 | E123: 215 | F123: 45.16806723
A124: CARARA | B124: 1459 | C124: 769 | D124: 52.70733379 | E124: 690 | F124: 47.29266621
A125: CANTÓN: DOTA | B125: 5851 | C125: 2896 | D125: 49.49581268 | E125: 2955 | F125: 50.50418732
A126: SANTA MARÍA | B126: 4053 | C126: 1977 | D126: 48.77868246 | E126: 2076 | F126: 51.22131754
A127: JARDÍN | B127: 338 | C127: 172 | D127: 50.88757396 | E127: 166 | F127: 49.11242604
A128: COPEY | B128: 1460 | C128: 747 | D128: 51.16438356 | E128: 713 | F128: 48.83561644
A129: CANTÓN: CURRIDABAT | B129: 51539 | C129: 24598 | D129: 47.72696405 | E129: 26941 | F129: 52.27303595
A130: CURRIDABAT | B130: 24702 | C130: 11607 | D130: 46.98809813 | E130: 13095 | F130: 53.01190187
A131: GRANADILLA | B131: 10456 | C131: 5064 | D131: 48.43152257 | E131: 5392 | F131: 51.56847743
A132: SÁNCHEZ | B132: 5566 | C132: 2631 | D132: 47.26913403 | E132: 2935 | F132: 52.73086597
A133: TIRRASES | B133: 10815 | C133: 5296 | D133: 48.9690245 | E133: 5519 | F133: 51.0309755
A134: CANTÓN: PÉREZ ZELEDÓN | B134: 117466 | C134: 58629 | D134: 49.91146374 | E134: 58837 | F134: 50.08853626
A135: SAN ISIDRO DE EL GENERAL | B135: 41395 | C135: 19862 | D135: 47.98164029 | E135: 21533 | F135: 52.01835971
A136: EL GENERAL | B136: 5356 | C136: 2713 | D136: 50.65347274 | E136: 2643 | F136: 49.34652726
A137: DANIEL FLORES | B137: 29223 | C137: 14704 | D137: 50.3165315 | E137: 14519 | F137: 49.6834685
A138: RIVAS | B138: 5269 | C138: 2717 | D138: =+C138/B138*100 -> 51.565762 | E138: 2552 | F138: =+E138/B138*100 -> 48.434238
A139: SAN PEDRO | B139: 6821 | C139: 3442 | D139: 50.46180912 | E139: 3379 | F139: 49.53819088
A140: PLATANARES | B140: 6014 | C140: 3101 | D140: 51.56301962 | E140: 2913 | F140: 48.43698038
A141: PEJIBAYE | B141: 4474 | C141: 2314 | D141: 51.72105498 | E141: 2160 | F141: 48.27894502
A142: CAJÓN | B142: 8148 | C142: 4113 | D142: 50.47864507 | E142: 4035 | F142: 49.52135493
A143: BARÚ | B143: 2043 | C143: 1094 | D143: 53.54870289 | E143: 949 | F143: 46.45129711
A144: RÍO NUEVO | B144: 2485 | C144: 1314 | D144: 52.87726358 | E144: 1171 | F144: 47.12273642
A145: PÁRAMO | B145: 3914 | C145: 2050 | D145: 52.37608585 | E145: 1864 | F145: 47.62391415
A146: LA AMISTAD | B146: 2324 | C146: 1205 | D146: 51.85025818 | E146: 1119 | F146: 48.14974182
A147: CANTÓN: LEÓN CORTÉS CASTRO | B147: 9531 | C147: 4851 | D147: 50.89707271 | E147: 4680 | F147: 49.10292729
A148: SAN PABLO | B148: 3383 | C148: 1672 | D148: 49.42358853 | E148: 1711 | F148: 50.57641147
A149: SAN ANDRÉS | B149: 1214 | C149: 638 | D149: 52.55354201 | E149: 576 | F149: 47.44645799
A150: LLANO BONITO | B150: 1405 | C150: 722 | D150: 51.38790036 | E150: 683 | F150: 48.61209964
A151: SAN ISIDRO | B151: 1234 | C151: 640 | D151: 51.86385737 | E151: 594 | F151: 48.13614263
A152: SANTA CRUZ | B152: 1435 | C152: 737 | D152: 51.35888502 | E152: 698 | F152: 48.64111498
A153: SAN ANTONIO | B153: 860 | C153: 442 | D153: 51.39534884 | E153: 418 | F153: 48.60465116
A154: PROVINCIA: ALAJUELA | B154: 679763 | C154: 341769 | D154: 50.27767031 | E154: 337994 | F154: 49.72232969
A155: CANTÓN: ALAJUELA | B155: 215633 | C155: 108638 | D155: 50.38097137 | E155: 106995 | F155: 49.61902863
A156: ALAJUELA | B156: 41291 | C156: 19852 | D156: 48.07827372 | E156: 21439 | F156: 51.92172628
A157: SAN JOSÉ | B157: 35126 | C157: 17123 | D157: 48.74736662 | E157: 18003 | F157: 51.25263338
A158: CARRIZAL | B158: 5389 | C158: 2702 | D158: 50.13917239 | E158: 2687 | F158: 49.86082761
A159: SAN ANTONIO | B159: 22914 | C159: 11517 | D159: 50.26184865 | E159: 11397 | F159: 49.73815135
A160: GUÁCIMA | B160: 17148 | C160: 8690 | D160: 50.67646373 | E160: 8458 | F160: 49.32353627
A161: SAN ISIDRO | B161: 12751 | C161: 6440 | D161: 50.50584268 | E161: 6311 | F161: 49.49415732
A162: SABANILLA | B162: 6071 | C162: 3044 | D162: 50.14000988 | E162: 3027 | F162: 49.85999012
A163: SAN RAFAEL | B163: 21001 | C163: 12339 | D163: 58.75434503 | E163: 8662 | F163: 41.24565497
A164: RÍO SEGUNDO | B164: 8988 | C164: 4473 | D164: 49.76635514 | E164: 4515 | F164: 50.23364486
A165: DESAMPARADOS | B165: 20760 | C165: 10237 | D165: 49.31117534 | E165: 10523 | F165: 50.68882466
A166: TURRÚCARES | B166: 6120 | C166: 3110 | D166: 50.81699346 | E166: 3010 | F166: 49.18300654
A167: TAMBOR | B167: 10762 | C167: 5401 | D167: 50.18583906 | E167: 5361 | F167: 49.81416094
A168: GARITA | B168: 5320 | C168: 2718 | D168: 51.09022556 | E168: 2602 | F168: 48.90977444
A169: SARAPIQUÍ | B169: 1992 | C169: 992 | D169: 49.79919679 | E169: 1000 | F169: 50.20080321
A170: CANTÓN: SAN RAMÓN | B170: 68598 | C170: 34032 | D170: 49.61077582 | E170: 34566 | F170: 50.38922418
A171: SAN RAMÓN | B171: 11772 | C171: 5453 | D171: 46.3217805 | E171: 6319 | F171: 53.6782195
A172: SANTIAGO | B172: 4091 | C172: 2092 | D172: 51.13664141 | E172: 1999 | F172: 48.86335859
A173: SAN JUAN | B173: 9852 | C173: 4803 | D173: 48.75152253 | E173: 5049 | F173: 51.24847747
A174: PIEDADES NORTE | B174: 6536 | C174: 3232 | D174: 49.44920441 | E174: 3304 | F174: 50.55079559
A175: PIEDADES SUR | B175: 3404 | C175: 1795 | D175: 52.73207991 | E175: 1609 | F175: 47.26792009
A176: SAN RAFAEL | B176: 7417 | C176: 3681 | D176: 49.62923015 | E176: 3736 | F176: 50.37076985
A177: SAN ISIDRO | B177: 3442 | C177: 1732 | D177: 50.31958164 | E177: 1710 | F177: 49.68041836
A178: ÁNGELES | B178: 3967 | C178: 2030 | D178: 51.17217041 | E178: 1937 | F178: 48.82782959
A179: ALFARO | B179: 4552 | C179: 2224 | D179: 48.85764499 | E179: 2328 | F179: 51.14235501
A180: VOLIO | B180: 2012 | C180: 1009 | D180: 50.14910537 | E180: 1003 | F180: 49.85089463
A181: CONCEPCIÓN | B181: 2027 | C181: 1019 | D181: 50.27133695 | E181: 1008 | F181: 49.72866305
A182: ZAPOTAL | B182: 300 | C182: 170 | D182: 56.66666667 | E182: 130 | F182: 43.33333333
A183: PEÑAS BLANCAS | B183: 6077 | C183: 3152 | D183: 51.86769788 | E183: 2925 | F183: 48.13230212
A184: SAN LORENZO | B184: 3149 | C184: 1640 | D184: 52.0800254 | E184: 1509 | F184: 47.9199746
A185: CANTÓN: GRECIA | B185: 56993 | C185: 28135 | D185: 49.36571158 | E185: 28858 | F185: 50.63428842
A186: GRECIA | B186: 15432 | C186: 7413 | D186: 48.03654743 | E186: 8019 | F186: 51.96345257
A187: SAN ISIDRO | B187: 4664 | C187: 2350 | D187: 50.38593482 | E187: 2314 | F187: 49.61406518
A188: SAN JOSÉ | B188: 7144 | C188: 3537 | D188: 49.51007839 | E188: 3607 | F188: 50.48992161
A189: SAN ROQUE | B189: 9289 | C189: 4519 | D189: 48.64893961 | E189: 4770 | F189: 51.35106039
A190: TACARES | B190: 5944 | C190: 2994 | D190: 50.37012113 | E190: 2950 | F190: 49.62987887
A191: PUENTE DE PIEDRA | B191: 8426 | C191: 4243 | D191: 50.35604083 | E191: 4183 | F191: 49.64395917
A192: BOLÍVAR | B192: 6094 | C192: 3079 | D192: 50.52510666 | E192: 3015 | F192: 49.47489334
A193: CANTÓN: SAN MATEO | B193: 5007 | C193: 2580 | D193: 51.52786099 | E193: 2427 | F193: 48.47213901
A194: SAN MATEO | B194: 2526 | C194: 1268 | D194: 50.19794141 | E194: 1258 | F194: 49.80205859
A195: DESMONTE | B195: 513 | C195: 283 | D195: 55.16569201 | E195: 230 | F195: 44.83430799
A196: JESÚS MARÍA | B196: 886 | C196: 462 | D196: 52.14446953 | E196: 424 | F196: 47.85553047
A197: LABRADOR | B197: 1082 | C197: 567 | D197: 52.40295749 | E197: 515 | F197: 47.59704251
A198: CANTÓN: ATENAS | B198: 21886 | C198: 10933 | D198: 49.95430869 | E198: 10953 | F198: 50.04569131
A199: ATENAS | B199: 7215 | C199: 3485 | D199: 48.3021483 | E199: 3730 | F199: 51.6978517
A200: JESÚS | B200: 3245 | C200: 1628 | D200: 50.16949153 | E200: 1617 | F200: 49.83050847
A201: MERCEDES | B201: 2476 | C201: 1296 | D201: 52.34248788 | E201: 1180 | F201: 47.65751212
A202: SAN ISIDRO | B202: 2294 | C202: 1179 | D202: =+C202/B202*100 -> 51.39494333 | E202: 1115 | F202: =+E202/B202*100 -> 48.60505667
A203: CONCEPCIÓN | B203: 2943 | C203: 1476 | D203: 50.1529052 | E203: 1467 | F203: 49.8470948
... 427 more rows

Sheet 4
A2: CUADRO 4
A3: COSTA RICA: PADRÓN NACIONAL ELECTORAL, POR GRUPOS DECENALES DE EDAD, SEGÚN PROVINCIA, CANTÓN DISTRITO ADMINISTRATIVO Y PAÍSES EN EL EXTRANJERO ELECCIONES PRESIDENCIALES FEBRERO 2022
A5: PROVINCIA, CANTÓN, DISTRITO ADMINISTRATIVO Y PAÍSES EN EL EXTRANJERO | B5: TOTAL | C5: GRUPOS DECENALES DE EDAD
C6: Menos de 30 | D6: De 30 a 39 | E6: De 40 a 49 | F6: De 50 a 59 | G6: De 60 a 69 | H6: De 70 a 79 | I6: De 80 a 89 | J6: De 90 a 99 | K6: 100 y Más
A7: COSTA RICA | B7: =+B8+B152+B285+B345+B403+B476+B548+B585 -> 3541908 | C7: 886121 | D7: 777658 | E7: 608257 | F7: 539179 | G7: 410524 | H7: 212128 | I7: 87432 | J7: 19725 | K7: 884
A8: PROVINCIA: SAN JOSÉ | B8: 1157828 | C8: 273607 | D8: 250359 | E8: 196071 | F8: 176533 | G8: 143361 | H8: 77759 | I8: 32144 | J8: 7659 | K8: 335
A9: CANTÓN: SAN JOSÉ | B9: 237755 | C9: 53320 | D9: 49810 | E9: 40025 | F9: 34874 | G9: 31182 | H9: 18091 | I9: 8196 | J9: 2155 | K9: 102
A10: CARMEN | B10: 5100 | C10: 727 | D10: 962 | E10: 817 | F10: 806 | G10: 872 | H10: 560 | I10: 253 | J10: 99 | K10: 4
A11: MERCED | B11: 10072 | C11: 2143 | D11: 2005 | E11: 1717 | F11: 1449 | G11: 1420 | H11: 845 | I11: 371 | J11: 116 | K11: 6
A12: HOSPITAL | B12: 18145 | C12: 3993 | D12: 3758 | E12: 2937 | F12: 2746 | G12: 2437 | H12: 1465 | I12: 641 | J12: 161 | K12: 7
A13: CATEDRAL | B13: 15220 | C13: 2740 | D13: 2909 | E13: 2539 | F13: 2337 | G13: 2359 | H13: 1438 | I13: 679 | J13: 214 | K13: 5
A14: ZAPOTE | B14: 18417 | C14: 3568 | D14: 3652 | E14: 2986 | F14: 2822 | G14: 2710 | H14: 1638 | I14: 794 | J14: 235 | K14: 12
A15: SAN FRANCISCO DE DOS RÍOS | B15: 18155 | C15: 3143 | D15: 3800 | E15: 3256 | F15: 2642 | G15: 2653 | H15: 1730 | I15: 740 | J15: 183 | K15: 8
A16: URUCA | B16: 17840 | C16: 6051 | D16: 3532 | E16: 2644 | F16: 2328 | G16: 1754 | H16: 988 | I16: 423 | J16: 113 | K16: 7
A17: MATA REDONDA | B17: 7809 | C17: 1399 | D17: 1600 | E17: 1338 | F17: 1239 | G17: 1005 | H17: 637 | I17: 456 | J17: 131 | K17: 4
A18: PAVAS | B18: 52007 | C18: 13029 | D18: 11616 | E18: 8754 | F18: 7440 | G18: 6124 | H18: 3277 | I18: 1446 | J18: 302 | K18: 19
A19: HATILLO | B19: 44148 | C19: 9858 | D19: 9224 | E19: 7724 | F19: 6590 | G19: 5661 | H19: 3268 | I19: 1445 | J19: 364 | K19: 14
A20: SAN SEBASTIÁN | B20: 30842 | C20: 6669 | D20: 6752 | E20: 5313 | F20: 4475 | G20: 4187 | H20: 2245 | I20: 948 | J20: 237 | K20: 16
A21: CANTÓN: ESCAZÚ | B21: 50442 | C21: 11148 | D21: 10541 | E21: 9279 | F21: 7965 | G21: 6329 | H21: 3361 | I21: 1439 | J21: 370 | K21: 10
A22: ESCAZÚ | B22: 12626 | C22: 2556 | D22: 2525 | E22: 2341 | F22: 2023 | G22: 1736 | H22: 928 | I22: 397 | J22: 119 | K22: 1
A23: SAN ANTONIO | B23: 16599 | C23: 4092 | D23: 3801 | E23: 2998 | F23: 2429 | G23: 1938 | H23: 915 | I23: 342 | J23: 80 | K23: 4
A24: SAN RAFAEL | B24: 21217 | C24: 4500 | D24: 4215 | E24: 3940 | F24: 3513 | G24: 2655 | H24: 1518 | I24: 700 | J24: 171 | K24: 5
A25: CANTÓN: DESAMPARADOS | B25: 166029 | C25: 41862 | D25: 36540 | E25: 28163 | F25: 25009 | G25: 19759 | H25: 10103 | I25: 3812 | J25: 741 | K25: 40
A26: DESAMPARADOS | B26: 30777 | C26: 6636 | D26: 6570 | E26: 5316 | F26: 4615 | G26: 4193 | H26: 2310 | I26: 921 | J26: 204 | K26: 12
A27: SAN MIGUEL | B27: 29937 | C27: 8112 | D27: 6722 | E27: 5127 | F27: 4599 | G27: 3220 | H27: 1511 | I27: 530 | J27: 110 | K27: 6
A28: SAN JUAN DE DIOS | B28: 13651 | C28: 3859 | D28: 2938 | E28: 2283 | F28: 2108 | G28: 1474 | H28: 678 | I28: 268 | J28: 43 | K28: 0
A29: SAN RAFAEL ARRIBA | B29: 11910 | C29: 3048 | D29: 2642 | E29: 1996 | F29: 1860 | G29: 1383 | H29: 678 | I29: 247 | J29: 54 | K29: 2
A30: SAN ANTONIO | B30: 9467 | C30: 1943 | D30: 2031 | E30: 1833 | F30: 1375 | G30: 1220 | H30: 727 | I30: 277 | J30: 55 | K30: 6
A31: FRAILES | B31: 3093 | C31: 767 | D31: 637 | E31: 498 | F31: 524 | G31: 382 | H31: 193 | I31: 78 | J31: 14 | K31: 0
A32: PATARRÁ | B32: 7465 | C32: 2194 | D32: 1639 | E32: 1196 | F32: 1114 | G32: 771 | H32: 402 | I32: 123 | J32: 24 | K32: 2
A33: SAN CRISTÓBAL | B33: 3363 | C33: 863 | D33: 665 | E33: 592 | F33: 592 | G33: 396 | H33: 166 | I33: 82 | J33: 6 | K33: 1
A34: ROSARIO | B34: 3244 | C34: 853 | D34: 681 | E34: 584 | F34: 541 | G34: 349 | H34: 156 | I34: 75 | J34: 5 | K34: 0
A35: DAMAS | B35: 9385 | C35: 2245 | D35: 2071 | E35: 1591 | F35: 1458 | G35: 1167 | H35: 611 | I35: 207 | J35: 34 | K35: 1
A36: SAN RAFAEL ABAJO | B36: 16758 | C36: 4130 | D36: 3869 | E36: 2774 | F36: 2511 | G36: 2031 | H36: 1028 | I36: 352 | J36: 61 | K36: 2
A37: GRAVILIAS | B37: 13065 | C37: 2499 | D37: 2685 | E37: 2371 | F37: 2033 | G37: 1794 | H37: 1093 | I37: 478 | J37: 106 | K37: 6
A38: LOS GUIDO | B38: 13914 | C38: 4713 | D38: 3390 | E38: 2002 | F38: 1679 | G38: 1379 | H38: 550 | I38: 174 | J38: 25 | K38: 2
A39: CANTÓN: PURISCAL | B39: 29937 | C39: 6968 | D39: 6662 | E39: 4562 | F39: 4939 | G39: 3667 | H39: 1951 | I39: 954 | J39: 224 | K39: 10
A40: SANTIAGO | B40: 10935 | C40: 2416 | D40: 2448 | E40: 1731 | F40: 1759 | G40: 1410 | H40: 723 | I40: 355 | J40: 89 | K40: 4
A41: MERCEDES SUR | B41: 4887 | C41: 1197 | D41: 1053 | E41: 745 | F41: 788 | G41: 558 | H41: 334 | I41: 172 | J41: 37 | K41: 3
A42: BARBACOAS | B42: 3939 | C42: 1023 | D42: 882 | E42: 588 | F42: 685 | G42: 425 | H42: 218 | I42: 98 | J42: 19 | K42: 1
A43: GRIFO ALTO | B43: 1044 | C43: 213 | D43: 244 | E43: 156 | F43: 179 | G43: 128 | H43: 72 | I43: 42 | J43: 9 | K43: 1
A44: SAN RAFAEL | B44: 1388 | C44: 295 | D44: 278 | E44: 192 | F44: 236 | G44: 225 | H44: 96 | I44: 53 | J44: 13 | K44: 0
A45: CANDELARITA | B45: 1491 | C45: 323 | D45: 353 | E45: 218 | F45: 224 | G45: 184 | H45: 119 | I45: 52 | J45: 17 | K45: 1
A46: DESAMPARADITOS | B46: 621 | C46: 145 | D46: 147 | E46: 82 | F46: 113 | G46: 77 | H46: 36 | I46: 19 | J46: 2 | K46: 0
A47: SAN ANTONIO | B47: 3401 | C47: 850 | D47: 806 | E47: 535 | F47: 551 | G47: 373 | H47: 186 | I47: 80 | J47: 20 | K47: 0
A48: CHIRES | B48: 2231 | C48: 506 | D48: 451 | E48: 315 | F48: 404 | G48: 287 | H48: 167 | I48: 83 | J48: 18 | K48: 0
A49: CANTÓN: TARRAZÚ | B49: 12707 | C49: 3434 | D49: 2676 | E49: 1989 | F49: 2075 | G49: 1387 | H49: 742 | I49: 336 | J49: 66 | K49: 2
A50: SAN MARCOS | B50: 8122 | C50: 2088 | D50: 1737 | E50: 1276 | F50: 1329 | G50: 931 | H50: 488 | I50: 225 | J50: 47 | K50: 1
A51: SAN LORENZO | B51: 3111 | C51: 882 | D51: 614 | E51: 475 | F51: 529 | G51: 331 | H51: 189 | I51: 75 | J51: 15 | K51: 1
A52: SAN CARLOS | B52: 1474 | C52: 464 | D52: 325 | E52: 238 | F52: 217 | G52: 125 | H52: 65 | I52: 36 | J52: 4 | K52: 0
A53: CANTÓN: ASERRÍ | B53: 44906 | C53: 11476 | D53: 9938 | E53: 7900 | F53: 7014 | G53: 5049 | H53: 2464 | I53: 878 | J53: 180 | K53: 7
A54: ASERRÍ | B54: 25101 | C54: 6286 | D54: 5554 | E54: 4489 | F54: 3869 | G54: 2926 | H54: 1397 | I54: 484 | J54: 91 | K54: 5
A55: TARBACA | B55: 1874 | C55: 467 | D55: 387 | E55: 328 | F55: 340 | G55: 208 | H55: 96 | I55: 41 | J55: 7 | K55: 0
A56: VUELTA DE JORCO | B56: 5314 | C56: 1354 | D56: 1185 | E56: 876 | F56: 873 | G56: 590 | H56: 295 | I56: 112 | J56: 29 | K56: 0
A57: SAN GABRIEL | B57: 4214 | C57: 1141 | D57: 951 | E57: 714 | F57: 657 | G57: 433 | H57: 238 | I57: 66 | J57: 14 | K57: 0
A58: LEGUA | B58: 1010 | C58: 296 | D58: 185 | E58: 190 | F58: 155 | G58: 97 | H58: 58 | I58: 21 | J58: 8 | K58: 0
A59: MONTERREY | B59: 717 | C59: 173 | D59: 163 | E59: 126 | F59: 113 | G59: 81 | H59: 40 | I59: 15 | J59: 6 | K59: 0
A60: SALITRILLOS | B60: 6676 | C60: 1759 | D60: 1513 | E60: 1177 | F60: 1007 | G60: 714 | H60: 340 | I60: 139 | J60: 25 | K60: 2
A61: CANTÓN: MORA | B61: 23192 | C61: 5487 | D61: 5082 | E61: 4109 | F61: 3683 | G61: 2712 | H61: 1388 | I61: 601 | J61: 119 | K61: 11
A62: COLÓN | B62: 13282 | C62: 2961 | D62: 2961 | E62: 2482 | F62: 2094 | G62: 1571 | H62: 821 | I62: 323 | J62: 62 | K62: 7
A63: GUAYABO | B63: 3443 | C63: 904 | D63: 738 | E63: 607 | F63: 518 | G63: 404 | H63: 185 | I63: 72 | J63: 15 | K63: 0
A64: TABARCIA | B64: 3648 | C64: 890 | D64: 790 | E64: 593 | F64: 601 | G64: 426 | H64: 201 | I64: 112 | J64: 33 | K64: 2
A65: PIEDRAS NEGRAS | B65: 277 | C65: 69 | D65: 53 | E65: 45 | F65: 45 | G65: 34 | H65: 20 | I65: 10 | J65: 1 | K65: 0
A66: PICAGRES | B66: 580 | C66: 128 | D66: 112 | E66: 71 | F66: 95 | G66: 86 | H66: 57 | I66: 27 | J66: 4 | K66: 0
A67: JARIS | B67: 925 | C67: 238 | D67: 211 | E67: 124 | F67: 161 | G67: 104 | H67: 53 | I67: 32 | J67: 2 | K67: 0
A68: QUITIRRISÍ | B68: 1037 | C68: 297 | D68: 217 | E68: 187 | F68: 169 | G68: 87 | H68: 51 | I68: 25 | J68: 2 | K68: 2
A69: CANTÓN: GOICOECHEA | B69: 92060 | C69: 20592 | D69: 20082 | E69: 15447 | F69: 13594 | G69: 12239 | H69: 6611 | I69: 2760 | J69: 699 | K69: 36
A70: GUADALUPE | B70: 20315 | C70: 3619 | D70: 3948 | E70: 3359 | F70: 3088 | G70: 2938 | H70: 2017 | I70: 1015 | J70: 315 | K70: 16
A71: SAN FRANCISCO | B71: 1999 | C71: 366 | D71: 407 | E71: 366 | F71: 285 | G71: 286 | H71: 188 | I71: 81 | J71: 18 | K71: 2
A72: CALLE BLANCOS | B72: 11670 | C72: 2142 | D72: 2624 | E72: 1910 | F72: 1618 | G72: 1806 | H72: 988 | I72: 447 | J72: 125 | K72: 10
A73: MATA DE PLÁTANO | B73: 13723 | C73: 3011 | D73: 3000 | E73: 2486 | F73: 2180 | G73: 1807 | H73: 878 | I73: 291 | J73: 68 | K73: 2
A74: IPÍS | B74: 23938 | C74: 5564 | D74: 5454 | E74: 4100 | F74: 3530 | G74: 3110 | H74: 1495 | I74: 573 | J74: 109 | K74: 3
A75: RANCHO REDONDO | B75: 3476 | C75: 913 | D75: 825 | E75: 537 | F75: 541 | G75: 412 | H75: 161 | I75: 74 | J75: 13 | K75: 0
A76: PURRAL | B76: 16939 | C76: 4977 | D76: 3824 | E76: 2689 | F76: 2352 | G76: 1880 | H76: 884 | I76: 279 | J76: 51 | K76: 3
A77: CANTÓN: SANTA ANA | B77: 39066 | C77: 9062 | D77: 8199 | E77: 7635 | F77: 6333 | G77: 4491 | H77: 2302 | I77: 847 | J77: 186 | K77: 11
A78: SANTA ANA | B78: 9488 | C78: 1844 | D78: 1985 | E78: 1875 | F78: 1524 | G78: 1282 | H78: 665 | I78: 243 | J78: 67 | K78: 3
A79: SALITRAL | B79: 3237 | C79: 908 | D79: 705 | E79: 528 | F79: 463 | G79: 374 | H79: 173 | I79: 72 | J79: 13 | K79: 1
A80: POZOS | B80: 12337 | C80: 3074 | D80: 2513 | E80: 2524 | F80: 2122 | G80: 1213 | H80: 618 | I80: 222 | J80: 49 | K80: 2
A81: URUCA | B81: 6508 | C81: 1485 | D81: 1382 | E81: 1275 | F81: 1014 | G81: 807 | H81: 386 | I81: 124 | J81: 31 | K81: 4
A82: PIEDADES | B82: 5665 | C82: 1307 | D82: 1221 | E82: 1058 | F82: 911 | G82: 634 | H82: 353 | I82: 156 | J82: 24 | K82: 1
A83: BRASIL | B83: 1831 | C83: 444 | D83: 393 | E83: 375 | F83: 299 | G83: 181 | H83: 107 | I83: 30 | J83: 2 | K83: 0
A84: CANTÓN: ALAJUELITA | B84: 53246 | C84: 15180 | D84: 11999 | E84: 8717 | F84: 7665 | G84: 5776 | H84: 2709 | I84: 990 | J84: 203 | K84: 7
A85: ALAJUELITA | B85: 10322 | C85: 2339 | D85: 2265 | E85: 1868 | F85: 1540 | G85: 1326 | H85: 717 | I85: 217 | J85: 49 | K85: 1
A86: SAN JOSÉCITO | B86: 8077 | C86: 2133 | D86: 1821 | E86: 1387 | F86: 1219 | G86: 895 | H86: 412 | I86: 173 | J86: 36 | K86: 1
A87: SAN ANTONIO | B87: 2147 | C87: 643 | D87: 409 | E87: 391 | F87: 325 | G87: 204 | H87: 121 | I87: 44 | J87: 10 | K87: 0
A88: CONCEPCIÓN | B88: 12929 | C88: 3611 | D88: 2904 | E88: 2037 | F88: 1889 | G88: 1487 | H88: 654 | I88: 286 | J88: 57 | K88: 4
A89: SAN FELIPE | B89: 19771 | C89: 6454 | D89: 4600 | E89: 3034 | F89: 2692 | G89: 1864 | H89: 805 | I89: 270 | J89: 51 | K89: 1
A90: CANTÓN: VÁZQUEZ DE CORONADO | B90: 56128 | C90: 12947 | D90: 12589 | E90: 9492 | F90: 9355 | G90: 6926 | H90: 3365 | I90: 1217 | J90: 228 | K90: 9
A91: SAN ISIDRO | B91: 16294 | C91: 3523 | D91: 3443 | E91: 2853 | F91: 2693 | G91: 2182 | H91: 1071 | I91: 430 | J91: 96 | K91: 3
A92: SAN RAFAEL | B92: 6216 | C92: 1421 | D92: 1428 | E92: 1057 | F92: 1016 | G92: 732 | H92: 401 | I92: 135 | J92: 24 | K92: 2
A93: DULCE NOMBRE DE JESÚS | B93: 10390 | C93: 2564 | D93: 2386 | E93: 1756 | F93: 1684 | G93: 1209 | H93: 567 | I93: 194 | J93: 28 | K93: 2
A94: PATALILLO | B94: 17502 | C94: 4023 | D94: 3924 | E94: 2910 | F94: 3058 | G94: 2124 | H94: 1046 | I94: 350 | J94: 65 | K94: 2
A95: CASCAJAL | B95: 5726 | C95: 1416 | D95: 1408 | E95: 916 | F95: 904 | G95: 679 | H95: 280 | I95: 108 | J95: 15 | K95: 0
A96: CANTÓN: ACOSTA | B96: 17750 | C96: 4441 | D96: 3777 | E96: 2877 | F96: 2908 | G96: 2035 | H96: 1086 | I96: 489 | J96: 133 | K96: 4
A97: SAN IGNACIO | B97: 8112 | C97: 2086 | D97: 1812 | E97: 1310 | F97: 1330 | G97: 877 | H97: 435 | I97: 199 | J97: 63 | K97: 0
A98: GUAITIL | B98: 2104 | C98: 498 | D98: 430 | E98: 323 | F98: 355 | G98: 264 | H98: 149 | I98: 66 | J98: 19 | K98: 0
A99: PALMICHAL | B99: 3958 | C99: 1013 | D99: 865 | E99: 678 | F99: 620 | G99: 423 | H99: 243 | I99: 89 | J99: 25 | K99: 2
A100: CANGREJAL | B100: 1614 | C100: 389 | D100: 295 | E100: 263 | F100: 270 | G100: 219 | H100: 114 | I100: 54 | J100: 9 | K100: 1
A101: SABANILLAS | B101: 1962 | C101: 455 | D101: 375 | E101: 303 | F101: 333 | G101: 252 | H101: 145 | I101: 81 | J101: 17 | K101: 1
A102: CANTÓN: TIBÁS | B102: 56540 | C102: 11594 | D102: 11364 | E102: 9892 | F102: 8432 | G102: 7742 | H102: 4942 | I102: 2033 | J102: 524 | K102: 17
A103: SAN JUAN | B103: 21573 | C103: 3722 | D103: 4226 | E103: 3768 | F103: 3369 | G103: 3060 | H103: 2171 | I103: 983 | J103: 266 | K103: 8
A104: CINCO ESQUINAS | B104: 7693 | C104: 1733 | D104: 1531 | E104: 1342 | F104: 1108 | G104: 1041 | H104: 592 | I104: 286 | J104: 58 | K104: 2
A105: ANSELMO LLORENTE | B105: 8590 | C105: 1439 | D105: 1712 | E105: 1613 | F105: 1226 | G105: 1269 | H105: 917 | I105: 312 | J105: 99 | K105: 3
A106: LEÓN XIII | B106: 8027 | C106: 2443 | D106: 1491 | E106: 1350 | F106: 1135 | G106: 853 | H106: 525 | I106: 195 | J106: 35 | K106: 0
A107: COLIMA | B107: 10657 | C107: 2257 | D107: 2404 | E107: 1819 | F107: 1594 | G107: 1519 | H107: 737 | I107: 257 | J107: 66 | K107: 4
A108: CANTÓN: MORAVIA | B108: 45628 | C108: 9718 | D108: 9465 | E108: 8436 | F108: 6982 | G108: 5822 | H108: 3481 | I108: 1368 | J108: 337 | K108: 19
A109: SAN VICENTE | B109: 26114 | C109: 4828 | D109: 5108 | E109: 4842 | F109: 3997 | G109: 3626 | H109: 2443 | I109: 1000 | J109: 257 | K109: 13
A110: SAN JERÓNIMO | B110: 4795 | C110: 1218 | D110: 1046 | E110: 890 | F110: 695 | G110: 554 | H110: 272 | I110: 92 | J110: 27 | K110: 1
A111: LA TRINIDAD | B111: 14719 | C111: 3672 | D111: 3311 | E111: 2704 | F111: 2290 | G111: 1642 | H111: 766 | I111: 276 | J111: 53 | K111: 5
A112: CANTÓN: MONTES DE OCA | B112: 43081 | C112: 8515 | D112: 9696 | E112: 7063 | F112: 6157 | G112: 6100 | H112: 3549 | I112: 1544 | J112: 437 | K112: 20
A113: SAN PEDRO | B113: 21054 | C113: 4041 | D113: 4787 | E113: 3272 | F113: 2898 | G113: 3078 | H113: 1808 | I113: 882 | J113: 274 | K113: 14
A114: SABANILLA | B114: 12149 | C114: 2429 | D114: 2665 | E114: 2131 | F114: 1801 | G114: 1633 | H114: 1010 | I114: 380 | J114: 98 | K114: 2
A115: MERCEDES | B115: 2732 | C115: 474 | D115: 600 | E115: 464 | F115: 400 | G115: 374 | H115: 283 | I115: 110 | J115: 27 | K115: 0
A116: SAN RAFAEL | B116: 7146 | C116: 1571 | D116: 1644 | E116: 1196 | F116: 1058 | G116: 1015 | H116: 448 | I116: 172 | J116: 38 | K116: 4
A117: CANTÓN: TURRUBARES | B117: 4974 | C117: 1165 | D117: 1021 | E117: 827 | F117: 814 | G117: 638 | H117: 331 | I117: 145 | J117: 32 | K117: 1
A118: SAN PABLO | B118: 1458 | C118: 365 | D118: 297 | E118: 239 | F118: 229 | G118: 184 | H118: 88 | I118: 45 | J118: 10 | K118: 1
A119: SAN PEDRO | B119: 522 | C119: 100 | D119: 114 | E119: 80 | F119: 93 | G119: 76 | H119: 45 | I119: 12 | J119: 2 | K119: 0
A120: SAN JUAN DE MATA | B120: 1059 | C120: 243 | D120: 245 | E120: 180 | F120: 158 | G120: 144 | H120: 64 | I120: 20 | J120: 5 | K120: 0
A121: SAN LUIS | B121: 476 | C121: 107 | D121: 72 | E121: 69 | F121: 100 | G121: 59 | H121: 40 | I121: 24 | J121: 5 | K121: 0
A122: CARARA | B122: 1459 | C122: 350 | D122: 293 | E122: 259 | F122: 234 | G122: 175 | H122: 94 | I122: 44 | J122: 10 | K122: 0
A123: CANTÓN: DOTA | B123: 5851 | C123: 1504 | D123: 1160 | E123: 861 | F123: 968 | G123: 788 | H123: 360 | I123: 161 | J123: 48 | K123: 1
A124: SANTA MARÍA | B124: 4053 | C124: 1019 | D124: 801 | E124: 606 | F124: 667 | G124: 547 | H124: 256 | I124: 122 | J124: 34 | K124: 1
A125: JARDÍN | B125: 338 | C125: 96 | D125: 50 | E125: 58 | F125: 59 | G125: 41 | H125: 29 | I125: 4 | J125: 1 | K125: 0
A126: COPEY | B126: 1460 | C126: 389 | D126: 309 | E126: 197 | F126: 242 | G126: 200 | H126: 75 | I126: 35 | J126: 13 | K126: 0
A127: CANTÓN: CURRIDABAT | B127: 51539 | C127: 11610 | D127: 10942 | E127: 8777 | F127: 8002 | G127: 6601 | H127: 3773 | I127: 1476 | J127: 344 | K127: 14
A128: CURRIDABAT | B128: 24702 | C128: 4718 | D128: 5304 | E128: 4173 | F128: 3876 | G128: 3464 | H128: 2073 | I128: 867 | J128: 218 | K128: 9
A129: GRANADILLA | B129: 10456 | C129: 2560 | D129: 2258 | E129: 1752 | F129: 1671 | G129: 1291 | H129: 637 | I129: 242 | J129: 44 | K129: 1
A130: SÁNCHEZ | B130: 5566 | C130: 1214 | D130: 981 | E130: 1095 | F130: 1017 | G130: 666 | H130: 409 | I130: 144 | J130: 39 | K130: 1
A131: TIRRASES | B131: 10815 | C131: 3118 | D131: 2399 | E131: 1757 | F131: 1438 | G131: 1180 | H131: 654 | I131: 223 | J131: 43 | K131: 3
A132: CANTÓN: PÉREZ ZELEDÓN | B132: 117466 | C132: 31017 | D132: 26651 | E132: 18678 | F132: 18130 | G132: 13031 | H132: 6668 | I132: 2690 | J132: 587 | K132: 14
A133: SAN ISIDRO DE EL GENERAL | B133: 41395 | C133: 10456 | D133: 9550 | E133: 6664 | F133: 6342 | G133: 4743 | H133: 2392 | I133: 1009 | J133: 232 | K133: 7
A134: EL GENERAL | B134: 5356 | C134: 1428 | D134: 1122 | E134: 872 | F134: 816 | G134: 633 | H134: 331 | I134: 123 | J134: 31 | K134: 0
A135: DANIEL FLORES | B135: 29223 | C135: 7724 | D135: 7047 | E135: 4664 | F135: 4393 | G135: 3095 | H135: 1576 | I135: 605 | J135: 116 | K135: 3
A136: RIVAS | B136: 5269 | C136: 1405 | D136: 1085 | E136: 779 | F136: 910 | G136: 622 | H136: 322 | I136: 117 | J136: 29 | K136: 0
A137: SAN PEDRO | B137: 6821 | C137: 1908 | D137: 1505 | E137: 1072 | F137: 1052 | G137: 720 | H137: 396 | I137: 149 | J137: 19 | K137: 0
A138: PLATANARES | B138: 6014 | C138: 1619 | D138: 1253 | E138: 987 | F138: 948 | G138: 690 | H138: 331 | I138: 150 | J138: 36 | K138: 0
A139: PEJIBAYE | B139: 4474 | C139: 1149 | D139: 933 | E139: 676 | F139: 743 | G139: 564 | H139: 265 | I139: 117 | J139: 27 | K139: 0
A140: CAJÓN | B140: 8148 | C140: 2341 | D140: 1803 | E140: 1334 | F140: 1208 | G140: 790 | H140: 450 | I140: 177 | J140: 44 | K140: 1
A141: BARÚ | B141: 2043 | C141: 512 | D141: 496 | E141: 326 | F141: 311 | G141: 237 | H141: 105 | I141: 46 | J141: 9 | K141: 1
A142: RÍO NUEVO | B142: 2485 | C142: 696 | D142: 533 | E142: 374 | F142: 412 | G142: 265 | H142: 140 | I142: 52 | J142: 13 | K142: 0
A143: PÁRAMO | B143: 3914 | C143: 1107 | D143: 798 | E143: 577 | F143: 646 | G143: 433 | H143: 238 | I143: 92 | J143: 22 | K143: 1
A144: LA AMISTAD | B144: 2324 | C144: 672 | D144: 526 | E144: 353 | F144: 349 | G144: 239 | H144: 122 | I144: 53 | J144: 9 | K144: 1
A145: CANTÓN: LEÓN CORTÉS CASTRO | B145: 9531 | C145: 2567 | D145: 2165 | E145: 1342 | F145: 1634 | G145: 1087 | H145: 482 | I145: 208 | J145: 46 | K145: 0
A146: SAN PABLO | B146: 3383 | C146: 915 | D146: 771 | E146: 471 | F146: 589 | G146: 378 | H146: 171 | I146: 75 | J146: 13 | K146: 0
A147: SAN ANDRÉS | B147: 1214 | C147: 348 | D147: 237 | E147: 175 | F147: 192 | G147: 153 | H147: 65 | I147: 33 | J147: 11 | K147: 0
A148: LLANO BONITO | B148: 1405 | C148: 382 | D148: 300 | E148: 181 | F148: 241 | G148: 184 | H148: 73 | I148: 35 | J148: 9 | K148: 0
A149: SAN ISIDRO | B149: 1234 | C149: 346 | D149: 289 | E149: 161 | F149: 229 | G149: 118 | H149: 66 | I149: 22 | J149: 3 | K149: 0
A150: SANTA CRUZ | B150: 1435 | C150: 358 | D150: 361 | E150: 222 | F150: 240 | G150: 159 | H150: 68 | I150: 22 | J150: 5 | K150: 0
A151: SAN ANTONIO | B151: 860 | C151: 218 | D151: 207 | E151: 132 | F151: 143 | G151: 95 | H151: 39 | I151: 21 | J151: 5 | K151: 0
A152: PROVINCIA: ALAJUELA | B152: 679763 | C152: 175623 | D152: 151376 | E152: 112541 | F152: 102638 | G152: 77116 | H152: 39764 | I152: 16855 | J152: 3684 | K152: 166
A153: CANTÓN: ALAJUELA | B153: 215633 | C153: 53227 | D153: 48764 | E153: 37681 | F153: 32298 | G153: 24856 | H153: 12379 | I153: 5191 | J153: 1187 | K153: 50
A154: ALAJUELA | B154: 41291 | C154: 8478 | D154: 8516 | E154: 7249 | F154: 6404 | G154: 5630 | H154: 3103 | I154: 1506 | J154: 384 | K154: 21
A155: SAN JOSÉ | B155: 35126 | C155: 8549 | D155: 7737 | E155: 6277 | F155: 5378 | G155: 4127 | H155: 2078 | I155: 788 | J155: 183 | K155: 9
A156: CARRIZAL | B156: 5389 | C156: 1454 | D156: 1244 | E156: 905 | F156: 821 | G156: 587 | H156: 275 | I156: 89 | J156: 14 | K156: 0
A157: SAN ANTONIO | B157: 22914 | C157: 5690 | D157: 5544 | E157: 3993 | F157: 3373 | G157: 2534 | H157: 1170 | I157: 496 | J157: 111 | K157: 3
A158: GUÁCIMA | B158: 17148 | C158: 4761 | D158: 4013 | E158: 2948 | F158: 2501 | G158: 1740 | H158: 839 | I158: 289 | J158: 54 | K158: 3
A159: SAN ISIDRO | B159: 12751 | C159: 3244 | D159: 2847 | E159: 2141 | F159: 1871 | G159: 1555 | H159: 702 | I159: 312 | J159: 76 | K159: 3
A160: SABANILLA | B160: 6071 | C160: 1784 | D160: 1382 | E160: 1016 | F160: 858 | G160: 641 | H160: 239 | I160: 116 | J160: 34 | K160: 1
A161: SAN RAFAEL | B161: 21001 | C161: 5669 | D161: 5426 | E161: 3985 | F161: 2930 | G161: 1827 | H161: 800 | I161: 294 | J161: 66 | K161: 4
A162: RÍO SEGUNDO | B162: 8988 | C162: 1961 | D162: 2051 | E162: 1550 | F162: 1335 | G162: 1128 | H162: 610 | I162: 282 | J162: 70 | K162: 1
A163: DESAMPARADOS | B163: 20760 | C163: 5341 | D163: 4583 | E163: 3709 | F163: 3158 | G163: 2327 | H163: 1136 | I163: 411 | J163: 91 | K163: 4
A164: TURRÚCARES | B164: 6120 | C164: 1556 | D164: 1456 | E164: 955 | F164: 897 | G164: 697 | H164: 380 | I164: 146 | J164: 33 | K164: 0
A165: TAMBOR | B165: 10762 | C165: 2968 | D165: 2433 | E165: 1746 | F165: 1620 | G165: 1171 | H165: 540 | I165: 245 | J165: 39 | K165: 0
A166: GARITA | B166: 5320 | C166: 1230 | D166: 1137 | E166: 905 | F166: 815 | G166: 660 | H166: 391 | I166: 158 | J166: 23 | K166: 1
A167: SARAPIQUÍ | B167: 1992 | C167: 542 | D167: 395 | E167: 302 | F167: 337 | G167: 232 | H167: 116 | I167: 59 | J167: 9 | K167: 0
A168: CANTÓN: SAN RAMÓN | B168: 68598 | C168: 16983 | D168: 15101 | E168: 10748 | F168: 10797 | G168: 8212 | H168: 4343 | I168: 1943 | J168: 449 | K168: 22
A169: SAN RAMÓN | B169: 11772 | C169: 2304 | D169: 2544 | E169: 1898 | F169: 1895 | G169: 1640 | H169: 911 | I169: 466 | J169: 108 | K169: 6
A170: SANTIAGO | B170: 4091 | C170: 1037 | D170: 929 | E170: 666 | F170: 591 | G170: 485 | H170: 255 | I170: 107 | J170: 20 | K170: 1
A171: SAN JUAN | B171: 9852 | C171: 2409 | D171: 2244 | E171: 1596 | F171: 1450 | G171: 1192 | H171: 609 | I171: 272 | J171: 75 | K171: 5
A172: PIEDADES NORTE | B172: 6536 | C172: 1670 | D172: 1498 | E172: 949 | F172: 1020 | G172: 787 | H172: 395 | I172: 175 | J172: 41 | K172: 1
A173: PIEDADES SUR | B173: 3404 | C173: 863 | D173: 652 | E173: 499 | F173: 612 | G173: 410 | H173: 210 | I173: 121 | J173: 37 | K173: 0
A174: SAN RAFAEL | B174: 7417 | C174: 1825 | D174: 1680 | E174: 1113 | F174: 1187 | G174: 905 | H174: 472 | I174: 188 | J174: 45 | K174: 2
A175: SAN ISIDRO | B175: 3442 | C175: 879 | D175: 740 | E175: 547 | F175: 547 | G175: 412 | H175: 205 | I175: 92 | J175: 19 | K175: 1
A176: ÁNGELES | B176: 3967 | C176: 1075 | D176: 853 | E176: 581 | F176: 648 | G176: 440 | H176: 246 | I176: 102 | J176: 20 | K176: 2
A177: ALFARO | B177: 4552 | C177: 1152 | D177: 1033 | E177: 747 | F177: 737 | G177: 488 | H177: 260 | I177: 105 | J177: 29 | K177: 1
A178: VOLIO | B178: 2012 | C178: 533 | D178: 460 | E178: 299 | F178: 326 | G178: 217 | H178: 119 | I178: 47 | J178: 11 | K178: 0
A179: CONCEPCIÓN | B179: 2027 | C179: 481 | D179: 497 | E179: 306 | F179: 304 | G179: 244 | H179: 136 | I179: 50 | J179: 9 | K179: 0
A180: ZAPOTAL | B180: 300 | C180: 56 | D180: 56 | E180: 42 | F180: 62 | G180: 42 | H180: 25 | I180: 10 | J180: 5 | K180: 2
A181: PEÑAS BLANCAS | B181: 6077 | C181: 1841 | D181: 1260 | E181: 968 | F181: 925 | G181: 624 | H181: 311 | I181: 128 | J181: 19 | K181: 1
A182: SAN LORENZO | B182: 3149 | C182: 858 | D182: 655 | E182: 537 | F182: 493 | G182: 326 | H182: 189 | I182: 80 | J182: 11 | K182: 0
A183: CANTÓN: GRECIA | B183: 56993 | C183: 13688 | D183: 12173 | E183: 9692 | F183: 9272 | G183: 6762 | H183: 3604 | I183: 1471 | J183: 321 | K183: 10
A184: GRECIA | B184: 15432 | C184: 3162 | D184: 3394 | E184: 2703 | F184: 2399 | G184: 2008 | H184: 1134 | I184: 518 | J184: 109 | K184: 5
A185: SAN ISIDRO | B185: 4664 | C185: 1154 | D185: 979 | E185: 772 | F185: 721 | G185: 588 | H185: 301 | I185: 134 | J185: 15 | K185: 0
A186: SAN JOSÉ | B186: 7144 | C186: 1908 | D186: 1470 | E186: 1199 | F186: 1228 | G186: 802 | H186: 350 | I186: 151 | J186: 36 | K186: 0
A187: SAN ROQUE | B187: 9289 | C187: 2285 | D187: 1973 | E187: 1454 | F187: 1581 | G187: 1069 | H187: 608 | I187: 244 | J187: 70 | K187: 5
A188: TACARES | B188: 5944 | C188: 1471 | D188: 1257 | E188: 960 | F188: 1011 | G188: 693 | H188: 397 | I188: 126 | J188: 29 | K188: 0
A189: PUENTE DE PIEDRA | B189: 8426 | C189: 2145 | D189: 1771 | E189: 1574 | F189: 1339 | G189: 937 | H189: 465 | I189: 160 | J189: 35 | K189: 0
A190: BOLÍVAR | B190: 6094 | C190: 1563 | D190: 1329 | E190: 1030 | F190: 993 | G190: 665 | H190: 349 | I190: 138 | J190: 27 | K190: 0
A191: CANTÓN: SAN MATEO | B191: 5007 | C191: 1119 | D191: 959 | E191: 799 | F191: 770 | G191: 696 | H191: 427 | I191: 197 | J191: 36 | K191: 4
A192: SAN MATEO | B192: 2526 | C192: 567 | D192: 478 | E192: 401 | F192: 407 | G192: 333 | H192: 231 | I192: 94 | J192: 14 | K192: 1
A193: DESMONTE | B193: 513 | C193: 105 | D193: 103 | E193: 85 | F193: 77 | G193: 64 | H193: 49 | I193: 26 | J193: 3 | K193: 1
A194: JESÚS MARÍA | B194: 886 | C194: 181 | D194: 180 | E194: 137 | F194: 128 | G194: 155 | H194: 59 | I194: 35 | J194: 11 | K194: 0
A195: LABRADOR | B195: 1082 | C195: 266 | D195: 198 | E195: 176 | F195: 158 | G195: 144 | H195: 88 | I195: 42 | J195: 8 | K195: 2
A196: CANTÓN: ATENAS | B196: 21886 | C196: 4866 | D196: 4603 | E196: 3688 | F196: 3487 | G196: 2706 | H196: 1700 | I196: 696 | J196: 135 | K196: 5
A197: ATENAS | B197: 7215 | C197: 1458 | D197: 1534 | E197: 1213 | F197: 1170 | G197: 979 | H197: 554 | I197: 255 | J197: 50 | K197: 2
A198: JESÚS | B198: 3245 | C198: 741 | D198: 670 | E198: 515 | F198: 544 | G198: 379 | H198: 254 | I198: 122 | J198: 20 | K198: 0
A199: MERCEDES | B199: 2476 | C199: 551 | D199: 539 | E199: 433 | F199: 389 | G199: 279 | H199: 201 | I199: 66 | J199: 17 | K199: 1
A200: SAN ISIDRO | B200: 2294 | C200: 533 | D200: 454 | E200: 398 | F200: 355 | G200: 272 | H200: 188 | I200: 80 | J200: 13 | K200: 1
A201: CONCEPCIÓN | B201: 2943 | C201: 726 | D201: 614 | E201: 475 | F201: 457 | G201: 371 | H201: 209 | I201: 73 | J201: 18 | K201: 0
A202: SAN JOSÉ | B202: 1317 | C202: 313 | D202: 263 | E202: 234 | F202: 213 | G202: 150 | H202: 96 | I202: 37 | J202: 11 | K202: 0
... 426 more rows

Sheet 5
A2: CUADRO 5
A3: COSTA RICA: PADRÓN NACIONAL ELECTORAL, POR PROVINCIA Y EXTRANJERO, SEGÚN SEXO
A4: Y GRUPOS DE EDAD, ELECCIONES 6 DE FEBRERO DE 2022
A6: SEXO Y GRUPOS DE EDAD | B6: TOTAL | C6: PROVINCIA | J6: EXTRANJERO
C7: SAN JOSÉ | D7: ALAJUELA | E7: CARTAGO | F7: HEREDIA | G7: GUANACASTE | H7: PUNTARENAS | I7: LIMÓN
A9: COSTA RICA | B9: 3541908 | C9: 1157828 | D9: 679763 | E9: 409888 | F9: 355728 | G9: 259988 | H9: 332926 | I9: 294954 | J9: 50833
A10: 18 - 19 | B10: 117073 | C10: 35086 | D10: 23590 | E10: 13215 | F10: 11549 | G10: 9173 | H10: 12070 | I10: 11762 | J10: 628
A11: 20 - 24 | B11: 376910 | C11: 115445 | D11: 75304 | E11: 42477 | F11: 35850 | G11: 29068 | H11: 37979 | I11: 37352 | J11: 3435
A12: 25 - 29 | B12: 392138 | C12: 123076 | D12: 76729 | E12: 45284 | F12: 38075 | G12: 29484 | H12: 38111 | I12: 36874 | J12: 4505
A13: 30 - 34 | B13: 396345 | C13: 128078 | D13: 77873 | E13: 46941 | F13: 38968 | G13: 28518 | H13: 37115 | I13: 33633 | J13: 5219
A14: 35 - 39 | B14: 381313 | C14: 122281 | D14: 73503 | E14: 43922 | F14: 38893 | G14: 27631 | H14: 36304 | I14: 32068 | J14: 6711
A15: 40 - 44 | B15: 331845 | C15: 108113 | D15: 61672 | E15: 38774 | F15: 35250 | G15: 24369 | H15: 30639 | I15: 26101 | J15: 6927
A16: 45 - 49 | B16: 276412 | C16: 87958 | D16: 50869 | E16: 32989 | F16: 28937 | G16: 20300 | H16: 26243 | I16: 23251 | J16: 5865
A17: 50 - 54 | B17: 270825 | C17: 87187 | D17: 51180 | E17: 32520 | F17: 27150 | G17: 19605 | H17: 25788 | I17: 22296 | J17: 5099
A18: 55 - 59 | B18: 268354 | C18: 89346 | D18: 51458 | E18: 31809 | F18: 26963 | G18: 19239 | H18: 24648 | I18: 20557 | J18: 4334
A19: 60 - 64 | B19: 231346 | C19: 79743 | D19: 44138 | E19: 26750 | F19: 23581 | G19: 16232 | H19: 20472 | I19: 17180 | J19: 3250
A20: 65 - 69 | B20: 179178 | C20: 63618 | D20: 32978 | E20: 20134 | F20: 18608 | G20: 12692 | H20: 15930 | I20: 13193 | J20: 2025
A21: 70 - 74 | B21: 125832 | C21: 46138 | D21: 23198 | E21: 13598 | F21: 12834 | G21: 8983 | H21: 10940 | I21: 8830 | J21: 1311
A22: 75 - 79 | B22: 86296 | C22: 31621 | D22: 16566 | E22: 9680 | F22: 8596 | G22: 6210 | H22: 7429 | I22: 5483 | J22: 711
A23: 80 - 84 | B23: 55607 | C23: 20166 | D23: 10799 | E23: 6217 | F23: 5397 | G23: 4255 | H23: 4905 | I23: 3461 | J23: 407
A24: 85 - 89 | B24: 31825 | C24: 11978 | D24: 6056 | E24: 3480 | F24: 3057 | G24: 2477 | H24: 2746 | I24: 1813 | J24: 218
A25: 90 - 94 | B25: 15200 | C25: 5933 | D25: 2786 | E25: 1580 | F25: 1505 | G25: 1240 | H25: 1199 | I25: 825 | J25: 132
A26: 95 - 99 | B26: 4525 | C26: 1726 | D26: 898 | E26: 441 | F26: 439 | G26: 421 | H26: 334 | I26: 223 | J26: 43
A27: 100 Y MÁS | B27: 884 | C27: 335 | D27: 166 | E27: 77 | F27: 76 | G27: 91 | H27: 74 | I27: 52 | J27: 13
A28: HOMBRES | B28: 1760469 | C28: 563372 | D28: 341769 | E28: 203140 | F28: 174461 | G28: 130743 | H28: 169840 | I28: 151106 | J28: 26038
A29: 18 - 19 | B29: 59429 | C29: 17816 | D29: 12033 | E29: 6682 | F29: 5778 | G29: 4599 | H29: 6166 | I29: 6037 | J29: 318
A30: 20 - 24 | B30: 192230 | C30: 58768 | D30: 38598 | E30: 21738 | F30: 18354 | G30: 14779 | H30: 19340 | I30: 18941 | J30: 1712
A31: 25 - 29 | B31: 199410 | C31: 62072 | D31: 39602 | E31: 23029 | F31: 19351 | G31: 15008 | H31: 19348 | I31: 18818 | J31: 2182
A32: 30 - 34 | B32: 201268 | C32: 64697 | D32: 40046 | E32: 23942 | F32: 19730 | G32: 14450 | H32: 18807 | I32: 16982 | J32: 2614
A33: 35 - 39 | B33: 192270 | C33: 61233 | D33: 37573 | E33: 22091 | F33: 19527 | G33: 13955 | H33: 18145 | I33: 16035 | J33: 3711
A34: 40 - 44 | B34: 166361 | C34: 54031 | D34: 31351 | E34: 19220 | F34: 17496 | G34: 12181 | H34: 15370 | I34: 12976 | J34: 3736
A35: 45 - 49 | B35: 138310 | C35: 43392 | D35: 25431 | E35: 16248 | F35: 14362 | G35: 10224 | H35: 13475 | I35: 12002 | J35: 3176
A36: 50 - 54 | B36: 134423 | C36: 42426 | D36: 25434 | E36: 15850 | F36: 13240 | G36: 9969 | H36: 13322 | I36: 11470 | J36: 2712
A37: 55 - 59 | B37: 132081 | C37: 42982 | D37: 25299 | E37: 15645 | F37: 12890 | G37: 9653 | H37: 12684 | I37: 10717 | J37: 2211
A38: 60 - 64 | B38: 113053 | C38: 37315 | D38: 21925 | E38: 13036 | F38: 11244 | G38: 8246 | H38: 10645 | I38: 9056 | J38: 1586
A39: 65 - 69 | B39: 86094 | C39: 29076 | D39: 16196 | E39: 9618 | F39: 8604 | G39: 6347 | H39: 8247 | I39: 7061 | J39: 945
A40: 70 - 74 | B40: 59403 | C40: 20402 | D40: 11253 | E40: 6362 | F40: 5849 | G40: 4407 | H40: 5729 | I40: 4805 | J40: 596
A41: 75 - 79 | B41: 40047 | C41: 13773 | D41: 7875 | E41: 4500 | F41: 3812 | G41: 2983 | H41: 3904 | I41: 2918 | J41: 282
A42: 80 - 84 | B42: 24997 | C42: 8323 | D42: 4958 | E42: 2871 | F42: 2311 | G42: 2043 | H42: 2503 | I42: 1837 | J42: 151
A43: 85 - 89 | B43: 13207 | C43: 4439 | D43: 2584 | E43: 1462 | F43: 1185 | G43: 1164 | H43: 1380 | I43: 936 | J43: 57
A44: 90 - 94 | B44: 5934 | C44: 2016 | D44: 1166 | E44: 661 | F44: 550 | G44: 528 | H44: 576 | I44: 402 | J44: 35
A45: 95 - 99 | B45: 1661 | C45: 529 | D45: 384 | E45: 161 | F45: 156 | G45: 173 | H45: 163 | I45: 85 | J45: 10
A46: 100 Y MÁS | B46: 291 | C46: 82 | D46: 61 | E46: 24 | F46: 22 | G46: 34 | H46: 36 | I46: 28 | J46: 4
A47: MUJERES | B47: 1781439 | C47: 594456 | D47: 337994 | E47: 206748 | F47: 181267 | G47: 129245 | H47: 163086 | I47: 143848 | J47: 24795
A48: 18 - 19 | B48: 57644 | C48: 17270 | D48: 11557 | E48: 6533 | F48: 5771 | G48: 4574 | H48: 5904 | I48: 5725 | J48: 310
A49: 20 - 24 | B49: 184680 | C49: 56677 | D49: 36706 | E49: 20739 | F49: 17496 | G49: 14289 | H49: 18639 | I49: 18411 | J49: 1723
A50: 25 - 29 | B50: 192728 | C50: 61004 | D50: 37127 | E50: 22255 | F50: 18724 | G50: 14476 | H50: 18763 | I50: 18056 | J50: 2323
A51: 30 - 34 | B51: 195077 | C51: 63381 | D51: 37827 | E51: 22999 | F51: 19238 | G51: 14068 | H51: 18308 | I51: 16651 | J51: 2605
A52: 35 - 39 | B52: 189043 | C52: 61048 | D52: 35930 | E52: 21831 | F52: 19366 | G52: 13676 | H52: 18159 | I52: 16033 | J52: 3000
A53: 40 - 44 | B53: 165484 | C53: 54082 | D53: 30321 | E53: 19554 | F53: 17754 | G53: 12188 | H53: 15269 | I53: 13125 | J53: 3191
A54: 45 - 49 | B54: 138102 | C54: 44566 | D54: 25438 | E54: 16741 | F54: 14575 | G54: 10076 | H54: 12768 | I54: 11249 | J54: 2689
A55: 50 - 54 | B55: 136402 | C55: 44761 | D55: 25746 | E55: 16670 | F55: 13910 | G55: 9636 | H55: 12466 | I55: 10826 | J55: 2387
A56: 55 - 59 | B56: 136273 | C56: 46364 | D56: 26159 | E56: 16164 | F56: 14073 | G56: 9586 | H56: 11964 | I56: 9840 | J56: 2123
A57: 60 - 64 | B57: 118293 | C57: 42428 | D57: 22213 | E57: 13714 | F57: 12337 | G57: 7986 | H57: 9827 | I57: 8124 | J57: 1664
A58: 65 - 69 | B58: 93084 | C58: 34542 | D58: 16782 | E58: 10516 | F58: 10004 | G58: 6345 | H58: 7683 | I58: 6132 | J58: 1080
A59: 70 - 74 | B59: 66429 | C59: 25736 | D59: 11945 | E59: 7236 | F59: 6985 | G59: 4576 | H59: 5211 | I59: 4025 | J59: 715
A60: 75 - 79 | B60: 46249 | C60: 17848 | D60: 8691 | E60: 5180 | F60: 4784 | G60: 3227 | H60: 3525 | I60: 2565 | J60: 429
A61: 80 - 84 | B61: 30610 | C61: 11843 | D61: 5841 | E61: 3346 | F61: 3086 | G61: 2212 | H61: 2402 | I61: 1624 | J61: 256
A62: 85 - 89 | B62: 18618 | C62: 7539 | D62: 3472 | E62: 2018 | F62: 1872 | G62: 1313 | H62: 1366 | I62: 877 | J62: 161
A63: 90 - 94 | B63: 9266 | C63: 3917 | D63: 1620 | E63: 919 | F63: 955 | G63: 712 | H63: 623 | I63: 423 | J63: 97
A64: 95 - 99 | B64: 2864 | C64: 1197 | D64: 514 | E64: 280 | F64: 283 | G64: 248 | H64: 171 | I64: 138 | J64: 33
A65: 100 Y MÁS | B65: 593 | C65: 253 | D65: 105 | E65: 53 | F65: 54 | G65: 57 | H65: 38 | I65: 24 | J65: 9
A68: Fuente: Padrón Electoral del Tribunal Supremo de Elecciones.

Sheet G2
I4: HOMBRES | J4: MUJERES
I5: =+'5'!B29 -> 59429 | J5: =+'5'!B48*-1 -> -57644 | K5: 18 - 19 | L5: 18 - 19
I6: =+'5'!B30 -> 192230 | J6: =+'5'!B49*-1 -> -184680 | K6: 20 - 24 | L6: 20 - 24
I7: =+'5'!B31 -> 199410 | J7: =+'5'!B50*-1 -> -192728 | K7: 25 - 29 | L7: 25 - 29
I8: =+'5'!B32 -> 201268 | J8: =+'5'!B51*-1 -> -195077 | K8: 30 - 34 | L8: 30 - 34
I9: =+'5'!B33 -> 192270 | J9: =+'5'!B52*-1 -> -189043 | K9: 35 - 39 | L9: 35 - 39
I10: =+'5'!B34 -> 166361 | J10: =+'5'!B53*-1 -> -165484 | K10: 40 - 44 | L10: 40 - 44
I11: =+'5'!B35 -> 138310 | J11: =+'5'!B54*-1 -> -138102 | K11: 45 - 49 | L11: 45 - 49
I12: =+'5'!B36 -> 134423 | J12: =+'5'!B55*-1 -> -136402 | K12: 50 - 54 | L12: 50 - 54
I13: =+'5'!B37 -> 132081 | J13: =+'5'!B56*-1 -> -136273 | K13: 55 - 59 | L13: 55 - 59
I14: =+'5'!B38 -> 113053 | J14: =+'5'!B57*-1 -> -118293 | K14: 60 - 64 | L14: 60 - 64
I15: =+'5'!B39 -> 86094 | J15: =+'5'!B58*-1 -> -93084 | K15: 65 - 69 | L15: 65 - 69
I16: =+'5'!B40 -> 59403 | J16: =+'5'!B59*-1 -> -66429 | K16: 70 - 74 | L16: 70 - 74
I17: =+'5'!B41 -> 40047 | J17: =+'5'!B60*-1 -> -46249 | K17: 75 - 79 | L17: 75 - 79
I18: =+'5'!B42 -> 24997 | J18: =+'5'!B61*-1 -> -30610 | K18: 80 - 84 | L18: 80 - 84
I19: =+'5'!B43 -> 13207 | J19: =+'5'!B62*-1 -> -18618 | K19: 85 - 90 | L19: 85 Y MÁS
I20: =+'5'!B46+'5'!B45+'5'!B44 -> 7886 | J20: =(+'5'!B63+'5'!B64 +'5'!B65 )*-1 -> -12723 | K20: 90 Y MÁS
I22: =SUM(I5:I20) -> 1760469 | J22: =SUM(J5:J20) -> -1781439
J24: =+I22-J22 -> 3541908
A46: Fuente: Cuadro 5.

Sheet 6
A2: CUADRO 6
A3: COSTA RICA: ELECTORADO EN EL EXTRANJERO 1/ POR SEXO, SEGÚN UBICACIÓN GEOGRÁFICA Y PAÍS
A4: ELECCIONES 6 DE FEBRERO 2022
A6: Ubicación Geográfica y país | B6: Total | D6: Hombres | F6: Mujeres
B7: Absoluto | C7: % | D7: Absoluto | E7: % | F7: Absoluto | G7: %
A9: Total | B9: =B10+B34+B45+B56+B14+B20+B24+B58 -> 50833 | C9: =B9/B$9*100 -> 100 | D9: =D10+D34+D45+D56 -> 23006 | E9: =D9/D$9*100 -> 100 | F9: =F10+F34+F45+F56 -> 21435 | G9: =F9/F$9*100 -> 100
A10: Norte América | B10: =SUM(B11:B13) -> 38305 | C10: 75.35459249 | D10: =SUM(D11:D13) -> 20180 | E10: =D10/D$9*100 -> 87.71624794 | F10: =SUM(F11:F13) -> 18125 | G10: =F10/F$9*100 -> 84.55796594
A11: Estados Unidos | B11: =D11+F11 -> 35517 | C11: 69.86996636 | D11: 18746 | E11: =D11/D$9*100 -> 81.48309137 | F11: 16771 | G11: =F11/F$9*100 -> 78.24119431
A12: Canadá | B12: 1507 | C12: 2.964609604 | D12: 831 | E12: =D12/D$9*100 -> 3.612101191 | F12: 676 | G12: =F12/F$9*100 -> 3.153720551
A13: México | B13: 1281 | C13: 2.520016525 | D13: 603 | E13: =D13/D$9*100 -> 2.621055377 | F13: 678 | G13: =F13/F$9*100 -> 3.163051085
A14: América Central | B14: =SUM(B15:B19) -> 3983 | C14: 7.835461216 | D14: =SUM(D15:D19) -> 1868 | E14: =+D14/$D$9*100 -> 8.119620968 | F14: =SUM(F15:F19) -> 2115 | G14: =+F14/$F$9*100 -> 9.867039888
A15: Panamá | B15: 1352 | C15: 2.659689572 | D15: 621 | E15: =D15/D$9*100 -> 2.699295836 | F15: 731 | G15: =F15/F$9*100 -> 3.41031024
A16: Nicaragua | B16: 1335 | C16: 2.626246729 | D16: 664 | E16: 2.886203599 | F16: 671 | G16: 3.130394215
A17: Guatemala | B17: 605 | C17: 1.190171739 | D17: 252 | E17: 1.095366426 | F17: 353 | G17: 1.646839282
A18: El Salvador | B18: =D18+F18 -> 381 | C18: 0.7495131116 | D18: 169 | E18: 0.7345909763 | F18: 212 | G18: 0.9890366223
A19: Honduras | B19: =D19+F19 -> 310 | C19: 0.6098400645 | D19: 162 | E19: 0.7041641311 | F19: 148 | G19: 0.6904595288
A20: Caribe | B20: =SUM(B21:B23) -> 229 | C20: 0.4504947573 | D20: =SUM(D21:D23) -> 116 | E20: 0.5042162914 | F20: =SUM(F21:F23) -> 113 | G20: 0.5271751808
A21: República Dominicana | B21: =D21+F21 -> 169 | C21: 0.3324611965 | D21: 89 | E21: 0.3868556029 | F21: 80 | G21: 0.3732213669
A22: Cuba | B22: =D22+F22 -> 44 | C22: 0.08655794464 | D22: 21 | E22: 0.09128053551 | F22: 23 | G22: 0.107301143
A23: Jamaica | B23: =D23+F23 -> 16 | C23: 0.03147561623 | D23: 6 | E23: 0.026080153 | F23: 10 | G23: 0.04665267087
A24: Sur Ámerica | B24: =SUM(B25:B33) -> 2172 | C24: 4.272814904 | D24: =SUM(D25:D33) -> 1044 | E24: 4.537946623 | F24: =SUM(F25:F33) -> 1128 | G24: 5.262421274
A25: Colombia | B25: =D25+F25 -> 929 | C25: 1.827552968 | D25: 426 | E25: 1.851690863 | F25: 503 | G25: 2.346629345
A26: Chile | B26: 301 | C26: 0.5921350304 | D26: 143 | E26: 0.6215769799 | F26: 158 | G26: 0.7371121997
A27: Argentina | B27: 269 | C27: 0.5291837979 | D27: 131 | E27: 0.5694166739 | F27: 138 | G27: 0.6438068579
A28: Perú | B28: 239 | C28: 0.4701670175 | D28: 122 | E28: 0.5302964444 | F28: 117 | G28: 0.5458362491
A29: Ecuador | B29: 198 | C29: 0.3895107509 | D29: 89 | E29: 0.3868556029 | F29: 109 | G29: 0.5085141124
A30: Brasil | B30: 120 | C30: 0.2360671218 | D30: 70 | E30: 0.3042684517 | F30: 50 | G30: 0.2332633543
A31: Bolivia | B31: 47 | C31: 0.09245962269 | D31: 22 | E31: 0.09562722768 | F31: 25 | G31: 0.1166316772
A32: Paraguay | B32: 38 | C32: 0.07475458855 | D32: 21 | E32: 0.09128053551 | F32: 17 | G32: 0.07930954047
A33: Uruguay | B33: 31 | C33: 0.06098400645 | D33: 20 | E33: 0.08693384335 | F33: 11 | G33: 0.05131793795
A34: Europa | B34: =D34+F34 -> 5332 | C34: 10.48924911 | D34: =SUM(D35:D44) -> 2420 | E34: 10.51899504 | F34: =SUM(F35:F44) -> 2912 | G34: 13.58525776
A35: España | B35: 1450 | C35: 2.852477721 | D35: 652 | E35: 2.834043293 | F35: 798 | G35: 3.722883135
A36: Alemania | B36: 973 | C36: 1.914110912 | D36: 501 | E36: 2.177692776 | F36: 472 | G36: 2.202006065
A37: Francia | B37: 569 | C37: 1.119351602 | D37: 236 | E37: 1.025819351 | F37: 333 | G37: 1.55353394
A38: Suiza | B38: 490 | C38: 0.9639407472 | D38: 216 | E38: 0.9388855081 | F38: 274 | G38: 1.278283182
A39: Reino Unido | B39: 565 | C39: 1.111482698 | D39: 252 | E39: 1.095366426 | F39: 313 | G39: 1.460228598
A40: Italia | B40: 429 | C40: 0.8439399603 | D40: 158 | E40: 0.6867773624 | F40: 271 | G40: 1.26428738
A41: Holanda | B41: 392 | C41: 0.7711525977 | D41: 172 | E41: 0.7476310528 | F41: 220 | G41: 1.026358759
A42: Bélgica | B42: 218 | C42: 0.4288552712 | D42: 103 | E42: 0.4477092932 | F42: 115 | G42: 0.536505715
A43: Austria | B43: 191 | C43: 0.3757401688 | D43: 96 | E43: 0.4172824481 | F43: 95 | G43: 0.4432003732
A44: Rusia | B44: 55 | C44: 0.1081974308 | D44: 34 | E44: 0.1477875337 | F44: 21 | G44: 0.09797060882
A45: Asia | B45: =D45+F45 -> 657 | C45: =B45/B$9*100 -> 1.292467492 | D45: =SUM(D46:D55) -> 334 | E45: =D45/D$9*100 -> 1.451795184 | F45: =SUM(F46:F55) -> 323 | G45: =F45/F$9*100 -> 1.506881269
A46: China | B46: =D46+F46 -> 155 | C46: 0.3049200323 | D46: 91 | E46: 0.3955489872 | F46: 64 | G46: 0.2985770935
A47: Israel | B47: 159 | C47: 0.3127889363 | D47: 73 | E47: 0.3173085282 | F47: 86 | G47: 0.4012129694
A48: Japón | B48: 119 | C48: 0.2340998957 | D48: 57 | E48: 0.2477614535 | F48: 62 | G48: 0.2892465594
A49: Singapur | B49: 49 | C49: 0.09639407472 | D49: 26 | E49: 0.1130139963 | F49: 23 | G49: 0.107301143
A50: Corea | B50: 56 | C50: 0.1101646568 | D50: 25 | E50: 0.1086673042 | F50: 31 | G50: 0.1446232797
A51: Qatar | B51: 47 | C51: 0.09245962269 | D51: 23 | E51: 0.09997391985 | F51: 24 | G51: 0.1119664101
A52: Emiratos Árabes Unidos | B52: =D52+F52 -> 46 | C52: 0.09049239667 | D52: 25 | E52: 0.1086673042 | F52: 21 | G52: 0.09797060882
A53: India | B53: 12 | C53: 0.02360671218 | D53: 6 | E53: 0.026080153 | F53: 6 | G53: 0.02799160252
A54: Turquía | B54: =D54+F54 -> 8 | C54: 0.01573780812 | D54: 4 | E54: 0.01738676867 | F54: 4 | G54: 0.01866106835
A55: Indonesia | B55: 6 | C55: 0.01180335609 | D55: 4 | E55: 0.01738676867 | F55: 2 | G55: 0.009330534173
A56: Oceanía | B56: 147 | C56: 0.2891822241 | D56: =SUM(D57) -> 72 | E56: 0.312961836 | F56: =SUM(F57) -> 75 | G56: 0.3498950315
A57: Australia | B57: 147 | C57: 0.2891822241 | D57: 72 | E57: 0.312961836 | F57: 75 | G57: 0.3498950315
A58: Africa | B58: 8 | C58: 0.01573780812 | D58: =SUM(D59) -> 4 | E58: 0.01738676867 | F58: =SUM(F59) -> 4 | G58: 0.01866106835
A59: Kenia | B59: 8 | C59: 0.01573780812 | D59: 4 | E59: 0.01738676867 | F59: 4 | G59: 0.01866106835
A62: 1/ Personas costarricenses inscritas que pueden ejercer el voto en extranjero para designar los puestos de Presidencia y Vicepresidencias, así como en consultas populares de orden nacional, según el artículo 187 del Código Electoral.
A63: Fuente: Sección Padrón Electoral del Tribunal Supremo de Elecciones.

Sheet 7
A2: CUADRO 7
A3: COSTA RICA: ELECTORADO EN EL EXTRANJERO1/
A4: POR SEXO, SEGÚN CONSULADO, ELECCIONES 6 DE FEBRERO 2022
A6: Consulado | B6: Total | D6: Hombres | F6: Mujeres
B7: Absoluto | C7: % | D7: Absoluto | E7: % | F7: Absoluto | G7: %
A9: Total | B9: =SUM(B11:B62) -> 50833 | C9: =B9/B$9*100 -> 100 | D9: =SUM(D11:D62) -> 26038 | E9: =D9/D$9*100 -> 100 | F9: =SUM(F11:F62) -> 24795 | G9: =F9/F$9*100 -> 100
A11: NUEVA YORK | B11: 14230 | C11: 27.99362619 | D11: 8394 | E11: 32.23749904 | F11: 5836 | G11: 23.53700343
A12: MIAMI | B12: 5536 | C12: 10.89056322 | D12: 2608 | E12: 10.01613027 | F12: 2928 | G12: 11.80883243
A13: LOS ÁNGELES | B13: 5232 | C13: 10.29252651 | D13: 2360 | E13: 9.063676166 | F13: 2872 | G13: 11.58298044
A14: ATLANTA | B14: 3686 | C14: 7.25119509 | D14: 1891 | E14: 7.262462555 | F14: 1795 | G14: 7.239362775
A15: HOUSTON | B15: 2762 | C15: 5.433478252 | D15: 1376 | E15: 5.284584069 | F15: 1386 | G15: 5.589836661
A16: WASHINGTON | B16: 2643 | C16: 5.199378357 | D16: 1379 | E16: 5.296105692 | F16: 1264 | G16: 5.097801976
A17: MADRID | B17: 1450 | C17: 2.852477721 | D17: 652 | E17: 2.504032568 | F17: 798 | G17: 3.218390805
A18: CHICAGO | B18: 1428 | C18: 2.809198749 | D18: 738 | E18: 2.834319072 | F18: 690 | G18: 2.782819117
A19: MÉXICO | B19: 1281 | C19: 2.520016525 | D19: 603 | E19: 2.315846071 | F19: 678 | G19: 2.734422263
A20: MANAGUA | B20: 1164 | C20: 2.289851081 | D20: 587 | E20: 2.254397419 | F20: 577 | G20: 2.327082073
A21: CIUDAD DE PANAMÁ | B21: 1051 | C21: 2.067554541 | D21: 494 | E21: 1.89722713 | F21: 557 | G21: 2.246420649
A22: BERLÍN | B22: 973 | C22: 1.914110912 | D22: 501 | E22: 1.924110915 | F22: 472 | G22: 1.903609599
A23: BOGOTÁ | B23: 929 | C23: 1.827552968 | D23: 426 | E23: 1.636070359 | F23: 503 | G23: 2.028634805
A24: TORONTO | B24: 875 | C24: 1.721322763 | D24: 485 | E24: 1.862662263 | F24: 390 | G24: 1.572897762
A25: OTTAWA | B25: 632 | C25: 1.243286841 | D25: 346 | E25: 1.328827099 | F25: 286 | G25: 1.153458359
A26: GUATEMALA | B26: 605 | C26: 1.190171739 | D26: 252 | E26: 0.9678162685 | F26: 353 | G26: 1.423674128
A27: PARÍS | B27: 569 | C27: 1.119351602 | D27: 236 | E27: 0.9063676166 | F27: 333 | G27: 1.343012704
A28: LONDRES | B28: 565 | C28: 1.111482698 | D28: 252 | E28: 0.9678162685 | F28: 313 | G28: 1.262351281
A29: BERNA | B29: 490 | C29: 0.9639407472 | D29: 216 | E29: 0.8295568016 | F29: 274 | G29: 1.105061504
A30: ROMA | B30: 429 | C30: 0.8439399603 | D30: 158 | E30: 0.6068054382 | F30: 271 | G30: 1.092962291
A31: LA HAYA | B31: 392 | C31: 0.7711525977 | D31: 172 | E31: 0.6605730087 | F31: 220 | G31: 0.8872756604
A32: SAN SALVADOR | B32: 381 | C32: 0.7495131116 | D32: 169 | E32: 0.6490513864 | F32: 212 | G32: 0.8550110909
A33: TEGUCIGALPA | B33: 310 | C33: 0.6098400645 | D33: 162 | E33: 0.6221676012 | F33: 148 | G33: 0.5968945352
A34: SANTIAGO | B34: 301 | C34: 0.5921350304 | D34: 143 | E34: 0.549197327 | F34: 158 | G34: 0.637225247
A35: DAVID | B35: 301 | C35: 0.5921350304 | D35: 127 | E35: 0.487748675 | F35: 174 | G35: 0.701754386
A36: BUENOS AIRES | B36: 269 | C36: 0.5291837979 | D36: 131 | E36: 0.503110838 | F36: 138 | G36: 0.5565638234
A37: LIMA | B37: 239 | C37: 0.4701670175 | D37: 122 | E37: 0.4685459713 | F37: 117 | G37: 0.4718693285
A38: BRUSELAS | B38: 218 | C38: 0.4288552712 | D38: 103 | E38: 0.3955756971 | F38: 115 | G38: 0.4638031861
A39: QUITO | B39: 198 | C39: 0.3895107509 | D39: 89 | E39: 0.3418081266 | F39: 109 | G39: 0.439604759
A40: VIENA | B40: 191 | C40: 0.3757401688 | D40: 96 | E40: 0.3686919118 | F40: 95 | G40: 0.3831417625
A41: CHINANDEGA | B41: 171 | C41: 0.3363956485 | D41: 77 | E41: 0.2957216376 | F41: 94 | G41: 0.3791086913
A42: SANTO DOMINGO | B42: 169 | C42: 0.3324611965 | D42: 89 | E42: 0.3418081266 | F42: 80 | G42: 0.3226456947
A43: TEL AVIV | B43: 159 | C43: 0.3127889363 | D43: 73 | E43: 0.2803594746 | F43: 86 | G43: 0.3468441218
A44: CANBERRA | B44: 147 | C44: 0.2891822241 | D44: 72 | E44: 0.2765189339 | F44: 75 | G44: 0.3024803388
A45: BRASILIA | B45: 120 | C45: 0.2360671218 | D45: 70 | E45: 0.2688378524 | F45: 50 | G45: 0.2016535592
A46: TOKIO | B46: 119 | C46: 0.2340998957 | D46: 57 | E46: 0.2189108226 | F46: 62 | G46: 0.2500504134
A47: BEIJING | B47: 109 | C47: 0.2144276356 | D47: 65 | E47: 0.2496351486 | F47: 44 | G47: 0.1774551321
A48: SEÚL | B48: 56 | C48: 0.1101646568 | D48: 25 | E48: 0.0960135187 | F48: 31 | G48: 0.1250252067
A49: MOSCÚ | B49: 55 | C49: 0.1081974308 | D49: 34 | E49: 0.1305783854 | F49: 21 | G49: 0.08469449486
A50: SINGAPUR | B50: 49 | C50: 0.09639407472 | D50: 26 | E50: 0.09985405945 | F50: 23 | G50: 0.09276063723
A51: DOHA | B51: 47 | C51: 0.09245962269 | D51: 23 | E51: 0.08833243721 | F51: 24 | G51: 0.09679370841
A52: LA PAZ | B52: 47 | C52: 0.09245962269 | D52: 22 | E52: 0.08449189646 | F52: 25 | G52: 0.1008267796
A53: SHANGHÁI | B53: 46 | C53: 0.09049239667 | D53: 26 | E53: 0.09985405945 | F53: 20 | G53: 0.08066142367
A54: ABU DABI | B54: 46 | C54: 0.09049239667 | D54: 25 | E54: 0.0960135187 | F54: 21 | G54: 0.08469449486
A55: LA HABANA | B55: 44 | C55: 0.08655794464 | D55: 21 | E55: 0.08065135571 | F55: 23 | G55: 0.09276063723
A56: ASUNCIÓN | B56: 38 | C56: 0.07475458855 | D56: 21 | E56: 0.08065135571 | F56: 17 | G56: 0.06856221012
A57: MONTEVIDEO | B57: 31 | C57: 0.06098400645 | D57: 20 | E57: 0.07681081496 | F57: 11 | G57: 0.04436378302
A58: KINGSTON | B58: 16 | C58: 0.03147561623 | D58: 6 | E58: 0.02304324449 | F58: 10 | G58: 0.04033071184
A59: NUEVA DELHI | B59: 12 | C59: 0.02360671218 | D59: 6 | E59: 0.02304324449 | F59: 6 | G59: 0.0241984271
A60: ANKARA | B60: 8 | C60: 0.01573780812 | D60: 4 | E60: 0.01536216299 | F60: 4 | G60: 0.01613228473
A61: NAIROBI | B61: 8 | C61: 0.01573780812 | D61: 4 | E61: 0.01536216299 | F61: 4 | G61: 0.01613228473
A62: YAKARTA | B62: 6 | C62: 0.01180335609 | D62: 4 | E62: 0.01536216299 | F62: 2 | G62: 0.008066142367
A65: 1/ Personas costarricenses inscritas que pueden ejercer el voto en extranjero para designar los puestos de Presidencia y Vicepresidencias, así como en consultas populares de orden nacional, según el artículo 187 del Código Electoral.
A66: Fuente: Sección Padrón Electoral del Tribunal Supremo de Elecciones.

Sheet 8
A2: CUADRO 8
A3: COSTA RICA: TOTAL DE ELECTORES NATURALIZADOS, POR PAÍS DE ORIGEN
A4: SEGÚN SEXO Y GRUPOS DE EDAD, ELECCIONES 6 DE FEBRERO DE 2022
A6: SEXO Y GRUPOS DE EDAD | B6: PAÍS DE ORIGEN
B7: Total | C7: Nicaragua | D7: Colombia | E7: El Salvador | F7: Cuba | G7: China | H7: Perú | I7: Panamá | J7: República Dominicana | K7: Venezuela | L7: Estados Unidos | M7: Resto de países
A9: COSTA RICA | B9: =SUM(C9:M9) -> 79676 | C9: =+C19+C29 -> 42286 | D9: 10469 | E9: 4643 | F9: 2599 | G9: 2189 | H9: 2088 | I9: 1789 | J9: 1709 | K9: =+K19+K29 -> 1623 | L9: =+L19+L29 -> 1578 | M9: 8703
A10: Menos de 30 | B10: =SUM(C10:M10) -> 6085 | C10: =+C20+C30 -> 3307 | D10: 1346 | E10: 154 | F10: 153 | G10: 114 | H10: 102 | I10: 48 | J10: =+J20+J30 -> 179 | K10: 266 | L10: =+L20+L30 -> 46 | M10: 370
A11: De 30 a 39 | B11: 14066 | C11: =+C21+C31 -> 8859 | D11: 1882 | E11: 353 | F11: 325 | G11: 342 | H11: 282 | I11: 150 | J11: 351 | K11: 258 | L11: =+L21+L31 -> 137 | M11: 1127
A12: De 40 a 49 | B12: 20006 | C12: =+C22+C32 -> 10955 | D12: 2996 | E12: 1075 | F12: 492 | G12: 557 | H12: 546 | I12: 289 | J12: 567 | K12: 458 | L12: =+L22+L32 -> 268 | M12: 1803
A13: De 50 a 59 | B13: 17183 | C13: =+C23+C33 -> 8391 | D13: 2433 | E13: 1111 | F13: 722 | G13: 484 | H13: 472 | I13: 506 | J13: 453 | K13: 349 | L13: =+L23+L33 -> 356 | M13: 1906
A14: De 60 a 69 | B14: 11165 | C14: =+C24+C34 -> 5059 | D14: 1170 | E14: 1050 | F14: 476 | G14: 317 | H14: 423 | I14: 373 | J14: 126 | K14: 178 | L14: =+L24+L34 -> 350 | M14: 1643
A15: De 70 a 79 | B15: 7175 | C15: =+C25+C35 -> 3377 | D15: 494 | E15: 647 | F15: 280 | G15: 238 | H15: 211 | I15: 285 | J15: 30 | K15: 91 | L15: =+L25+L35 -> 323 | M15: 1199
A16: De 80 a 89 | B16: 3068 | C16: =+C26+C36 -> 1713 | D16: 129 | E16: 220 | F16: 119 | G16: 105 | H16: 48 | I16: 107 | J16: 3 | K16: 18 | L16: =+L26+L36 -> 82 | M16: 524
A17: De 90 a 99 | B17: 874 | C17: =+C27+C37 -> 582 | D17: 19 | E17: 33 | F17: 30 | G17: 30 | H17: 4 | I17: 30 | J17: 0 | K17: 5 | L17: =+L27+L37 -> 15 | M17: 126
A18: 100 y Más | B18: 54 | C18: =+C28+C38 -> 43 | D18: 0 | E18: 0 | F18: 2 | G18: 2 | H18: 0 | I18: 1 | J18: 0 | K18: 0 | L18: =+L28+L38 -> 1 | M18: 5
A19: HOMBRES | B19: =SUM(C19:M19) -> 34558 | C19: 16474 | D19: 4874 | E19: 2028 | F19: 1453 | G19: 1189 | H19: 1109 | I19: 768 | J19: 472 | K19: 761 | L19: 1036 | M19: 4394
A20: Menos de 30 | B20: =SUM(C20:M20) -> 2736 | C20: 1351 | D20: 691 | E20: 89 | F20: 94 | G20: 62 | H20: 45 | I20: 12 | J20: 82 | K20: 125 | L20: 29 | M20: 156
A21: De 30 a 39 | B21: 5491 | C21: 3118 | D21: 833 | E21: 158 | F21: 168 | G21: 208 | H21: 146 | I21: 49 | J21: 102 | K21: 109 | L21: 59 | M21: 541
A22: De 40 a 49 | B22: 8340 | C22: 4157 | D22: 1333 | E22: 487 | F22: 253 | G22: 325 | H22: 268 | I22: 118 | J22: 115 | K22: 207 | L22: 151 | M22: 926
A23: De 50 a 59 | B23: 7820 | C23: 3532 | D23: 1144 | E23: 477 | F23: 426 | G23: 246 | H23: 243 | I23: 239 | J23: 106 | K23: 172 | L23: 231 | M23: 1004
A24: De 60 a 69 | B24: 4829 | C24: 1796 | D24: 551 | E24: 420 | F24: 289 | G24: 171 | H24: 238 | I24: 159 | J24: 50 | K24: 89 | L24: 246 | M24: 820
A25: De 70 a 79 | B25: 3492 | C25: 1459 | D25: 255 | E25: 287 | F25: 162 | G25: 123 | H25: 139 | I25: 124 | J25: 16 | K25: 45 | L25: 249 | M25: 633
A26: De 80 a 89 | B26: 1443 | C26: 779 | D26: 62 | E26: 96 | F26: 52 | G26: 45 | H26: 27 | I26: 54 | J26: 1 | K26: 12 | L26: 61 | M26: 254
A27: De 90 a 99 | B27: 386 | C27: 263 | D27: 5 | E27: 14 | F27: 9 | G27: 8 | H27: 3 | I27: 13 | J27: 0 | K27: 2 | L27: 10 | M27: 59
A28: 100 y Más | B28: 21 | C28: 19 | D28: 0 | E28: 0 | F28: 0 | G28: 1 | H28: 0 | I28: 0 | J28: 0 | K28: 0 | L28: 0 | M28: 1
A29: MUJERES | B29: =SUM(C29:M29) -> 45118 | C29: 25812 | D29: 5595 | E29: 2615 | F29: 1146 | G29: 1000 | H29: 979 | I29: 1021 | J29: 1237 | K29: 862 | L29: 542 | M29: 4309
A30: Menos de 30 | B30: =SUM(C30:M30) -> 3349 | C30: 1956 | D30: 655 | E30: 65 | F30: 59 | G30: 52 | H30: 57 | I30: 36 | J30: 97 | K30: 141 | L30: 17 | M30: 214
A31: De 30 a 39 | B31: 8575 | C31: 5741 | D31: 1049 | E31: 195 | F31: 157 | G31: 134 | H31: 136 | I31: 101 | J31: 249 | K31: 149 | L31: 78 | M31: 586
A32: De 40 a 49 | B32: 11666 | C32: 6798 | D32: 1663 | E32: 588 | F32: 239 | G32: 232 | H32: 278 | I32: 171 | J32: 452 | K32: 251 | L32: 117 | M32: 877
A33: De 50 a 59 | B33: 9363 | C33: 4859 | D33: 1289 | E33: 634 | F33: 296 | G33: 238 | H33: 229 | I33: 267 | J33: 347 | K33: 177 | L33: 125 | M33: 902
A34: De 60 a 69 | B34: 6336 | C34: 3263 | D34: 619 | E34: 630 | F34: 187 | G34: 146 | H34: 185 | I34: 214 | J34: 76 | K34: 89 | L34: 104 | M34: 823
A35: De 70 a 79 | B35: 3683 | C35: 1918 | D35: 239 | E35: 360 | F35: 118 | G35: 115 | H35: 72 | I35: 161 | J35: 14 | K35: 46 | L35: 74 | M35: 566
A36: De 80 a 89 | B36: 1625 | C36: 934 | D36: 67 | E36: 124 | F36: 67 | G36: 60 | H36: 21 | I36: 53 | J36: 2 | K36: 6 | L36: 21 | M36: 270
A37: De 90 a 99 | B37: 488 | C37: 319 | D37: 14 | E37: 19 | F37: 21 | G37: 22 | H37: 1 | I37: 17 | J37: 0 | K37: 3 | L37: 5 | M37: 67
A38: 100 y Más | B38: 33 | C38: 24 | D38: 0 | E38: 0 | F38: 2 | G38: 1 | H38: 0 | I38: 1 | J38: 0 | K38: 0 | L38: 1 | M38: 4
A41: Fuente: Padrón Nacional Electoral, Tribunal Supremo de Elecciones.

Sheet 9
A2: CUADRO 9
A3: COSTA RICA: PROMEDIO, MEDIANA Y MODA1/ DE LA EDAD DEL ELECTORADO, POR SEXO, SEGÚN PROVINCIA
A4: CANTÓN Y EXTRANJERO, ELECCIONES 6 DE FEBRERO DE 2022
A6: PROVINCIA, CANTÓN Y EXTRANJERO | B6: TOTAL | E6: HOMBRES | H6: MUJERES
B7: PROMEDIO | C7: MEDIANA | D7: MODA | E7: PROMEDIO | F7: MEDIANA | G7: MODA | H7: PROMEDIO | I7: MEDIANA | J7: MODA
A8: COSTA RICA | B8: 43.84462132 | C8: 41 | D8: 36 | E8: 43.32152852 | F8: 41 | G8: 36 | H8: 44.36155658 | I8: 42 | J8: 36
A9: SAN JOSÉ | B9: =+B17 -> 44.73553239 | C9: =+C17 -> 42 | D9: 32 | E9: 43.80908707 | F9: 41 | G9: 32 | H9: 45.61353405 | I9: 43 | J9: 32
A10: ALAJUELA | B10: =+B38 -> 43.52099188 | C10: =+C38 -> 40 | D10: 36 | E10: 43.0580392 | F10: 40 | G10: 36 | H10: 43.98911519 | I10: 41 | J10: 36
A11: CARTAGO | B11: =+B55 -> 43.75233722 | C11: =+C55 -> 41 | D11: 32 | E11: 43.2363247 | F11: 41 | G11: 36 | H11: 44.25934471 | I11: 42 | J11: 35
A12: HEREDIA | B12: =+B64 -> 44.08602359 | C12: =+C64 -> 41 | D12: 36 | E12: 43.34297637 | F12: 41 | G12: 36 | H12: 44.80117175 | I12: 42 | J12: 36
A13: GUANACASTE | B13: =+B75 -> 43.58404234 | C13: =+C75 -> 41 | D13: 36 | E13: 43.36132718 | F13: 40 | G13: 36 | H13: 43.80933885 | I13: 41 | J13: 36
A14: PUNTARENAS | B14: =+B87 -> 43.11941392 | C14: =+C87 -> 40 | D14: 32 | E14: 43.24683231 | F14: 40 | G14: 26 | H14: 42.98671866 | I14: 40 | J14: 32
A15: LIMÓN | B15: =+B99 -> 41.88056443 | C15: =+C99 -> 39 | D15: 21 | E15: 42.13243683 | F15: 39 | G15: 22 | H15: 41.61598354 | I15: 38 | J15: 21
A16: EXTRANJERO | B16: =+B106 -> 44.41347156 | C16: =+C106 -> 43 | D16: 39 | E16: 43.94001075 | F16: 43 | G16: 39 | H16: 44.91066747 | I16: 43 | J16: 39
A17: SAN JOSÉ | B17: 44.73553239 | C17: 42 | D17: 32 | E17: 43.80908707 | F17: 41 | G17: 32 | H17: 45.61353405 | I17: 43 | J17: 32
A18: SAN JOSÉ | B18: 45.82079031 | C18: 43 | D18: 36 | E18: 44.42870683 | F18: 42 | G18: 33 | H18: 47.12501731 | I18: 44 | J18: 36
A19: ESCAZÚ | B19: 45.25651243 | C19: 43 | D19: 31 | E19: 44.43845247 | F19: 42 | G19: 31 | H19: 46.03568802 | I19: 44 | J19: 31
A20: DESAMPARADOS | B20: 43.75815671 | C20: 41 | D20: 32 | E20: 42.89620736 | F20: 40 | G20: 34 | H20: 44.5834306 | I20: 42 | J20: 32
A21: PURISCAL | B21: 44.99458864 | C21: 42 | D21: 32 | E21: 44.7350883 | F21: 42 | G21: 32 | H21: 45.25535762 | I21: 42 | J21: 32
A22: TARRAZÚ | B22: 43.50539073 | C22: 40 | D22: 26 | E22: 43.58130017 | F22: 40 | G22: 26 | H22: 43.42949323 | I22: 40 | J22: 26
A23: ASERRÍ | B23: 43.2327974 | C23: 41 | D23: 36 | E23: 42.74163917 | F23: 40 | G23: 35 | H23: 43.7227758 | I23: 41 | J23: 28
A24: MORA | B24: 44.2546999 | C24: 42 | D24: 33 | E24: 44.04221891 | F24: 41 | G24: 33 | H24: 44.45986948 | I24: 42 | J24: 31
A25: GOICOECHEA | B25: 45.4074408 | C25: 42 | D25: 32 | E25: 44.27064231 | F25: 41 | G25: 32 | H25: 46.44598724 | I25: 44 | J25: 35
A26: SANTA ANA | B26: 44.1673834 | C26: 42 | D26: 40 | E26: 43.57536561 | F26: 42 | G26: 36 | H26: 44.72457143 | I26: 43 | J26: 42
A27: ALAJUELITA | B27: 42.17719641 | C27: 39 | D27: 25 | E27: 41.31608694 | F27: 38 | G27: 25 | H27: 43.02164937 | I27: 40 | J27: 21
A28: VÁZQUEZ DE CORONADO | B28: 44.34056086 | C28: 42 | D28: 36 | E28: 43.45094843 | F28: 41 | G28: 36 | H28: 45.16471032 | I28: 43 | J28: 32
A29: ACOSTA | B29: 44.22788732 | C29: 42 | D29: 31 | E29: 44.40574447 | F29: 42 | G29: 30 | H29: 44.04132518 | I29: 42 | J29: 31
A30: TIBÁS | B30: 46.83427662 | C30: 44 | D30: 32 | E30: 45.58164229 | F30: 43 | G30: 32 | H30: 47.93639658 | I30: 46 | J30: 32
A31: MORAVIA | B31: 45.8185544 | C31: 43 | D31: 32 | E31: 44.49853305 | F31: 42 | G31: 32 | H31: 47.02771479 | I31: 45 | J31: 34
A32: MONTES DE OCA | B32: 46.71671967 | C32: 43 | D32: 32 | E32: 45.22867891 | F32: 42 | G32: 30.0a | H32: 48.03077192 | I32: 45 | J32: 35
A33: TURRUBARES | B33: 45.12907117 | C33: 43 | D33: 22 | E33: 45.53016241 | F33: 44 | G33: 35 | H33: 44.69472362 | I33: 42 | J33: 36
A34: DOTA | B34: 44.70227312 | C34: 42 | D34: 27 | E34: 44.64157459 | F34: 42 | G34: 27 | H34: 44.76175973 | I34: 42 | J34: 33
A35: CURRIDABAT | B35: 45.32713091 | C35: 43 | D35: 32 | E35: 44.19574762 | F35: 42 | G35: 30 | H35: 46.36012026 | I35: 44 | J35: 32
A36: PÉREZ ZELEDÓN | B36: 43.22500128 | C36: 40 | D36: 29 | E36: 42.91256887 | F36: 39 | G36: 32 | H36: 43.53632918 | I36: 40 | J36: 29
A37: LEÓN CORTÉS CASTRO | B37: 43.05361452 | C37: 40 | D37: 31 | E37: 42.96310039 | F37: 39 | G37: 31 | H37: 43.1474359 | I37: 40 | J37: 30
A38: ALAJUELA | B38: 43.52099188 | C38: 40 | D38: 36 | E38: 43.0580392 | F38: 40 | G38: 36 | H38: 43.98911519 | I38: 41 | J38: 36
A39: ALAJUELA | B39: 43.70648741 | C39: 41 | D39: 36 | E39: 42.88666949 | F39: 40 | G39: 32 | H39: 44.53889434 | I39: 42 | J39: 36
A40: SAN RAMÓN | B40: 44.31941164 | C40: 41 | D40: 31 | E40: 43.85387283 | F40: 41 | G40: 31 | H40: 44.77775849 | I40: 42 | J40: 31
A41: GRECIA | B41: 44.41603355 | C41: 42 | D41: 36 | E41: 43.87822996 | F41: 41 | G41: 31.0a | H41: 44.94036316 | I41: 42 | J41: 36
A42: SAN MATEO | B42: 46.59756341 | C42: 44 | D42: 26 | E42: 46.36705426 | F42: 44 | G42: 24 | H42: 46.84260404 | I42: 45 | J42: 26
A43: ATENAS | B43: 45.62364068 | C43: 43 | D43: 33.0a | E43: 45.24576969 | F43: 43 | G43: 36 | H43: 46.00082169 | I43: 44 | J43: 31
A44: NARANJO | B44: 44.18239838 | C44: 41 | D44: 28 | E44: 43.52400193 | F44: 40 | G44: 33 | H44: 44.82653844 | I44: 42 | J44: 35
A45: PALMARES | B45: 45.03699399 | C45: 42 | D45: 36 | E45: 44.4630426 | F45: 41 | G45: 36 | H45: 45.59779397 | I45: 43 | J45: 36
A46: POÁS | B46: 43.53057249 | C46: 41 | D46: 32 | E46: 43.1044586 | F46: 40 | G46: 32 | H46: 43.95431129 | I46: 41 | J46: 36
A47: OROTINA | B47: 44.12841855 | C47: 41 | D47: 32 | E47: 43.96674613 | F47: 41 | G47: 32 | H47: 44.28932384 | I47: 41 | J47: 22
A48: SAN CARLOS | B48: 42.0853402 | C48: 39 | D48: 22 | E48: 41.89157149 | F48: 38 | G48: 22 | H48: 42.28430063 | I48: 39 | J48: 20
A49: ZARCERO | B49: 44.07514328 | C49: 41 | D49: 29 | E49: 43.85640474 | F49: 41 | G49: 29 | H49: 44.28783755 | I49: 41 | J49: 32
A50: SARCHÍ | B50: 44.23841962 | C50: 41 | D50: 31 | E50: 43.64653157 | F50: 40 | G50: 36 | H50: 44.82892691 | I50: 42 | J50: 31
A51: UPALA | B51: 41.30487459 | C51: 38 | D51: 22 | E51: 41.63080015 | F51: 38 | G51: 22 | H51: 40.95630088 | I51: 37 | J51: 27
A52: LOS CHILES | B52: 40.30932295 | C52: 36 | D52: 21 | E52: 40.85121951 | F52: 37 | G52: 21 | H52: 39.69301896 | I52: 36 | J52: 21
A53: GUATUSO | B53: 43.24842688 | C53: 40 | D53: 20 | E53: 43.69268056 | F53: 41 | G53: 26 | H53: 42.76858639 | I53: 40 | J53: 27
A54: RÍO CUARTO | B54: 41.51769912 | C54: 38 | D54: 20 | E54: 42.12211785 | F54: 39 | G54: 23 | H54: 40.8677686 | I54: 37 | J54: 20
A55: CARTAGO | B55: 43.75233722 | C55: 41 | D55: 32 | E55: 43.2363247 | F55: 41 | G55: 36 | H55: 44.25934471 | I55: 42 | J55: 35
A56: CARTAGO | B56: 44.07987882 | C56: 41 | D56: 32 | E56: 43.30359639 | F56: 41 | G56: 31 | H56: 44.83035152 | I56: 42 | J56: 32
A57: PARAÍSO | B57: 43.2568824 | C57: 40 | D57: 32 | E57: 42.97005404 | F57: 40 | G57: 29 | H57: 43.5408036 | I57: 41 | J57: 32
A58: LA UNIÓN | B58: 43.18064092 | C58: 41 | D58: 32 | E58: 42.55960718 | F58: 40 | G58: 30 | H58: 43.77867341 | I58: 41 | J58: 27
A59: JIMÉNEZ | B59: 44.36726391 | C59: 42 | D59: 35 | E59: 44.45099875 | F59: 42 | G59: 35 | H59: 44.2830692 | I59: 42 | J59: 35
A60: TURRIALBA | B60: 45.14781178 | C60: 43 | D60: 36 | E60: 44.893394 | F60: 42 | G60: 36 | H60: 45.40028095 | I60: 43 | J60: 35
A61: ALVARADO | B61: 42.99008264 | C61: 40 | D61: 31 | E61: 42.89793439 | F61: 40 | G61: 31 | H61: 43.08266481 | I61: 40 | J61: 27
A62: OREAMUNO | B62: 43.16346103 | C62: 41 | D62: 28 | E62: 42.64289892 | F62: 40 | G62: 26 | H62: 43.66928442 | I62: 41 | J62: 28
A63: EL GUARCO | B63: 42.78679509 | C63: 40 | D63: 32 | E63: 42.3229932 | F63: 40 | G63: 35 | H63: 43.27532244 | I63: 41 | J63: 29
A64: HEREDIA | B64: 44.08602359 | C64: 41 | D64: 36 | E64: 43.34297637 | F64: 41 | G64: 36 | H64: 44.80117175 | I64: 42 | J64: 36
A65: HEREDIA | B65: 44.19379213 | C65: 41 | D65: 36 | E65: 43.03183018 | F65: 40 | G65: 31 | H65: 45.26643487 | I65: 43 | J65: 32
A66: BARVA | B66: 43.95442519 | C66: 41 | D66: 36 | E66: 43.25319559 | F66: 41 | G66: 36 | H66: 44.62121212 | I66: 42 | J66: 36
A67: SANTO DOMINGO | B67: 45.91537505 | C67: 44 | D67: 35 | E67: 45.1145698 | F67: 43 | G67: 35 | H67: 46.68184276 | I67: 44 | J67: 37
A68: SANTA BÁRBARA | B68: 43.69250393 | C68: 41 | D68: 29 | E68: 43.12262619 | F68: 41 | G68: 29 | H68: 44.25114187 | I68: 42 | J68: 40
A69: SAN RAFAEL | B69: 44.19472516 | C69: 42 | D69: 36 | E69: 43.50102734 | F69: 41 | G69: 36 | H69: 44.87646267 | I69: 42 | J69: 36
A70: SAN ISIDRO | B70: 44.73810629 | C70: 43 | D70: 31 | E70: 44.04959255 | F70: 42 | G70: 31 | H70: 45.42216054 | I70: 43 | J70: 40
A71: BELÉN | B71: 45.01600973 | C71: 42 | D71: 32 | E71: 44.26809955 | F71: 42 | G71: 32 | H71: 45.74226083 | I71: 43 | J71: 32
A72: FLORES | B72: 44.49455048 | C72: 42 | D72: 39 | E72: 43.61438882 | F72: 41 | G72: 39 | H72: 45.31660603 | I72: 43 | J72: 30
A73: SAN PABLO | B73: 44.279547 | C73: 42 | D73: 36 | E73: 43.29019712 | F73: 41 | G73: 34 | H73: 45.1988501 | I73: 43 | J73: 35
A74: SARAPIQUÍ | B74: 41.20712575 | C74: 38 | D74: 21 | E74: 41.71694687 | F74: 38 | G74: 21 | H74: 40.65789032 | I74: 37 | J74: 22
A75: GUANACASTE | B75: 43.58404234 | C75: 41 | D75: 36 | E75: 43.36132718 | F75: 40 | G75: 36 | H75: 43.80933885 | I75: 41 | J75: 36
A76: LIBERIA | B76: 41.75187588 | C76: 39 | D76: 25 | E76: 41.2625623 | F76: 38 | G76: 25 | H76: 42.23681121 | I76: 39 | J76: 25
A77: NICOYA | B77: 45.22654128 | C77: 43 | D77: 36 | E77: 45.09160305 | F77: 42 | G77: 36 | H77: 45.36274825 | I77: 43 | J77: 29
A78: SANTA CRUZ | B78: 44.52595264 | C78: 42 | D78: 36 | E78: 44.29565063 | F78: 42 | G78: 29 | H78: 44.76213813 | I78: 42 | J78: 37
A79: BAGACES | B79: 43.04483221 | C79: 40 | D79: 20 | E79: 43.02993452 | F79: 40 | G79: 19 | H79: 43.05986248 | I79: 40 | J79: 22
A80: CARRILLO | B80: 43.00349335 | C80: 40 | D80: 21 | E80: 42.56250931 | F80: 40 | G80: 25 | H80: 43.45189394 | I80: 40 | J80: 35
A81: CAÑAS | B81: 42.89450818 | C81: 40 | D81: 25 | E81: 42.40874841 | F81: 39 | G81: 31 | H81: 43.37804403 | I81: 40 | J81: 21
A82: ABANGARES | B82: 44.24819143 | C82: 41 | D82: 29 | E82: 44.26751331 | F82: 42 | G82: 20 | H82: 44.22812987 | I82: 41 | J82: 29
A83: TILARÁN | B83: 45.65232142 | C83: 43 | D83: 36 | E83: 45.48057337 | F83: 43 | G83: 36 | H83: 45.82383225 | I83: 44 | J83: 22
A84: NANDAYURE | B84: 45.52177338 | C84: 43 | D84: 27 | E84: 45.56049274 | F84: 44 | G84: 25 | H84: 45.48122552 | I84: 43 | J84: 27
A85: LA CRUZ | B85: 39.94884755 | C85: 37 | D85: 26 | E85: 40.26287697 | F85: 37 | G85: 25 | H85: 39.62840414 | I85: 36 | J85: 24
A86: HOJANCHA | B86: 44.84027778 | C86: 43 | D86: 29 | E86: 44.86784826 | F86: 42 | G86: 26.0a | H86: 44.81185897 | I86: 43 | J86: 25.0a
A87: PUNTARENAS | B87: 43.11941392 | C87: 40 | D87: 32 | E87: 43.24683231 | F87: 40 | G87: 26 | H87: 42.98671866 | I87: 40 | J87: 32
A88: PUNTARENAS | B88: 43.77189979 | C88: 41 | D88: 27 | E88: 43.62166354 | F88: 41 | G88: 27 | H88: 43.92787171 | I88: 41 | J88: 27
A89: ESPARZA | B89: 44.1518514 | C89: 41 | D89: 26 | E89: 43.8639834 | F89: 41 | G89: 26 | H89: 44.43425873 | I89: 42 | J89: 32
A90: BUENOS AIRES | B90: 41.43161415 | C90: 38 | D90: 22 | E90: 41.8707429 | F90: 38 | G90: 22 | H90: 40.96021656 | I90: 38 | J90: 21
A91: MONTES DE ORO | B91: 45.11321277 | C91: 43 | D91: 29 | E91: 44.89388288 | F91: 42 | G91: 37 | H91: 45.32797663 | I91: 43 | J91: 36
A92: OSA | B92: 43.52803508 | C92: 41 | D92: 32 | E92: 43.87676799 | F92: 41 | G92: 31 | H92: 43.14334971 | I92: 40 | J92: 32
A93: AGUIRRE | B93: 42.43057523 | C93: 39 | D93: 32 | E93: 42.62214427 | F93: 40 | G93: 32 | H93: 42.21877486 | I93: 39 | J93: 32
A94: GOLFITO | B94: 43.27381594 | C94: 41 | D94: 21 | E94: 43.67999509 | F94: 41 | G94: 20 | H94: 42.8397667 | I94: 40 | J94: 37
A95: COTO BRUS | B95: 43.30134831 | C95: 40 | D95: 21 | E95: 43.31354689 | F95: 40 | G95: 20 | H95: 43.28891796 | I95: 40 | J95: 22
A96: PARRITA | B96: 43.31259956 | C96: 40 | D96: 32 | E96: 43.72782288 | F96: 41 | G96: 32 | H96: 42.87359551 | I96: 40 | J96: 32
A97: CORREDORES | B97: 42.42691396 | C97: 40 | D97: 22 | E97: 42.7444543 | F97: 40 | G97: 22 | H97: 42.11323546 | I97: 39 | J97: 22
A98: GARABITO | B98: 40.73530064 | C98: 38 | D98: 35 | E98: 41.40424312 | F98: 39 | G98: 35 | H98: 40.0223071 | I98: 38 | J98: 31
A99: LIMÓN | B99: 41.88056443 | C99: 39 | D99: 21 | E99: 42.13243683 | F99: 39 | G99: 22 | H99: 41.61598354 | I99: 38 | J99: 21
A100: LIMÓN | B100: 42.3965996 | C100: 39 | D100: 21 | E100: 42.45430594 | F100: 39 | G100: 22 | H100: 42.33925991 | I100: 39 | J100: 21
A101: POCOCÍ | B101: 42.22694563 | C101: 39 | D101: 25 | E101: 42.42484412 | F101: 39 | G101: 27 | H101: 42.01430037 | I101: 39 | J101: 25
A102: SIQUIRRES | B102: 42.04216571 | C102: 39 | D102: 36 | E102: 42.42012425 | F102: 39 | G102: 23 | H102: 41.63778382 | I102: 38 | J102: 36
A103: TALAMANCA | B103: 39.6788893 | C103: 36 | D103: 22 | E103: 40.18549468 | F103: 37 | G103: 21 | H103: 39.12944596 | I103: 36 | J103: 22
A104: MATINA | B104: 40.5590561 | C104: 37 | D104: 21 | E104: 41.13328536 | F104: 38 | G104: 20 | H104: 39.93568267 | I104: 37 | J104: 21
A105: GUÁCIMO | B105: 42.08538971 | C105: 39 | D105: 25 | E105: 42.38794014 | F105: 39 | G105: 25 | H105: 41.77282351 | I105: 39 | J105: 24
A106: EXTRANJERO | B106: 44.41347156 | C106: 43 | D106: 39 | E106: 43.94001075 | F106: 43 | G106: 39 | H106: 44.91066747 | I106: 43 | J106: 39
A109: 1/ Promedio: media aritmética, cociente de la suma de las observaciones entre la cantidad de observaciones, se denota  = S xi /n
A110: Mediana: valor que separa en dos grupos las observaciones, ordenadas de menor a mayor.
A111: Moda: valor de la variable que más veces se repite, es decir, el valor con mayor frecuencia absoluta.
A112: a/ Existen varias modas se tomó como el valor de la moda el de menor edad.
A113: Fuente: Sección Padrón Electoral del Tribunal Supremo de Elecciones.

Sheet 10
A1: CUADRO 10
A2: COSTA RICA: NUEVOS ELECTORES 1/ POR SEXO, SEGÚN EDAD AL 6 DE FEBRERO ELECCIONES 6 DE FEBRERO 2022
A4: EDAD | B4: TOTAL | C4: HOMBRES | D4: % | E4: MUJERES | F4: %
A6: TOTAL | B6: =SUM(B7:B16) -> 126525 | C6: =SUM(C7:C16) -> 63363 | D6: =+C6/B6*100 -> 50.07943094 | E6: =SUM(E7:E16) -> 63162 | F6: =+E6/B6*100 -> 49.92056906
A7: 18 AÑOS | B7: =+C7+E7 -> 49126 | C7: 24507 | D7: 49.88600741 | E7: 24619 | F7: 50.11399259
A8: 19 AÑOS | B8: =+C8+E8 -> 67598 | C8: 34750 | D8: 51.40684636 | E8: 32848 | F8: =+E8/B8*100 -> 48.59315364
A9: 20 AÑOS | B9: =+C9+E9 -> 635 | C9: 342 | D9: 53.85826772 | E9: 293 | F9: 46.14173228
A10: NATURALIZADOS | B10: =+C10+E10 -> 9166 | C10: 3764 | D10: 41.06480471 | E10: 5402 | F10: 58.93519529
A13: 1/ Personas nacidas entre 3/2/2002 y 6/2/2004, (rango de nuevos electores por edad) y Naturalizados después del 3/2/2019 y antes del 6/2/2021, empadronados para las elecciones de febrero 2022.
A15: Fuente: Bases de datos de Nacimientos y Padrón Electoral Febrero 2022

Sheet 11
A2: CUADRO 11
A3: COSTA RICA: CANTONES, DISTRITOS ADMINISTRATIVOS Y ELECTORALES
A4: SEGÚN PROVINCIA, ELECCIONES 6 DE FEBRERO DE 2022
A6: PROVINCIA | B6: CANTONES | C6: DISTRITOS
C7: ADMINISTRATIVOS | D7: ELECTORALES
A9: COSTA RICA | B9: =SUM(B11:B17) -> 82 | C9: =SUM(C11:C17) -> 488 | D9: =SUM(D11:D17) -> 2082
A11: SAN JOSÉ | B11: 20 | C11: 123 | D11: 445
A12: ALAJUELA | B12: 16 | C12: 116 | D12: 445
A13: CARTAGO | B13: 8 | C13: 51 | D13: 196
A14: HEREDIA | B14: 10 | C14: 47 | D14: 119
A15: GUANACASTE | B15: 11 | C15: 61 | D15: 300
A16: PUNTARENAS | B16: 11 | C16: 60 | D16: 381
A17: LIMÓN | B17: 6 | C17: 30 | D17: 196
A20: Nota: El Cantón de Monteverde fue creado el 29 de setiembre del 2021, no se considera debido de acuerdo al artículo 143 del Código Electoral "La División territorial administrativa se aplicará al proceso electoral. Para tal efecto, el Poder Ejecutivo deberá formularla y publicarla por lo menos doce meses antes del día señalado para la elección de la Presidencia y Vicepresidencias de la República."
A21: Fuente: Contraloría Electoral del Tribunal Supremo de Elecciones.
A23: Nota: Para voto en el extranjero se incluyen 52 consulados en 42 países.

Sheet 12
A2: CUADRO 12
A3: COSTA RICA: MOVIMIENTOS DE DISTRITOS ELECTORALES EN LA DIVISIÓN TERRITORIAL ELECTORAL
A4: SEGÚN PROVINCIA, ELECCIONES 6 DE FEBRERO DE 2022
A6: PROVINCIA | B6: DISTRITOS ADMINISTRATIVOS CREADOS | C6: DISTRITOS ELECTORALES
C7: CREADOS | D7: REUBICADOS | E7: MODIFICADOS
A9: COSTA RICA | B9: =SUM(B10:B17) -> 1 | C9: =SUM(C10:C17) -> 5 | D9: 5 | E9: 2
A11: SAN JOSÉ | B11: 0 | C11: 1 | D11: 0 | E11: 0
A12: ALAJUELA | B12: 0 | C12: 1 | D12: 0 | E12: 0
A13: CARTAGO | B13: 0 | C13: 0 | D13: 0 | E13: 0
A14: HEREDIA | B14: 0 | C14: 3 | D14: 0 | E14: 0
A15: GUANACASTE | B15: 1 | C15: 0 | D15: 5 | E15: 0
A16: PUNTARENAS | B16: 0 | C16: 0 | D16: 0 | E16: 2
A17: LIMÓN | B17: 0 | C17: 0 | D17: 0 | E17: 0
A20: Nota: Para las elecciones de febrero 2022 no se refundieron o eliminaron distritos electorales.
A22: Fuente: Contraloría Electoral del Tribunal Supremo de Elecciones.

Sheet 13
A2: CUADRO 13
A3: COSTA RICA: MOVIMIENTOS DE POBLADOS EN LA DIVISIÓN TERRITORIAL ELECTORAL
A4: SEGÚN PROVINCIA, ELECCIONES 6 DE FEBRERO DE 2022
A6: PROVINCIA | B6: POBLADOS
B7: TOTAL | C7: INCLUIDOS | D7: REUBICADOS | E7: MODIFICADOS | F7: ELIMINADOS
A9: COSTA RICA | B9: =SUM(C9:F9) -> 828 | C9: =SUM(C10:C16) -> 714 | D9: =SUM(D10:D16) -> 28 | E9: =SUM(E10:E16) -> 25 | F9: =SUM(F10:F16) -> 61
A10: SAN JOSÉ | B10: =SUM(C10:F10) -> 333 | C10: 329 | D10: 1 | E10: 2 | F10: 1
A11: ALAJUELA | B11: =SUM(C11:F11) -> 162 | C11: 114 | D11: 4 | E11: 7 | F11: 37
A12: CARTAGO | B12: 52 | C12: 51 | D12: 0 | E12: 0 | F12: 1
A13: HEREDIA | B13: 89 | C13: 76 | D13: 11 | E13: 0 | F13: 2
A14: GUANACASTE | B14: 90 | C14: 61 | D14: 7 | E14: 4 | F14: 18
A15: PUNTARENAS | B15: 97 | C15: 81 | D15: 2 | E15: 12 | F15: 2
A16: LIMÓN | B16: 5 | C16: 2 | D16: 3 | E16: 0 | F16: 0
A19: Fuente: Contraloría Electoral del Tribunal Supremo de Elecciones.

Sheet 14
A2: CUADRO 14
A3: COSTA RICA: CENTROS DE VOTACIÓN, JUNTAS RECEPTORAS Y
A4: CENTROS DE TRANSMISIÓN, SEGÚN PROVINCIA
A5: ELECCIONES 6 DE FEBRERO DE 2022
A7: PROVINCIA | B7: CENTROS DE VOTACIÓN1/ | C7: JUNTAS RECEPTORAS | D7: CENTROS DE TRANSMISIÓN 1/
A9: COSTA RICA | B9: =SUM(B10:B18) -> 2133 | C9: =SUM(C10:C18) -> 6847 | D9: 2133
A10: SAN JOSÉ | B10: 444 | C10: 2113 | D10: 444
A11: ALAJUELA | B11: 445 | C11: 1345 | D11: 445
A12: CARTAGO | B12: 196 | C12: 771 | D12: 196
A13: HEREDIA | B13: 119 | C13: 644 | D13: 119
A14: GUANACASTE | B14: 300 | C14: 580 | D14: 300
A15: PUNTARENAS | B15: 381 | C15: 741 | D15: 381
A16: LIMÓN | B16: 196 | C16: 573 | D16: 196
A17: EXTRANJERO | B17: 52 | C17: 80 | D17: 52
A20: 1/ Datos estimados al 15 de diciembre de 2021 sujetos a modificaciones.
A21: Fuente: Departamento de Progrmas Electorales y Sección de Padrón Electoral.

Sheet 15
A2: CUADRO 15
A3: COSTA RICA: JUNTAS RECEPTORAS Y ELECTORADO EN CENTROS ATENCIÓN INSTITUCIONAL, HOGARES DE
A4: LARGA ESTANCIA, ZONAS INDÍGENAS Y CENTROS DE SALUD MENTAL, SEGÚN PROVINCIA
A5: ELECCIONES 6 DE FEBRERO DE 2022
A7: PROVINCIA | B7: HOGARES DE LARGA ESTANCIA | D7: CENTROS DE ATENCIÓN INSTITUCIONAL | F7: ZONAS INDÍGENAS | H7: CENTROS DE SALUD MENTAL
B8: JUNTAS | C8: ELECTORADO | D8: JUNTAS | E8: ELECTORADO | F8: JUNTAS | G8: ELECTORADO | H8: JUNTAS | I8: ELECTORADO
A9: COSTA RICA | B9: 50 | C9: 2061 | D9: 27 | E9: 8594 | F9: 103 | G9: 40802 | H9: 1 | I9: 111
A10: SAN JOSÉ | B10: 14 | C10: 681 | D10: 4 | E10: 1417 | F10: 5 | G10: 1761 | H10: 1 | I10: 111
A11: ALAJUELA | B11: 9 | C11: 520 | D11: 11 | E11: 4025 | F11: 2 | G11: 786 | H11: 0 | I11: 0
A12: CARTAGO | B12: 2 | C12: 114 | D12: 1 | E12: 466 | F12: 13 | G12: 3892 | H12: 0 | I12: 0
A13: HEREDIA | B13: 4 | C13: 158 | D13: 1 | E13: 17 | F13: 0 | G13: 0 | H13: 0 | I13: 0
A14: GUANACASTE | B14: 7 | C14: 144 | D14: 3 | E14: 635 | F14: 3 | G14: 919 | H14: 0 | I14: 0
A15: PUNTARENAS | B15: 9 | C15: 283 | D15: 2 | E15: 673 | F15: 43 | G15: 15814 | H15: 0 | I15: 0
A16: LIMÓN | B16: 5 | C16: 161 | D16: 5 | E16: 1361 | F16: 37 | G16: 17630 | H16: 0 | I16: 0
A19: Fuente: Sección Padrón Electoral, Contraloría Electoral y Programa Accesibilidad para el Ejercicio del Voto.

Sheet 16
A2: CUADRO 16
A3: COSTA RICA: JUNTAS RECEPTORAS Y ELECTORADO EN HOGARES DE LARGA ESTANCIA, POR SEXO
A4: SEGÚN PROVINCIA Y DISTRITO ELECTORAL, ELECCIONES 6 DE FEBRERO DE 2022
A6: PROVINCIA Y DISTRITO ELECTORAL | B6: NÚMERO DE JUNTAS | C6: ELECTORADO
C7: TOTAL | D7: HOMBRES | E7: MUJERES
A9: COSTA RICA | B9: =+B10+B25+B35+B38+B43+B51+B61 -> 50 | C9: =+C10+C25+C35+C38+C43+C51+C61 -> 2061 | D9: =+D10+D25+D35+D38+D43+D51+D61 -> 1097 | E9: =+E10+E25+E35+E38+E43+E51+E61 -> 964
A10: SAN JOSÉ | B10: 14 | C10: 681 | D10: 318 | E10: 363
A11: HLE MAGDALA | B11: 1 | C11: 31 | D11: 12 | E11: 19
A12: HLE OFELIA CARVAJAL DE NARANJO | B12: 1 | C12: 69 | D12: 33 | E12: 36
A13: HLE SAN CAYETANO | B13: 1 | C13: 35 | D13: 15 | E13: 20
A14: HLE C G MANANTIAL DE VIDA SAN RAFAEL | B14: 1 | C14: 30 | D14: 16 | E14: 14
A15: HLE CORAZÓN DE JESÚS | B15: 1 | C15: 38 | D15: 20 | E15: 18
A16: HLE LOS SANTOS | B16: 1 | C16: 54 | D16: 31 | E16: 23
A17: HLE SAN FRANCISCO DE ASÍS | B17: 1 | C17: 23 | D17: 12 | E17: 11
A18: HLE CARLOS MARÍA ULLOA | B18: 1 | C18: 168 | D18: 73 | E18: 95
A19: HLE CORTEZA AMARILLA - EMMANUEL | B19: 1 | C19: 11 | D19: 4 | E19: 7
A20: HLE ACOSTA | B20: 1 | C20: 29 | D20: 17 | E20: 12
A21: HLE CASA NAZARETH | B21: 1 | C21: 28 | D21: 10 | E21: 18
A22: HLE MONTES DE OCA | B22: 1 | C22: 65 | D22: 28 | E22: 37
A23: HLE CURRIDABAT | B23: 1 | C23: 32 | D23: 8 | E23: 24
A24: HLE MONSEÑOR DELFÍN QUESADA CASTRO | B24: 1 | C24: 68 | D24: 39 | E24: 29
A25: ALAJUELA | B25: 9 | C25: 520 | D25: 249 | E25: 271
A26: HLE SANTIAGO CRESPO CALVO | B26: 1 | C26: 131 | D26: 52 | E26: 79
A27: HLE SAN RAMÓN | B27: 1 | C27: 34 | D27: 18 | E27: 16
A28: HLE JAFETH JIMÉNEZ MORALES | B28: 1 | C28: 89 | D28: 43 | E28: 46
A29: HLE HORTENSIA RODRÍGUEZ S DE B | B29: 1 | C29: 46 | D29: 25 | E29: 21
A30: HLE JOSÉ DEL OLMO | B30: 1 | C30: 54 | D30: 21 | E30: 33
A31: HLE PALMARES | B31: 1 | C31: 57 | D31: 28 | E31: 29
A32: HLE PRESBITERO JESÚS MARÍA VARGAS | B32: 1 | C32: 33 | D32: 19 | E32: 14
A33: HLE SAN VICENTE DE PAÚL | B33: 1 | C33: 46 | D33: 30 | E33: 16
A34: HLE SAN RAFAEL | B34: 1 | C34: 30 | D34: 13 | E34: 17
A35: CARTAGO | B35: 2 | C35: 114 | D35: 64 | E35: 50
A36: HLE ASILO DE LA VEJEZ | B36: 1 | C36: 62 | D36: 28 | E36: 34
A37: HLE SAN BUENAVENTURA | B37: 1 | C37: 52 | D37: 36 | E37: 16
A38: HEREDIA | B38: 4 | C38: 158 | D38: 84 | E38: 74
A39: HLE REINA DE LOS ANGELES | B39: 1 | C39: 18 | D39: 9 | E39: 9
A40: HLE SEÑORA DE LOS ANGELES | B40: 1 | C40: 66 | D40: 33 | E40: 33
A41: HLE ALFREDO Y DELIA GONZÁLEZ FLORES | B41: 1 | C41: 51 | D41: 27 | E41: 24
A42: HLE SAN AGUSTÍN | B42: 1 | C42: 23 | D42: 15 | E42: 8
A43: GUANACASTE | B43: 7 | C43: 144 | D43: 85 | E43: 59
A44: HLE LIBERIA | B44: 1 | C44: 26 | D44: 16 | E44: 10
A45: HLE SAN BLAS | B45: 1 | C45: 22 | D45: 12 | E45: 10
A46: HLE NUESTRA SEÑORA DEL ROSARIO | B46: 1 | C46: 14 | D46: 7 | E46: 7
A47: HLE MARY BLANCO | B47: 1 | C47: 25 | D47: 17 | E47: 8
A48: HLE SAN JORGE | B48: 1 | C48: 19 | D48: 13 | E48: 6
A49: HLE TILARÁN | B49: 1 | C49: 22 | D49: 12 | E49: 10
A50: HLE SAGRADO CORAZON DE JESÚS | B50: 1 | C50: 16 | D50: 8 | E50: 8
A51: PUNTARENAS | B51: 9 | C51: 283 | D51: 192 | E51: 91
A52: HLE MIGUEL MORENO | B52: 1 | C52: 28 | D52: 16 | E52: 12
A53: HLE MARÍA INMACULADA | B53: 1 | C53: 34 | D53: 20 | E53: 14
A54: HLE CARLOS VENEGAS | B54: 1 | C54: 13 | D54: 7 | E54: 6
A55: HLE FRAY CASIANO DE MADRID | B55: 1 | C55: 50 | D55: 30 | E55: 20
A56: HLE PALMAR SUR | B56: 1 | C56: 45 | D56: 30 | E56: 15
A57: HLE QUEPOS | B57: 1 | C57: 24 | D57: 17 | E57: 7
A58: HLE GOLFITO | B58: 1 | C58: 33 | D58: 27 | E58: 6
A59: HLE COTO BRUS | B59: 1 | C59: 23 | D59: 19 | E59: 4
A60: HLE NEILY | B60: 1 | C60: 33 | D60: 26 | E60: 7
A61: LIMÓN | B61: 5 | C61: 161 | D61: 105 | E61: 56
A62: HLE VÍCTOR CASCO TORRES | B62: 1 | C62: 18 | D62: 8 | E62: 10
A63: HLE GUÁPILES | B63: 1 | C63: 28 | D63: 21 | E63: 7
A64: HLE CARIARI | B64: 1 | C64: 66 | D64: 47 | E64: 19
A65: HLE SANTA LUISA | B65: 1 | C65: 23 | D65: 11 | E65: 12
A66: HLE DAVID GARRO | B66: 1 | C66: 26 | D66: 18 | E66: 8
A69: Fuente: Sección Padrón Electoral, Contraloría Electoral y Programa Accesibilidad para el Ejercicio del Voto.

Sheet 17
A2: CUADRO 17
A3: COSTA RICA: JUNTAS RECEPTORAS Y ELECTORADO EN CENTROS DE ATENCIÓN INSTITUCIONAL
A4: POR SEXO, SEGÚN PROVINCIA Y DISTRITO ELECTORAL, ELECCIONES 6 DE FEBRERO DE 2022
A6: PROVINCIA Y DISTRITO ELECTORAL | B6: NÚMERO DE JUNTAS | C6: ELECTORADO
C7: TOTAL | D7: HOMBRES | E7: MUJERES
A8: COSTA RICA | B8: =+B9+B14+B26+B28+B30+B34+B37 -> 27 | C8: =+C9+C14+C26+C28+C30+C34+C37 -> 8594 | D8: =+D9+D14+D26+D28+D30+D34+D37 -> 8338 | E8: =+E9+E14+E26+E28+E30+E34+E37 -> 256
A9: SAN JOSÉ | B9: 4 | C9: 1417 | D9: 1175 | E9: 242
A10: CAI CRISTO REY (SAN SEBASTIÁN) | B10: 1 | C10: 252 | D10: 251 | E10: 1
A11: CAI VILMA CURLING RIVERA | B11: 1 | C11: 242 | D11: 1 | E11: 241
A12: CAI ANTONIO BASTIDA DE PAZ | B12: 1 | C12: 714 | D12: 714 | E12: 0
A13: CAI PABRU PRESBERI | B13: 1 | C13: 209 | D13: 209 | E13: 0
A14: ALAJUELA | B14: 11 | C14: 4025 | D14: 4025 | E14: 0
A15: CAI REYNALDO VILLALOBOS ZUÑIGA | B15: 1 | C15: 532 | D15: 532 | E15: 0
A16: CAI LUIS PAULINO MORA MORA | B16: 1 | C16: 447 | D16: 447 | E16: 0
A17: CAI ÁMBITO A Y B (MÍNIMA) | B17: 1 | C17: 710 | D17: 710 | E17: 0
A18: CAI ÁMBITO C (MEDIANA ABIERTA) | B18: 1 | C18: 310 | D18: 310 | E18: 0
A19: CAI ÁMBITOS D (MED CERRADA) | B19: 1 | C19: 488 | D19: 488 | E19: 0
A20: CAI GERARDO RODRÍGUEZ ECHEVERRÍA | B20: 1 | C20: 508 | D20: 508 | E20: 0
A21: CAI ADULTO MAYOR | B21: 1 | C21: 83 | D21: 83 | E21: 0
A22: CAI ADULTO JOVEN | B22: 1 | C22: 129 | D22: 129 | E22: 0
A23: CAI ÁMBITO E (INDICIADOS) Y PENSIONES | B23: 1 | C23: 356 | D23: 356 | E23: 0
A24: CAI CENTRO NACIONAL DE ATENCIÓN ESPECÍFICA | B24: 1 | C24: 26 | D24: 26 | E24: 0
A25: CAI NELSON MANDELA | B25: 1 | C25: 436 | D25: 436 | E25: 0
A26: CARTAGO | B26: 1 | C26: 466 | D26: 466 | E26: 0
A27: CAI JORGE DEBRAVO | B27: 1 | C27: 466 | D27: 466 | E27: 0
A28: HEREDIA | B28: 1 | C28: 17 | D28: 12 | E28: 5
A29: CAI SAN ISIDRO JUVENIL ZURQUÍ | B29: 1 | C29: 17 | D29: 12 | E29: 5
A30: GUANACASTE | B30: 3 | C30: 635 | D30: 626 | E30: 9
A31: CAI CALLE REAL (MÓDULO B CASITAS) | B31: 1 | C31: 256 | D31: 247 | E31: 9
A32: CAI CALLE REAL (MÓDULO D1-D2) | B32: 1 | C32: 227 | D32: 227 | E32: 0
A33: CAI CALLE REAL (MÓDULO D3-D4) | B33: 1 | C33: 152 | D33: 152 | E33: 0
A34: PUNTARENAS | B34: 2 | C34: 673 | D34: 673 | E34: 0
A35: CAI 26 DE JULIO (SENTENCIADOS) | B35: 1 | C35: 570 | D35: 570 | E35: 0
A36: CAI 26 DE JULIO (INDICIADOS) | B36: 1 | C36: 103 | D36: 103 | E36: 0
A37: LIMÓN | B37: 5 | C37: 1361 | D37: 1361 | E37: 0
A38: CAI LIMÓN (SANDOVAL) | B38: 1 | C38: 421 | D38: 421 | E38: 0
A39: CAI CARLOS LUIS FALLAS (MÓDULOS A-B-C) | B39: 1 | C39: 372 | D39: 372 | E39: 0
A40: CAI CARLOS LUIS FALLAS (MÓDULOS D-E) | B40: 1 | C40: 246 | D40: 246 | E40: 0
A41: CAI CARLOS LUIS FALLAS (MÓDULO AGROPECUARIO) | B41: 1 | C41: 112 | D41: 112 | E41: 0
A42: CAI 20 DE DICIEMBRE | B42: 1 | C42: 210 | D42: 210 | E42: 0
A43: Fuente: Sección Padrón Electoral, Contraloría Electoral y Programa Accesibilidad para el Ejercicio del Voto.

Sheet 18
A2: CUADRO 18
A3: COSTA RICA: JUNTAS RECEPTORAS Y ELECTORADO EN ZONAS INDÍGENAS, POR SEXO
A4: SEGÚN PROVINCIA Y DISTRITO ELECTORAL, ELECCIONES 6 DE FEBRERO DE 2022
A6: PROVINCIA Y DISTRITO ELECTORAL | B6: NÚMERO DE JUNTAS | C6: ELECTORADO
C7: TOTAL | D7: HOMBRES | E7: MUJERES
A9: COSTA RICA | B9: =+B10+B15+B18+B31+B34+B70 -> 103 | C9: =+C10+C15+C18+C31+C34+C70 -> 40802 | D9: =+D10+D15+D18+D31+D34+D70 -> 21393 | E9: 19409
A10: SAN JOSÉ | B10: 5 | C10: 1761 | D10: 931 | E10: 830
A11: ZAPATÓN (SAN CARLOS) | B11: 1 | C11: 359 | D11: 197 | E11: 162
A12: BAJO REY | B12: 1 | C12: 41 | D12: 23 | E12: 18
A13: QUITIRRISÍ | B13: 2 | C13: 1037 | D13: 545 | E13: 492
A14: CHINA KICHÁ | B14: 1 | C14: 324 | D14: 166 | E14: 158
A15: ALAJUELA | B15: 2 | C15: 786 | D15: 397 | E15: 389
A16: MARGARITA | B16: 1 | C16: 461 | D16: 226 | E16: 235
A17: TONJIBE | B17: 1 | C17: 325 | D17: 171 | E17: 154
A18: CARTAGO | B18: 13 | C18: 3892 | D18: 1968 | E18: 1924
A19: GRANO DE ORO O XARA | B19: 2 | C19: 957 | D19: 482 | E19: 475
A20: SIMIRIÑAC (JACUY) | B20: 1 | C20: 333 | D20: 173 | E20: 160
A21: ALTO PACUARE ARRIBA (DUCLAC) | B21: 1 | C21: 271 | D21: 130 | E21: 141
A22: JAKI (CAPILLA DOS CHIRRIPÓ ARRIBA) | B22: 1 | C22: 419 | D22: 226 | E22: 193
A23: BOLORI-ÑAC (CAPILLA UNO) | B23: 1 | C23: 368 | D23: 186 | E23: 182
A24: NIMARI-ÑAC (RÍO PEJE) | B24: 1 | C24: 226 | D24: 118 | E24: 108
A25: NAMALDI | B25: 1 | C25: 119 | D25: 60 | E25: 59
A26: TSIPIRI (QUEBRADA PLATANILLO) | B26: 1 | C26: 562 | D26: 277 | E26: 285
A27: QUETZAL | B27: 1 | C27: 392 | D27: 193 | E27: 199
A28: JAMÖ (SITIO HILDA PARTE OESTE) | B28: 1 | C28: 78 | D28: 39 | E28: 39
A29: ALTO PACUARE ABAJO (JEKUI) | B29: 1 | C29: 128 | D29: 67 | E29: 61
A30: JACBATA (CERRO AZUL) | B30: 1 | C30: 39 | D30: 17 | E30: 22
A31: GUANACASTE | B31: 3 | C31: 919 | D31: 477 | E31: 442
A32: MATAMBUGUITO | B32: 1 | C32: 201 | D32: 105 | E32: 96
A33: MATAMBÚ | B33: 2 | C33: 718 | D33: 372 | E33: 346
A34: PUNTARENAS | B34: 43 | C34: 15814 | D34: 8332 | E34: 7482
A35: SALITRE | B35: 1 | C35: 496 | D35: 258 | E35: 238
A36: BORUCA | B36: 2 | C36: 1252 | D36: 657 | E36: 595
A37: LAS PILAS | B37: 1 | C37: 143 | D37: 85 | E37: 58
A38: COLINAS (MAÍZ DE LOS UVA) | B38: 1 | C38: 337 | D38: 186 | E38: 151
A39: CURRÉ | B39: 1 | C39: 406 | D39: 198 | E39: 208
A40: LA DANTA O CONCEPCIÓN | B40: 1 | C40: 467 | D40: 248 | E40: 219
A41: UJARRÁS | B41: 2 | C41: 1039 | D41: 543 | E41: 496
A42: BAJO LAS BRISAS | B42: 2 | C42: 904 | D42: 454 | E42: 450
A43: TÉRRABA | B43: 2 | C43: 646 | D43: 329 | E43: 317
A44: SAN RAFAEL DE CABAGRA | B44: 2 | C44: 948 | D44: 478 | E44: 470
A45: BIJAGUAL | B45: 1 | C45: 461 | D45: 256 | E45: 205
A46: CAJÓN | B46: 1 | C46: 262 | D46: 156 | E46: 106
A47: GUAGARAL | B47: 1 | C47: 236 | D47: 126 | E47: 110
A48: MAÍZ DE BORUCA | B48: 1 | C48: 334 | D48: 190 | E48: 144
A49: CHÁNGUENA (LA FILA) | B49: 1 | C49: 273 | D49: 159 | E49: 114
A50: PILÓN | B50: 1 | C50: 485 | D50: 269 | E50: 216
A51: LAS VEGAS DE RÍO CHÁNGUENA | B51: 1 | C51: 118 | D51: 70 | E51: 48
A52: LA BONGA | B52: 1 | C52: 274 | D52: 152 | E52: 122
A53: SAN VICENTE (UPIAV-2) | B53: 1 | C53: 143 | D53: 72 | E53: 71
A54: PARAÍSO | B54: 1 | C54: 240 | D54: 129 | E54: 111
A55: PUENTE DE SALITRE | B55: 1 | C55: 378 | D55: 197 | E55: 181
A56: SHAMBA | B56: 1 | C56: 178 | D56: 102 | E56: 76
A57: LA PEÑA DE BURICA | B57: 1 | C57: 226 | D57: 124 | E57: 102
A58: GUAYMÍ DE BURICA | B58: 1 | C58: 260 | D58: 142 | E58: 118
A59: ALTO CONTE (MOLO DUBTDO) | B59: 1 | C59: 361 | D59: 196 | E59: 165
A60: PROGRESO DE CONTEBURICA | B60: 1 | C60: 271 | D60: 143 | E60: 128
A61: SAN GERARDO | B61: 1 | C61: 122 | D61: 66 | E61: 56
A62: LA CASONA (GUAYMÍ) | B62: 2 | C62: 1270 | D62: 642 | E62: 628
A63: BAJO LOS INDIOS | B63: 1 | C63: 273 | D63: 139 | E63: 134
A64: ABROJO NORTE (VEGAS DE ABROJO NORTE) | B64: 2 | C64: 645 | D64: 331 | E64: 314
A65: BARRIO NUEVO DE VERACRUZ O COLORADITO SUR | B65: 2 | C65: 982 | D65: 491 | E65: 491
A66: CARACOL DE LA VACA | B66: 1 | C66: 416 | D66: 223 | E66: 193
A67: VEREH | B67: 1 | C67: 392 | D67: 201 | E67: 191
A68: VEGAS DEL RÍO LA VACA (NIBIRIBOTDA) | B68: 1 | C68: 244 | D68: 138 | E68: 106
A69: ABROJO-MONTEZUMA | B69: 1 | C69: 332 | D69: 182 | E69: 150
A70: LIMÓN | B70: 37 | C70: 17630 | D70: 9288 | E70: 8342
A71: VESTA | B71: 1 | C71: 457 | D71: 252 | E71: 205
A72: BOCUARE | B72: 1 | C72: 236 | D72: 133 | E72: 103
A73: ALTO CWEN | B73: 1 | C73: 509 | D73: 270 | E73: 239
A74: XIQIARI | B74: 1 | C74: 620 | D74: 303 | E74: 317
A75: SINOLI | B75: 1 | C75: 260 | D75: 138 | E75: 122
A76: ALMIRANTE | B76: 1 | C76: 472 | D76: 249 | E76: 223
A77: JAKKÜE (SITIO HILDA PARTE ESTE) | B77: 1 | C77: 67 | D77: 37 | E77: 30
A78: PACUARITO | B78: 2 | C78: 740 | D78: 412 | E78: 328
A79: BRATSI (BAMBÚ O DON DIEGO) | B79: 1 | C79: 438 | D79: 222 | E79: 216
A80: AMUBRI | B80: 4 | C80: 2108 | D80: 1098 | E80: 1010
A81: COROMA (COLOQCHA) | B81: 1 | C81: 404 | D81: 216 | E81: 188
A82: PUERTO VIEJO | B82: 3 | C82: 1927 | D82: 1073 | E82: 854
A83: BRIBRÍ (FIELDS) | B83: 6 | C83: 3622 | D83: 1909 | E83: 1713
A84: SHIROLES (XIROLES) | B84: 4 | C84: 2307 | D84: 1157 | E84: 1150
A85: KATSI | B85: 2 | C85: 740 | D85: 393 | E85: 347
A86: SEPEQUE | B86: 2 | C86: 1238 | D86: 627 | E86: 611
A87: SIBUJÚ | B87: 1 | C87: 358 | D87: 202 | E87: 156
A88: BAJO TELIRE (BAJO BLEY) | B88: 1 | C88: 251 | D88: 136 | E88: 115
A89: YORKIN | B89: 1 | C89: 259 | D89: 142 | E89: 117
A90: ALTO TELIRE (BAJO PIEDRA MESA) | B90: 1 | C90: 275 | D90: 137 | E90: 138
A91: PALMERA (CATSAQIBI) | B91: 1 | C91: 342 | D91: 182 | E91: 160
A94: Fuente: Sección Padrón Electoral, Contraloría Electoral y Programa Accesibilidad para el Ejercicio del Voto.

Sheet 19
A2: CUADRO 19
A3: COSTA RICA: JUNTAS RECEPTORAS Y ELECTORADO EN CENTROS DE SALUD MENTAL, POR SEXO, SEGÚN PROVINCIA Y DISTRITO ELECTORAL, ELECCIONES 6 DE FEBRERO DE 2022
A5: PROVINCIA Y DISTRITO ELECTORAL | B5: NÚMERO DE JUNTAS | C5: ELECTORADO
C6: TOTAL | D6: HOMBRES | E6: MUJERES
A8: COSTA RICA | B8: 1 | C8: 111 | D8: 110 | E8: 1
A9: SAN JOSÉ | B9: 1 | C9: 111 | D9: 110 | E9: 1
A10: C.S.M. CAPEMCOL | B10: 1 | C10: 111 | D10: 110 | E10: 1
A13: Fuente: Sección Padrón Electoral, Contraloría Electoral y Programa Accesibilidad para el Ejercicio del Voto.

Sheet 20
A2: CUADRO 20
A3: COSTA RICA: CONFORMACIÓN DE LAS JUNTAS CANTONALES POR SEXO
A4: SEGÚN PARTIDO POLÍTICO, ELECCIONES 6 DE FEBRERO 2022
A5: (CIFRAS ABSOLUTAS Y RELATIVAS)
A7: PARTIDO POLÍTICO | B7: TOTAL | C7: HOMBRES | E7: MUJERES
C8: ABSOLUTO | D8: % | E8: ABSOLUTO | F8: %
A10: TOTAL | B10: =SUM(B11:B28) -> 1373 | C10: =SUM(C11:C28) -> 777 | D10: =+C10/$B10*100 -> 56.59140568 | E10: 596 | F10: =+E10/$B10*100 -> 43.40859432
A11: ACCIÓN CIUDADANA | B11: =+C11+E11 -> 109 | C11: 54 | D11: =+C11/$B11*100 -> 49.5412844 | E11: 55 | F11: 50.4587156
A12: ACTUEMOS YA | B12: =+C12+E12 -> 6 | C12: 5 | D12: 83.33333333 | E12: 1 | F12: 16.66666667
A13: COSTA RICA JUSTA | B13: 45 | C13: 25 | D13: 55.55555556 | E13: 20 | F13: 44.44444444
A14: FRENTE AMPLIO | B14: 51 | C14: 30 | D14: 58.82352941 | E14: 21 | F14: 41.17647059
A15: FUERZA NACIONAL | B15: 135 | C15: 76 | D15: 56.2962963 | E15: 59 | F15: 43.7037037
A16: INTEGRACIÓN NACIONAL | B16: 57 | C16: 35 | D16: 61.40350877 | E16: 22 | F16: 38.59649123
A17: JUSTICIA SOCIAL COSTARRICENSE | B17: 48 | C17: 25 | D17: 52.08333333 | E17: 23 | F17: 47.91666667
A18: LIBERACIÓN NACIONAL | B18: 181 | C18: 106 | D18: 58.56353591 | E18: 75 | F18: 41.43646409
A19: LIBERAL PROGRESISTA | B19: 62 | C19: 34 | D19: 54.83870968 | E19: 28 | F19: 45.16129032
A20: NUESTRO PUEBLO | B20: 2 | C20: 1 | D20: 50 | E20: 1 | F20: 50
A21: NUEVA GENERACIÓN | B21: 125 | C21: 63 | D21: 50.4 | E21: 62 | F21: 49.6
A22: NUEVA REPÚBLICA | B22: 133 | C22: 88 | D22: 66.16541353 | E22: 45 | F22: 33.83458647
A23: PROGRESO SOCIAL DEMOCRÁTICO | B23: 55 | C23: 40 | D23: 72.72727273 | E23: 15 | F23: 27.27272727
A24: REPUBLICANO SOCIAL CRISTIANO | B24: 78 | C24: 42 | D24: 53.84615385 | E24: 36 | F24: 46.15384615
A25: RESTAURACIÓN NACIONAL | B25: 14 | C25: 7 | D25: 50 | E25: 7 | F25: 50
A26: UNIDAD SOCIAL CRISTIANA | B26: 190 | C26: 102 | D26: 53.68421053 | E26: 88 | F26: 46.31578947
A27: UNIDOS PODEMOS | B27: 59 | C27: 36 | D27: 61.01694915 | E27: 23 | F27: 38.98305085
A28: UNIÓN GUANACASTECA | B28: 23 | C28: 8 | D28: 34.7826087 | E28: 15 | F28: 65.2173913
A31: Fuente Tribunal Supremo de Elecciones, Decreto n.° 14-2021 Sesión Extraordinaria n.° 98-2021, del 12 de noviembre de 2021.

Sheet 21
A2: CUADRO 21
A3: COSTA RICA: CONFORMACIÓN DE LAS JUNTAS CANTONALES POR PROVINCIA
A4: SEGÚN PARTIDO POLÍTICO, ELECCIONES 6 DE FEBRERO 2022
A6: PARTIDO POLÍTICO | B6: COSTA RICA | C6: PROVINCIA
C7: SAN JOSÉ | D7: ALAJUELA | E7: CARTAGO | F7: HEREDIA | G7: GUANACASTE | H7: PUNTARENAS | I7: LIMÓN
A9: TOTAL | B9: =SUM(B10:B27) -> 1373 | C9: =SUM(C10:C27) -> 285 | D9: 238 | E9: 155 | F9: 188 | G9: 218 | H9: 177 | I9: 112
A10: ACCIÓN CIUDADANA | B10: =SUM(C10:I10) -> 109 | C10: 30 | D10: 10 | E10: 15 | F10: 16 | G10: 10 | H10: 16 | I10: 12
A11: ACTUEMOS YA | B11: =SUM(C11:I11) -> 6 | C11: 0 | D11: 0 | E11: 6 | F11: 0 | G11: 0 | H11: 0 | I11: 0
A12: COSTA RICA JUSTA | B12: 45 | C12: 4 | D12: 12 | E12: 13 | F12: 14 | G12: 2 | H12: 0 | I12: 0
A13: FRENTE AMPLIO | B13: 51 | C13: 9 | D13: 9 | E13: 0 | F13: 2 | G13: 18 | H13: 3 | I13: 10
A14: FUERZA NACIONAL | B14: 135 | C14: 28 | D14: 19 | E14: 16 | F14: 19 | G14: 22 | H14: 21 | I14: 10
A15: INTEGRACIÓN NACIONAL | B15: 57 | C15: 2 | D15: 25 | E15: 5 | F15: 2 | G15: 3 | H15: 16 | I15: 4
A16: JUSTICIA SOCIAL COSTARRICENSE | B16: 48 | C16: 12 | D16: 7 | E16: 6 | F16: 6 | G16: 2 | H16: 9 | I16: 6
A17: LIBERACIÓN NACIONAL | B17: 181 | C17: 50 | D17: 34 | E17: 18 | F17: 20 | G17: 22 | H17: 22 | I17: 15
A18: LIBERAL PROGRESISTA | B18: 62 | C18: 0 | D18: 9 | E18: 10 | F18: 20 | G18: 12 | H18: 11 | I18: 0
A19: NUESTRO PUEBLO | B19: 2 | C19: 2 | D19: 0 | E19: 0 | F19: 0 | G19: 0 | H19: 0 | I19: 0
A20: NUEVA GENERACIÓN | B20: 125 | C20: 23 | D20: 24 | E20: 14 | F20: 13 | G20: 19 | H20: 20 | I20: 12
A21: NUEVA REPÚBLICA | B21: 133 | C21: 26 | D21: 30 | E21: 10 | F21: 23 | G21: 13 | H21: 19 | I21: 12
A22: PROGRESO SOCIAL DEMOCRÁTICO | B22: 55 | C22: 20 | D22: 9 | E22: 2 | F22: 3 | G22: 20 | H22: 1 | I22: 0
A23: REPUBLICANO SOCIAL CRISTIANO | B23: 78 | C23: 19 | D23: 14 | E23: 13 | F23: 4 | G23: 16 | H23: 11 | I23: 1
A24: RESTAURACIÓN NACIONAL | B24: 14 | C24: 2 | D24: 0 | E24: 0 | F24: 0 | G24: 0 | H24: 0 | I24: 12
A25: UNIDAD SOCIAL CRISTIANA | B25: 190 | C25: 42 | D25: 36 | E25: 19 | F25: 26 | G25: 29 | H25: 26 | I25: 12
A26: UNIDOS PODEMOS | B26: 59 | C26: 16 | D26: 0 | E26: 8 | F26: 20 | G26: 7 | H26: 2 | I26: 6
A27: UNIÓN GUANACASTECA | B27: 23 | C27: 0 | D27: 0 | E27: 0 | F27: 0 | G27: 23 | H27: 0 | I27: 0
A30: Fuente Tribunal Supremo de Elecciones, Decreto n.° 14-2021 Sesión Extraordinaria n.° 98-2021, del 12 de noviembre de 2021.

Sheet 22
A2: CUADRO 22
A3: COSTA RICA: PARTIDOS POLÍTICOS QUE PARTICIPAN EN LAS ELECCIONES
A4: SEGÚN ESCALA, ELECCIONES 6 DE FEBRERO 2022
A6: NOMBRE | B6: DIVISA
A8: ESCALA NACIONAL
A10: ACCESIBILIDAD SIN EXCLUSIÓN
A11: ACCIÓN CIUDADANA
A12: ALIANZA DEMÓCRATA CRISTIANA
A13: COSTA RICA JUSTA
A14: DE LOS TRABAJADORES
A15: ENCUENTRO NACIONAL
A16: FRENTE AMPLIO
A17: FUERZA NACIONAL
A18: INTEGRACIÓN NACIONAL
A19: JUSTICIA SOCIAL COSTARRICENSE
A20: LIBERACIÓN NACIONAL
A21: LIBERAL PROGRESISTA
A22: MOVIMIENTO LIBERTARIO
A23: MOVIMIENTO SOCIAL DEMÓCRATA COSTARRICENSE
A24: NUESTRO PUEBLO
A25: NUEVA GENERACIÓN
A26: NUEVA REPÚBLICA
A27: PUEBLO UNIDO
A28: PROGRESO SOCIAL DEMOCRÁTICO
A29: REPUBLICANO SOCIAL CRISTIANO
A30: RESTAURACIÓN NACIONAL
A31: UNIDAD SOCIAL CRISTIANA
A32: UNIDOS PODEMOS
A33: UNIÓN COSTARRICENSE DEMOCRÁTICA
A34: UNIÓN LIBERAL
A35: ESCALA PROVINCIAL
A36: ACTUEMOS YA (Cartago)
A37: ANTICORRUPCIÓN COSTARRICENSE (San José)
A38: IZQUIERDA COSTARRICENSE (Limón)
A39: NUEVO PARTIDO SOCIALISTA (San José)
A40: NUEVO PARTIDO SOCIALISTA (Cartago)
A41: RECUPERANDO VALORES (Limón)
A42: RENOVACIÓN CARTAGO (Cartago)
A43: SOMOS (Alajuela)
A44: UNIDOS POR COSTA RICA (San José)
A45: UNIÓN GUANACASTECA (Guanacaste)
A46: VAMOS (San José)
A48: Fuente: Departamento de Registro de Partidos Políticos del Tribunal Supremo de Elecciones.

Sheet 23
A2: CUADRO 23
A3: COSTA RICA: MONTO PRESUPUESTADO POR EL TRIBUNAL SUPREMO DE ELECCIONES
A4: PARA LAS ELECCIONES GENERALES DE 2022, SEGÚN AÑO
A5: (CIFRAS EN COLONES)
A7: AÑO | B7: MONTO PRESUPUESTADO
A10: TOTAL | B10: =SUM(B12:B15) -> 9932533851
A12: 2020 | B12: 64492500
A13: 2021 | B13: 2403551269
A14: Primera Ronda 2022 | B14: 4847890082
A15: Segunda Ronda 2022 | B15: 2616600000
A17: Nota: No incluyen los montos por Deuda Politica.
A19: Fuente: Dirección Ejecutiva del Tribunal Supremo de Elecciones.

Sheet 24
A1: CUADRO 24
A2: COSTA RICA: DONACIONES REPORTADAS PARA EL PROCESO ELECTORAL 2018-2022 1/
A3: SEGÚN AÑO, AL 30 DE NOVIEMBRE DE 2021
A5: AÑO | B5: MONTO
A7: TOTAL | B7: =B8+B9+B10+B11 -> 2503342856
A8: 2018 | B8: 722857396.4
A9: 2019 | B9: 382471905.3
A10: 2020 | B10: 616590874.7
A11: 2021 | B11: 781422679.6
A14: Nota: Donaciones recibidas, reportadas por los partidos políticos a partir del mes de marzo de 2018.
A16: 1/ De acuerdo con los artículos 128 y 129 del Código Electoral, publicado el 2 de setiembre en el Diario Oficial La Gaceta que se prohibe la contribución de extranjeros, personas jurídicas y depositadas fuera del país.
A18: Fuente: Departamento de Financiamiento de Partidos Políticos del Tribunal Supremo de Elecciones.

Sheet 25
A2: CUADRO 25
A3: COSTA RICA: DONACIONES EN EFECTIVO REPORTADAS ANTE EL TRIBUNAL SUPREMO DE ELECCIONES
A4: SEGÚN PARTIDO POLÍTICO 1/
A5: (Cifras en colones, al 30 de noviembre de 2021 )
A6: PARTIDO POLÍTICO | B6: CICLO MUNICIPAL2/ | C6: CICLO PRESIDENCIAL | E6: Octubre, 2021
C7: PERIODO NO ELECTORAL 2020-2021 3/ | D7: PERIODO ELECTORAL 2021-2022 4/
A9: TOTAL | B9: =SUM(B11:B75) -> 786302965.5 | C9: =SUM(C11:C75) -> 1123076414 | D9: =SUM(D11:D75) -> 67791881.92 | E9: =SUM(E11:E75) -> 67791881.92
A11: ACCIÓN CIUDADANA | B11: 135439049.9 | C11: 26192622.43 | D11: 5018000 | E11: 5018000
A12: ACTUEMOS YA | B12: 5276426 | C12: 304000 | D12: 5000 | E12: 5000
A13: ALIANZA DEMÓCRATA CRISTIANA | B13: 25866410.2 | C13: 130000 | D13: 0 | E13: 0
A14: ALIANZA POR SAN JOSÉ | B14: 10558056.04 | C14: 1146000 | D14: 0 | E14: 0
A15: ALIANZA POR SARCHÍ | B15: 4569849 | C15: 0 | D15: 0 | E15: 0
A16: ALIANZA SOCIAL POR LA UNIÓN | B16: 0 | C16: 257000 | D16: 0 | E16: 0
A17: ALTERNATIVA SJO | B17: 0 | C17: 176000 | D17: 0 | E17: 0
A18: ANTICORRUPCIÓN COSTARRICENSE | B18: 373000 | C18: 0 | D18: 0 | E18: 0
A19: AUTÉNTICO LIMONENSE | B19: 235001 | C19: 1240000 | D19: 0 | E19: 0
A20: AUTÉNTICO SANTACRUCEÑO | B20: 540000 | C20: 0 | D20: 0 | E20: 0
A21: AUTÉNTICO SIQUIRREÑO | B21: 6000 | C21: 0 | D21: 0 | E21: 0
A22: AVANCE MONTES DE OCA | B22: 2157120 | C22: 985400 | D22: 0 | E22: 0
A23: AVANTE POCOCÍ | B23: 0 | C23: 90000 | D23: 0 | E23: 0
A24: BARVA UNIDA | B24: 1551000 | C24: 0 | D24: 0 | E24: 0
A25: CANTONAL DE CARRILLO | B25: 13034000 | C25: 0 | D25: 0 | E25: 0
A26: COALICIÓN ALIANZA POR NICOYA | B26: 1125000 | C26: 0 | D26: 0 | E26: 0
A27: COALICIÓN GENTE MONTES DE OCA | B27: 10448638.56 | C27: 0 | D27: 0 | E27: 0
A28: COALICIÓN JUNTOS | B28: 543000 | C28: 0 | D28: 0 | E28: 0
A29: COALICIÓN UNIÓN BELEMITA | B29: 1562000 | C29: 0 | D29: 0 | E29: 0
A30: COMUNAL UNIDO | B30: 5000 | C30: 0 | D30: 0 | E30: 0
A31: COSTA RICA JUSTA | B31: 0 | C31: 2427760.35 | D31: 0 | E31: 0
A32: CURRIDABAT SIGLO XXI | B32: 19233484 | C32: 8051358.46 | D32: 0 | E32: 0
A33: DE LOS TRABAJADORES | B33: 10936768.42 | C33: 739342.52 | D33: 0 | E33: 0
A34: DEL SOL | B34: 8311000 | C34: 1594152 | D34: 0 | E34: 0
A35: DESARROLLO TALAMANQUEÑO | B35: 856000 | C35: 320000 | D35: 0 | E35: 0
A36: EL PARTIDO DE NICOYA | B36: 904928.5 | C36: 0 | D36: 0 | E36: 0
A37: FRENTE AMPLIO | B37: 67269120.46 | C37: 38055527.14 | D37: 4110000 | E37: 4110000
A38: FUERZA NACIONAL | B38: 0 | C38: 10980000 | D38: 400000 | E38: 400000
A39: GENTE MONTES DE OCA | B39: 0 | C39: 1094611.18 | D39: 0 | E39: 0
A40: INTEGRACIÓN NACIONAL | B40: 46887688.67 | C40: 34000 | D40: 10000 | E40: 10000
A41: JUSTICIA SOCIAL COSTARRICENSE | B41: 1992847.94 | C41: 964982.87 | D41: 101928.08 | E41: 101928.08
A42: LA GRAN NICOYA | B42: 2535000 | C42: 0 | D42: 0 | E42: 0
A43: LIBERACIÓN NACIONAL | B43: 113334647.8 | C43: 313443293.8 | D43: 10101100 | E43: 10101100
A44: LIBERAL PROGRESISTA | B44: 9670380 | C44: 203835751 | D44: 20610736.48 | E44: 20610736.48
A45: MOVIMIENTO AVANCE SANTO DOMINGO | B45: 9662000 | C45: 2636035 | D45: 0 | E45: 0
A46: NUESTRO PUEBLO | B46: 4404225.18 | C46: 113756 | D46: 314459 | E46: 314459
A47: NUEVA GENERACIÓN | B47: 14302610 | C47: 0 | D47: 490000 | E47: 490000
A48: NUEVA REPÚBLICA | B48: 19925156.79 | C48: 335608148.5 | D48: 2635906.69 | E48: 2635906.69
A49: PALMARES PRIMERO | B49: 11712000 | C49: 820000 | D49: 0 | E49: 0
A50: PROGRESER | B50: 9809031.9 | C50: 10000 | D50: 0 | E50: 0
A51: PROGRESO SOCIAL DEMOCRÁTICO | B51: 119976 | C51: 61414013.68 | D51: 14384957.82 | E51: 14384957.82
A52: PURISCAL EN MARCHA | B52: 97000 | C52: 0 | D52: 0 | E52: 0
A53: RECUPERANDO VALORES | B53: 80400 | C53: 339000 | D53: 0 | E53: 0
A54: RENOVACIÓN COSTARRICENSE | B54: 1112650 | C54: 28419900 | D54: 0 | E54: 0
A55: RENOVEMOS ALAJUELA | B55: 3516000 | C55: 750000 | D55: 0 | E55: 0
A56: REPÚBLICANO SOCIAL CRISTIANO | B56: 1557970 | C56: 0 | D56: 47959.2 | E56: 47959.2
A57: RESCATE CANTONAL LA UNIÓN | B57: 1186000 | C57: 0 | D57: 0 | E57: 0
A58: RESTAURACIÓN NACIONAL | B58: 89133708.37 | C58: 39426064.16 | D58: 567994 | E58: 567994
A59: SENTIR HEREDIA | B59: 783820 | C59: 447600 | D59: 0 | E59: 0
A60: SOMOS MORAVIA | B60: 9726377 | C60: 470000 | D60: 0 | E60: 0
A61: SOMOS SARCHÍ | B61: 870000 | C61: 0 | D61: 0 | E61: 0
A62: TERRA ESCAZÚ | B62: 19209204.35 | C62: 1672050 | D62: 0 | E62: 0
A63: TURRIALBA PRIMERO | B63: 730000 | C63: 0 | D63: 0 | E63: 0
A64: UNIDAD SOCIAL CRISTIANA | B64: 41440145.76 | C64: 34688174.58 | D64: 3969512.05 | E64: 3969512.05
A65: UNIDOS PARA EL DESARROLLO | B65: 1432453.56 | C65: 350000 | D65: 0 | E65: 0
A66: UNIDOS PODEMOS | B66: 35028450.53 | C66: 2399000 | D66: 3667828.6 | E66: 3667828.6
A67: UNIDOS POR ESCAZÚ | B67: 969000 | C67: 0 | D67: 0 | E67: 0
A68: UNIÓN ATENIENSE | B68: 50000 | C68: 689650 | D68: 0 | E68: 0
A69: UNIÓN DE PUNTARENENSES EMPRENDEDORES | B69: 2454758.56 | C69: 183000 | D69: 0 | E69: 0
A70: UNIÓN DOMINGUEÑA | B70: 611000 | C70: 20000 | D70: 0 | E70: 0
A71: UNIÓN GUARQUEÑO | B71: 660000 | C71: 0 | D71: 0 | E71: 0
A72: UNIÓN LIBERAL | B72: 0 | C72: 558220 | D72: 1356500 | E72: 1356500
A73: VAMOS | B73: 214911 | C73: 0 | D73: 0 | E73: 0
A74: YO SOY EL CAMBIO | B74: 78000 | C74: 0 | D74: 0 | E74: 0
A75: YUNTA PROGRESISTA ESCAZUCEÑA | B75: 10204700 | C75: 0 | D75: 0 | E75: 0
A77: Notas:
A78: 1/ El detalle de cada contribuyente se puede consultar en http://www.tse.go.cr/contribuciones_partidos.htm
A79: 2/ El Ciclo Municipal abarca el periodo comprendido entre el 22 de marzo de 2018 y el 18 de marzo de 2020.
A80: 3/ El Periodo no Electoral del Ciclo Presidencia comprende del 19 de marzo de 2020 al 05 de octubre de 2021.
A81: 4/ El Periodo Electoral del Ciclo Presidencia comprende del 06 de octubre de 2021 al 23 de marzo de 2022.
A83: Fuente: Reportes de contribuciones remitidos periódicamente por los partidos políticos al Departamento de Financiamiento de Partidos Políticos.

Sheet 26
A2: CUADRO 26
A3: COSTA RICA: FISCALIZACIÓN DE LOS PARTIDOS POLÍTICOS, POR AÑO
A4: SEGÚN TIPO DE FISCALIZACIÓN 1/, AL 30 DE NOVIEMBRE DE 2021
A6: TIPO DE FISCALIZACIÓN | B6: TOTAL | C6: 2018 | D6: 2019 | E6: 2020 | F6: 2021
A8: TOTAL | B8: =SUM(B9:B12) -> 253 | C8: =SUM(C9:C12) -> 38 | D8: =SUM(D9:D12) -> 51 | E8: =SUM(E9:E12) -> 55 | F8: =SUM(F9:F12) -> 109
A9: AUDITORÍA | B9: =+SUM(C9:F9) -> 4 | C9: 0 | D9: 1 | E9: 0 | F9: 3
A10: ANÁLISIS DE LIQUIDACIONES 2/ | B10: =+SUM(C10:F10) -> 195 | C10: 26 | D10: 36 | E10: 40 | F10: 93
A11: DENUNCIAS | B11: =+SUM(C11:F11) -> 20 | C11: 6 | D11: 4 | E11: 7 | F11: 3
A12: ESTUDIOS ESPECIALES | B12: =+SUM(C12:F12) -> 34 | C12: 6 | D12: 10 | E12: 8 | F12: 10
A15: 1/ Los tipos de fiscalización que realiza el Departamento de Financiamiento de Partidos Políticos, responden a las atribuciones funcionales establecidas en el Código Electoral y el Reglamento sobre el Financiamiento de los Partidos Polítcos.
A17: 2/ En análisis de liquidaciones, se muestran los datos correspondientes a los informes emitidos. En algunas liquidaciones se emitieron dos infomes por liquidación y en otros casos en un informe se resolvió sobre varias liquidaciones de un mismo partido.
A19: Fuente: Departamento de Financiamiento de Partidos Políticos del Tribunal Supremo de Elecciones.

Sheet 27
A2: CUADRO 27
A3: COSTA RICA: COMPOSICIÓN DE LAS PAPELETAS, POR SEXO, SEGÚN
A4: TIPO DE CANDIDATURA, ELECCIONES 6 DE FEBRERO DE 2022
A5: (CIFRAS ABSOLUTAS Y RELATIVAS)
A7: CANDIDATURAS | B7: TOTAL | C7: HOMBRES | E7: MUJERES
C8: ABSOLUTO | D8: % | E8: ABSOLUTO | F8: %
A10: TOTAL | B10: =SUM(B11:B14) -> 1689 | C10: =SUM(C11:C14) -> 865 | D10: =C10/B10*100 -> 51.21373594 | E10: =SUM(E11:E14) -> 824 | F10: =E10/B10*100 -> 48.78626406
A11: PRESIDENCIA | B11: =+C11+E11 -> 25 | C11: 21 | D11: =+C11/B11*100 -> 84 | E11: 4 | F11: =+E11/B11*100 -> 16
A12: PRIMERA VICEPRESIDENCIA | B12: 25 | C12: 10 | D12: =+C12/B12*100 -> 40 | E12: 15 | F12: =+E12/B12*100 -> 60
A13: SEGUNDA VICEPRESIDENCIA | B13: 25 | C13: 14 | D13: 56 | E13: 11 | F13: 44
A14: DIPUTACIONES | B14: 1614 | C14: 820 | D14: 50.80545229 | E14: 794 | F14: 49.19454771
A17: Fuente: Departamento de Registro de Partidos Políticos del Tribunal Supremo de Elecciones.

Sheet G3
I4: CANDIDATURAS | J4: HOMBRES | K4: MUJERES
I6: TOTAL | J6: =SUM(J8:J11) -> 866 | K6: =SUM(K8:K11) -> 824
I8: DIPUTACIONES | J8: ='27'!C14 -> 820 | K8: ='27'!E14 -> 794
I9: SEGUNDA VICEPRESIDENCIA | J9: ='27'!C13 -> 14 | K9: ='27'!E13 -> 11
I10: PRIMERA VICEPRESIDENCIA | J10: ='27'!C12 -> 10 | K10: ='27'!E12 -> 15
I11: PRESIDENCIA | J11: 22 | K11: ='27'!E11 -> 4
A39: Fuente: Cuadro 26.

Sheet 28
A2: CUADRO 28
A3: COSTA RICA: CANDIDATURAS INSCRITAS A PRESIDENCIA Y VICEPRESIDENCIAS, POR SEXO
A4: SEGÚN GRUPOS DE EDAD, ELECCIONES 6 DE FEBRERO DE 2022
A6: GRUPOS DE EDAD | B6: TOTAL | E6: PRESIDENCIA | H6: 1º VICEPRESIDENCIA | K6: 2º VICEPRESIDENCIA
B7: TOTAL | C7: HOMBRES | D7: MUJERES | E7: TOTAL | F7: HOMBRES | G7: MUJERES | H7: TOTAL | I7: HOMBRES | J7: MUJERES | K7: TOTAL | L7: HOMBRES | M7: MUJERES
A9: TOTAL | B9: =SUM(B10:B18) -> 75 | C9: 45 | D9: 30 | E9: 25 | F9: 21 | G9: 4 | H9: 25 | I9: 10 | J9: 15 | K9: 25 | L9: 14 | M9: 11
A10: 35 - 39 | B10: =+E10+H10+K10 -> 9 | C10: =+F10+I10+L10 -> 3 | D10: =+G10+J10+M10 -> 6 | E10: 2 | F10: 1 | G10: 1 | H10: 5 | I10: 0 | J10: 5 | K10: 2 | L10: 2 | M10: 0
A11: 40 - 44 | B11: 7 | C11: 5 | D11: 2 | E11: 2 | F11: 2 | G11: 0 | H11: 2 | I11: 2 | J11: 0 | K11: 3 | L11: 1 | M11: 2
A12: 45 - 49 | B12: 8 | C12: 3 | D12: 5 | E12: 2 | F12: 2 | G12: 0 | H12: 3 | I12: 1 | J12: 2 | K12: 3 | L12: 0 | M12: 3
A13: 50 - 54 | B13: 9 | C13: 4 | D13: 5 | E13: 3 | F13: 2 | G13: 1 | H13: 5 | I13: 2 | J13: 3 | K13: 1 | L13: 0 | M13: 1
A14: 55 - 59 | B14: 8 | C14: 8 | D14: 0 | E14: 2 | F14: 2 | G14: 0 | H14: 1 | I14: 1 | J14: 0 | K14: 5 | L14: 5 | M14: 0
A15: 60 - 64 | B15: 20 | C15: 14 | D15: 6 | E15: 9 | F15: 7 | G15: 2 | H15: 5 | I15: 3 | J15: 2 | K15: 6 | L15: 4 | M15: 2
A16: 65 - 69 | B16: =+E16+H16+K16 -> 8 | C16: =+F16+I16+L16 -> 4 | D16: =+G16+J16+M16 -> 4 | E16: 3 | F16: 3 | G16: 0 | H16: 2 | I16: 1 | J16: 1 | K16: 3 | L16: 0 | M16: 3
A17: 70 - 74 | B17: 5 | C17: 3 | D17: 2 | E17: 2 | F17: 2 | G17: 0 | H17: 2 | I17: 0 | J17: 2 | K17: 1 | L17: 1 | M17: 0
A18: 75 - 79 | B18: 1 | C18: 1 | D18: 0 | E18: 0 | F18: 0 | G18: 0 | H18: 0 | I18: 0 | J18: 0 | K18: 1 | L18: 1 | M18: 0
A21: Fuente: Departamento de Registro de Partidos Políticos del Tribunal Supremo de Elecciones.

Sheet 29
A2: CUADRO 29
A3: COSTA RICA: CANDIDATURAS INSCRITAS A DIPUTACIONES EN PROPIEDAD Y SUPLENCIA, POR SEXO
A4: SEGÚN GRUPOS DE EDAD, ELECCIONES 6 DE FEBRERO 2022
A6: GRUPOS DE EDAD | B6: DIPUTACIONES | E6: EN PROPIEDAD | H6: EN SUPLENCIA
B7: TOTAL | C7: HOMBRES | D7: MUJERES | E7: TOTAL | F7: HOMBRES | G7: MUJERES | H7: TOTAL | I7: HOMBRES | J7: MUJERES
A9: TOTAL | B9: =SUM(B10:B23) -> 1614 | C9: =SUM(C10:C23) -> 820 | D9: 794 | E9: 1402 | F9: 712 | G9: 690 | H9: 212 | I9: 108 | J9: 104
A10: Menos de 25 | B10: 86 | C10: 40 | D10: 46 | E10: 66 | F10: 32 | G10: 34 | H10: 20 | I10: 8 | J10: 12
A11: 25 - 29 | B11: 127 | C11: 52 | D11: 75 | E11: 105 | F11: 43 | G11: 62 | H11: 22 | I11: 9 | J11: 13
A12: 30 - 34 | B12: 204 | C12: 97 | D12: 107 | E12: 176 | F12: 80 | G12: 96 | H12: 28 | I12: 17 | J12: 11
A13: 35 - 39 | B13: 214 | C13: 99 | D13: 115 | E13: 185 | F13: 81 | G13: 104 | H13: 29 | I13: 18 | J13: 11
A14: 40 - 44 | B14: 199 | C14: 94 | D14: 105 | E14: 167 | F14: 84 | G14: 83 | H14: 32 | I14: 10 | J14: 22
A15: 45 - 49 | B15: 164 | C15: 80 | D15: 84 | E15: 148 | F15: 75 | G15: 73 | H15: 16 | I15: 5 | J15: 11
A16: 50 - 54 | B16: 170 | C16: 85 | D16: 85 | E16: 157 | F16: 78 | G16: 79 | H16: 13 | I16: 7 | J16: 6
A17: 55 - 59 | B17: 174 | C17: 105 | D17: 69 | E17: 155 | F17: 91 | G17: 64 | H17: 19 | I17: 14 | J17: 5
A18: 60 - 64 | B18: 137 | C18: 75 | D18: 62 | E18: 122 | F18: 66 | G18: 56 | H18: 15 | I18: 9 | J18: 6
A19: 65 - 69 | B19: 92 | C19: 56 | D19: 36 | E19: 79 | F19: 49 | G19: 30 | H19: 13 | I19: 7 | J19: 6
A20: 70 - 74 | B20: 29 | C20: 23 | D20: 6 | E20: 27 | F20: 22 | G20: 5 | H20: 2 | I20: 1 | J20: 1
A21: 75 - 79 | B21: 13 | C21: 11 | D21: 2 | E21: 11 | F21: 9 | G21: 2 | H21: 2 | I21: 2 | J21: 0
A22: 80 - 84 | B22: 4 | C22: 2 | D22: 2 | E22: 3 | F22: 1 | G22: 2 | H22: 1 | I22: 1 | J22: 0
A23: 85 Y MÁS | B23: 1 | C23: 1 | D23: 0 | E23: 1 | F23: 1 | G23: 0 | H23: 0 | I23: 0 | J23: 0
A26: Fuente: Departamento de Registro de Partidos Políticos del Tribunal Supremo de Elecciones.

Sheet G4
L7: HOMBRES | M7: MUJERES
L9: =+'29'!C10 -> 40 | M9: =+'29'!D10*-1 -> -46 | N9: 18 - 24 | O9: 18 - 24
L10: =+'29'!C11 -> 52 | M10: =+'29'!D11*-1 -> -75 | N10: 25 - 29 | O10: 25 - 29
L11: =+'29'!C12 -> 97 | M11: =+'29'!D12*-1 -> -107 | N11: 30 - 34 | O11: 30 - 34
L12: =+'29'!C13 -> 99 | M12: =+'29'!D13*-1 -> -115 | N12: 35 - 39 | O12: 35 - 39
L13: =+'29'!C14 -> 94 | M13: =+'29'!D14*-1 -> -105 | N13: 40 - 44 | O13: 40 - 44
L14: =+'29'!C15 -> 80 | M14: =+'29'!D15*-1 -> -84 | N14: 45 - 49 | O14: 45 - 49
L15: =+'29'!C16 -> 85 | M15: =+'29'!D16*-1 -> -85 | N15: 50 - 54 | O15: 50 - 54
L16: =+'29'!C17 -> 105 | M16: =+'29'!D17*-1 -> -69 | N16: 55 - 59 | O16: 55 - 59
L17: =+'29'!C18 -> 75 | M17: =+'29'!D18*-1 -> -62 | N17: 60 - 64 | O17: 60 - 64
L18: =+'29'!C19 -> 56 | M18: =+'29'!D19*-1 -> -36 | N18: 65 - 69 | O18: 65 - 69
L19: =+'29'!C20 -> 23 | M19: =+'29'!D20*-1 -> -6 | N19: 70 - 74 | O19: 70 - 74
L20: =+'29'!C21+'29'!C22+'29'!C23 -> 14 | M20: =(+'29'!D21+'29'!D22+'29'!D23)*-1 -> -4 | N20: 75 Y MÁS | O20: 75 Y MÁS
A45: Fuente: Cuadro 29.

Sheet 30
A2: CUADRO 30
A3: COSTA RICA: CANDIDATURAS A DIPUTACIONES EN PROPIEDAD Y SUPLENCIA, POR SEXO
A4: SEGÚN PARTIDO, ELECCIONES 6 DE FEBRERO DE 2022
A5: (CIFRAS ABSOLUTAS Y RELATIVAS)
A7: PARTIDO POLÍTICO | B7: DIPUTACIONES | G7: EN PROPIEDAD | L7: EN SUPLENCIA
A8: PARTIDO POLITICO | B8: TOTAL | C8: HOMBRES | E8: MUJERES | G8: TOTAL | H8: HOMBRES | J8: MUJERES | L8: TOTAL | M8: HOMBRES | O8: MUJERES
B9: ABS | C9: ABS | D9: % | E9: ABS | F9: % | G9: ABS | H9: ABS | I9: % | J9: ABS | K9: % | L9: ABS | M9: ABS | N9: % | O9: ABS | P9: %
A11: TOTAL | B11: =SUM(B12:B47) -> 1614 | C11: =SUM(C12:C47) -> 820 | D11: =+C11/B11*100 -> 50.80545229 | E11: =SUM(E12:E47) -> 794 | F11: =+E11/B11*100 -> 49.19454771 | G11: =SUM(G12:G47) -> 1402 | H11: =SUM(H12:H47) -> 712 | I11: =+H11/G11*100 -> 50.78459344 | J11: =SUM(J12:J47) -> 690 | K11: =+J11/G11*100 -> 49.21540656 | L11: =SUM(L12:L47) -> 212 | M11: =SUM(M12:M47) -> 108 | N11: =+M11/L11*100 -> 50.94339623 | O11: =SUM(O12:O47) -> 104 | P11: =+O11/L11*100 -> 49.05660377
A12: ACCESIBILIDAD SIN EXCLUSIÓN | B12: 64 | C12: 32 | D12: 50 | E12: 32 | F12: 50 | G12: 53 | H12: 27 | I12: 50.94339623 | J12: 26 | K12: 49.05660377 | L12: 11 | M12: 5 | N12: 45.45454545 | O12: 6 | P12: 54.54545455
A13: ACCIÓN CIUDADANA | B13: 56 | C13: 29 | D13: 51.78571429 | E13: 27 | F13: 48.21428571 | G13: 54 | H13: 28 | I13: 51.85185185 | J13: 26 | K13: 48.14814815 | L13: 2 | M13: 1 | N13: 50 | O13: 1 | P13: 50
A14: ACTUEMOS YA | B14: 9 | C14: 4 | D14: 44.44444444 | E14: 5 | F14: 55.55555556 | G14: 7 | H14: 3 | I14: 42.85714286 | J14: 4 | K14: 57.14285714 | L14: 2 | M14: 1 | N14: 50 | O14: 1 | P14: 50
A15: ALIANZA DEMÓCRATA CRISTIANA | B15: 37 | C15: 19 | D15: 51.35135135 | E15: 18 | F15: 48.64864865 | G15: 31 | H15: 16 | I15: 51.61290323 | J15: 15 | K15: 48.38709677 | L15: 6 | M15: 3 | N15: 50 | O15: 3 | P15: 50
A16: ANTICORRUPCIÓN COSTARRICENSE | B16: 16 | C16: 8 | D16: 50 | E16: 8 | F16: 50 | G16: 16 | H16: 8 | I16: 50 | J16: 8 | K16: 50 | L16: 0 | M16: 0 | N16: 0 | O16: 0 | P16: 0
A17: COSTA RICA JUSTA | B17: 75 | C17: 39 | D17: 52 | E17: 36 | F17: 48 | G17: 57 | H17: 29 | I17: 50.87719298 | J17: 28 | K17: 49.12280702 | L17: 18 | M17: 10 | N17: 55.55555556 | O17: 8 | P17: 44.44444444
A18: DE LOS TRABAJADORES | B18: 49 | C18: 25 | D18: 51.02040816 | E18: 24 | F18: 48.97959184 | G18: 49 | H18: 25 | I18: 51.02040816 | J18: 24 | K18: 48.97959184 | L18: 0 | M18: 0 | N18: 0 | O18: 0 | P18: 0
A19: ENCUENTRO NACIONAL | B19: 32 | C19: 17 | D19: 53.125 | E19: 15 | F19: 46.875 | G19: 31 | H19: 17 | I19: 54.83870968 | J19: 14 | K19: 45.16129032 | L19: 1 | M19: 0 | N19: 0 | O19: 1 | P19: 100
A20: FRENTE AMPLIO | B20: 74 | C20: 36 | D20: 48.64864865 | E20: 38 | F20: 51.35135135 | G20: 57 | H20: 28 | I20: 49.12280702 | J20: 29 | K20: 50.87719298 | L20: 17 | M20: 8 | N20: 47.05882353 | O20: 9 | P20: 52.94117647
A21: FUERZA NACIONAL | B21: 61 | C21: 31 | D21: 50.81967213 | E21: 30 | F21: 49.18032787 | G21: 54 | H21: 28 | I21: 51.85185185 | J21: 26 | K21: 48.14814815 | L21: 7 | M21: 3 | N21: 42.85714286 | O21: 4 | P21: 57.14285714
A22: INTEGRACIÓN NACIONAL | B22: 57 | C22: 28 | D22: 49.12280702 | E22: 29 | F22: 50.87719298 | G22: 51 | H22: 25 | I22: 49.01960784 | J22: 26 | K22: 50.98039216 | L22: 6 | M22: 3 | N22: 50 | O22: 3 | P22: 50
A23: IZQUIERDA COSTARRICENSE | B23: 5 | C23: 3 | D23: 60 | E23: 2 | F23: 40 | G23: 5 | H23: 3 | I23: 60 | J23: 2 | K23: 40 | L23: 0 | M23: 0 | N23: 0 | O23: 0 | P23: 0
A24: JUSTICIA SOCIAL COSTARRICENSE | B24: 72 | C24: 37 | D24: 51.38888889 | E24: 35 | F24: 48.61111111 | G24: 56 | H24: 28 | I24: 50 | J24: 28 | K24: 50 | L24: 16 | M24: 9 | N24: 56.25 | O24: 7 | P24: 43.75
A25: LIBERACIÓN NACIONAL | B25: 75 | C25: 38 | D25: 50.66666667 | E25: 37 | F25: 49.33333333 | G25: 57 | H25: 29 | I25: 50.87719298 | J25: 28 | K25: 49.12280702 | L25: 18 | M25: 9 | N25: 50 | O25: 9 | P25: 50
A26: LIBERAL PROGRESISTA | B26: 54 | C26: 28 | D26: 51.85185185 | E26: 26 | F26: 48.14814815 | G26: 54 | H26: 28 | I26: 51.85185185 | J26: 26 | K26: 48.14814815 | L26: 0 | M26: 0 | N26: 0 | O26: 0 | P26: 0
A27: MOVIMIENTO LIBERTARIO | B27: 60 | C27: 31 | D27: 51.66666667 | E27: 29 | F27: 48.33333333 | G27: 51 | H27: 27 | I27: 52.94117647 | J27: 24 | K27: 47.05882353 | L27: 9 | M27: 4 | N27: 44.44444444 | O27: 5 | P27: 55.55555556
A28: MOVIMIENTO SOCIAL DEMÓCRATA COSTARRICENSE | B28: 55 | C28: 27 | D28: 49.09090909 | E28: 28 | F28: 50.90909091 | G28: 50 | H28: 25 | I28: 50 | J28: 25 | K28: 50 | L28: 5 | M28: 2 | N28: 40 | O28: 3 | P28: 60
A29: NUESTRO PUEBLO | B29: 57 | C29: 29 | D29: 50.87719298 | E29: 28 | F29: 49.12280702 | G29: 57 | H29: 29 | I29: 50.87719298 | J29: 28 | K29: 49.12280702 | L29: 0 | M29: 0 | N29: 0 | O29: 0 | P29: 0
A30: NUEVA GENERACIÓN | B30: 74 | C30: 38 | D30: 51.35135135 | E30: 36 | F30: 48.64864865 | G30: 56 | H30: 29 | I30: 51.78571429 | J30: 27 | K30: 48.21428571 | L30: 18 | M30: 9 | N30: 50 | O30: 9 | P30: 50
A31: NUEVA REPÚBLICA | B31: 68 | C31: 35 | D31: 51.47058824 | E31: 33 | F31: 48.52941176 | G31: 55 | H31: 28 | I31: 50.90909091 | J31: 27 | K31: 49.09090909 | L31: 13 | M31: 7 | N31: 53.84615385 | O31: 6 | P31: 46.15384615
A32: NUEVO PARTIDO SOCIALISTA | B32: 5 | C32: 2 | D32: 40 | E32: 3 | F32: 60 | G32: 5 | H32: 2 | I32: 40 | J32: 3 | K32: 60 | L32: 0 | M32: 0 | N32: 0 | O32: 0 | P32: 0
A33: NUEVO PARTIDO SOCIALISTA-CARTAGO | B33: 4 | C33: 2 | D33: 50 | E33: 2 | F33: 50 | G33: 4 | H33: 2 | I33: 50 | J33: 2 | K33: 50 | L33: 0 | M33: 0 | N33: 0 | O33: 0 | P33: 0
A34: PROGRESO SOCIAL DEMOCRÁTICO | B34: 47 | C34: 25 | D34: 53.19148936 | E34: 22 | F34: 46.80851064 | G34: 41 | H34: 20 | I34: 48.7804878 | J34: 21 | K34: 51.2195122 | L34: 6 | M34: 5 | N34: 83.33333333 | O34: 1 | P34: 16.66666667
A35: PUEBLO UNIDO | B35: 55 | C35: 29 | D35: 52.72727273 | E35: 26 | F35: 47.27272727 | G35: 52 | H35: 27 | I35: 51.92307692 | J35: 25 | K35: 48.07692308 | L35: 3 | M35: 2 | N35: 66.66666667 | O35: 1 | P35: 33.33333333
A36: RECUPERANDO VALORES | B36: 7 | C36: 4 | D36: 57.14285714 | E36: 3 | F36: 42.85714286 | G36: 5 | H36: 3 | I36: 60 | J36: 2 | K36: 40 | L36: 2 | M36: 1 | N36: 50 | O36: 1 | P36: 50
A37: RENOVACIÓN CARTAGO | B37: 6 | C37: 3 | D37: 50 | E37: 3 | F37: 50 | G37: 6 | H37: 3 | I37: 50 | J37: 3 | K37: 50 | L37: 0 | M37: 0 | N37: 0 | O37: 0 | P37: 0
A38: REPUBLICANO SOCIAL CRISTIANO | B38: 67 | C38: 33 | D38: 49.25373134 | E38: 34 | F38: 50.74626866 | G38: 56 | H38: 28 | I38: 50 | J38: 28 | K38: 50 | L38: 11 | M38: 5 | N38: 45.45454545 | O38: 6 | P38: 54.54545455
A39: RESTAURACIÓN NACIONAL | B39: 58 | C39: 30 | D39: 51.72413793 | E39: 28 | F39: 48.27586207 | G39: 54 | H39: 28 | I39: 51.85185185 | J39: 26 | K39: 48.14814815 | L39: 4 | M39: 2 | N39: 50 | O39: 2 | P39: 50
A40: SOMOS | B40: 14 | C40: 7 | D40: 50 | E40: 7 | F40: 50 | G40: 11 | H40: 6 | I40: 54.54545455 | J40: 5 | K40: 45.45454545 | L40: 3 | M40: 1 | N40: 33.33333333 | O40: 2 | P40: 66.66666667
A41: UNIDAD SOCIAL CRISTIANA | B41: 75 | C41: 39 | D41: 52 | E41: 36 | F41: 48 | G41: 57 | H41: 29 | I41: 50.87719298 | J41: 28 | K41: 49.12280702 | L41: 18 | M41: 10 | N41: 55.55555556 | O41: 8 | P41: 44.44444444
A42: UNIDOS PODEMOS | B42: 57 | C42: 29 | D42: 50.87719298 | E42: 28 | F42: 49.12280702 | G42: 57 | H42: 29 | I42: 50.87719298 | J42: 28 | K42: 49.12280702 | L42: 0 | M42: 0 | N42: 0 | O42: 0 | P42: 0
A43: UNIDOS POR COSTA RICA | B43: 20 | C43: 9 | D43: 45 | E43: 11 | F43: 55 | G43: 19 | H43: 9 | I43: 47.36842105 | J43: 10 | K43: 52.63157895 | L43: 1 | M43: 0 | N43: 0 | O43: 1 | P43: 100
A44: UNIÓN COSTARRICENSE DEMOCRÁTICA | B44: 55 | C44: 27 | D44: 49.09090909 | E44: 28 | F44: 50.90909091 | G44: 55 | H44: 27 | I44: 49.09090909 | J44: 28 | K44: 50.90909091 | L44: 0 | M44: 0 | N44: 0 | O44: 0 | P44: 0
A45: UNIÓN GUANACASTECA | B45: 6 | C45: 3 | D45: 50 | E45: 3 | F45: 50 | G45: 4 | H45: 2 | I45: 50 | J45: 2 | K45: 50 | L45: 2 | M45: 1 | N45: 50 | O45: 1 | P45: 50
A46: UNIÓN LIBERAL | B46: 69 | C46: 34 | D46: 49.27536232 | E46: 35 | F46: 50.72463768 | G46: 57 | H46: 28 | I46: 49.12280702 | J46: 29 | K46: 50.87719298 | L46: 12 | M46: 6 | N46: 50 | O46: 6 | P46: 50
A47: VAMOS | B47: 19 | C47: 10 | D47: 52.63157895 | E47: 9 | F47: 47.36842105 | G47: 18 | H47: 9 | I47: 50 | J47: 9 | K47: 50 | L47: 1 | M47: 1 | N47: 100 | O47: 0 | P47: 0
A50: Fuente: Departamento de Registro de Partidos Políticos del Tribunal Supremo de Elecciones.

Sheet 31
A2: CUADRO 31
A3: COSTA RICA: EDAD PROMEDIO A FEBRERO DE LAS CANDIDATURAS INSCRITAS A DIPUTACIONES EN PROPIEDAD Y SUPLENCIA
A4: POR SEXO, SEGÚN PARTIDO POLÍTICO, ELECCIONES 6 DE FEBRERO 2022
A6: PARTIDO POLÍTICO | B6: DIPUTACIONES | E6: EN PROPIEDAD | H6: EN SUPLENCIA
B7: TOTAL | C7: HOMBRES | D7: MUJERES | E7: TOTAL | F7: HOMBRES | G7: MUJERES | H7: TOTAL | I7: HOMBRES | J7: MUJERES
A9: TOTAL | B9: 45.09541512 | C9: 46.74634146 | D9: 43.39042821 | E9: 45.46291013 | F9: 47.11797753 | G9: 43.75507246 | H9: 42.66509434 | I9: 44.2962963 | J9: 40.97115385
A10: ACCESIBILIDAD SIN EXCLUSIÓN | B10: 44.015625 | C10: 45.5 | D10: 42.53125 | E10: 44.77358491 | F10: 45.92592593 | G10: 43.57692308 | H10: 40.36363636 | I10: 43.2 | J10: 38
A11: ACCIÓN CIUDADANA | B11: 45.21428571 | C11: 44.82758621 | D11: 45.62962963 | E11: 45.62962963 | F11: 45 | G11: 46.30769231 | H11: 34 | I11: 40 | J11: 28
A12: ACTUEMOS YA | B12: 54.44444444 | C12: 60.25 | D12: 49.8 | E12: 55.57142857 | F12: 63 | G12: 50 | H12: 50.5 | I12: 52 | J12: 49
A13: ALIANZA DEMÓCRATA CRISTIANA | B13: 50.83783784 | C13: 50.57894737 | D13: 51.11111111 | E13: 50 | F13: 51.5 | G13: 48.4 | H13: 55.16666667 | I13: 45.66666667 | J13: 64.66666667
A14: ANTICORRUPCIÓN COSTARRICENSE | B14: 56 | C14: 61.75 | D14: 50.25 | E14: 56 | F14: 61.75 | G14: 50.25 | H14: 0 | I14: 0 | J14: 0
A15: COSTA RICA JUSTA | B15: 49.14666667 | C15: 51.64102564 | D15: 46.44444444 | E15: 51.78947368 | F15: 54.82758621 | G15: 48.64285714 | H15: 40.77777778 | I15: 42.4 | J15: 38.75
A16: DE LOS TRABAJADORES | B16: 36.75510204 | C16: 37.44 | D16: 36.04166667 | E16: 36.75510204 | F16: 37.44 | G16: 36.04166667 | H16: 0 | I16: 0 | J16: 0
A17: ENCUENTRO NACIONAL | B17: 46 | C17: 49.94117647 | D17: 41.53333333 | E17: 46.19354839 | F17: 49.94117647 | G17: 41.64285714 | H17: 40 | I17: 0 | J17: 40
A18: FRENTE AMPLIO | B18: 40.35135135 | C18: 40.30555556 | D18: 40.39473684 | E18: 40.56140351 | F18: 39.71428571 | G18: 41.37931034 | H18: 39.64705882 | I18: 42.375 | J18: 37.22222222
A19: FUERZA NACIONAL | B19: 46.85245902 | C19: 50.19354839 | D19: 43.4 | E19: 47.09259259 | F19: 49.28571429 | G19: 44.73076923 | H19: 45 | I19: 58.66666667 | J19: 34.75
A20: INTEGRACIÓN NACIONAL | B20: 46.9122807 | C20: 50.78571429 | D20: 43.17241379 | E20: 46.37254902 | F20: 50.8 | G20: 42.11538462 | H20: 51.5 | I20: 50.66666667 | J20: 52.33333333
A21: IZQUIERDA COSTARRICENSE | B21: 47 | C21: 48 | D21: 45.5 | E21: 47 | F21: 48 | G21: 45.5 | H21: 0 | I21: 0 | J21: 0
A22: JUSTICIA SOCIAL COSTARRICENSE | B22: 45.86111111 | C22: 48.78378378 | D22: 42.77142857 | E22: 48.25 | F22: 52 | G22: 44.5 | H22: 37.5 | I22: 38.77777778 | J22: 35.85714286
A23: LIBERACIÓN NACIONAL | B23: 43.76 | C23: 44 | D23: 43.51351351 | E23: 44.57894737 | F23: 45.27586207 | G23: 43.85714286 | H23: 41.16666667 | I23: 39.88888889 | J23: 42.44444444
A24: LIBERAL PROGRESISTA | B24: 42.18518519 | C24: 42.75 | D24: 41.57692308 | E24: 42.18518519 | F24: 42.75 | G24: 41.57692308 | H24: 0 | I24: 0 | J24: 0
A25: MOVIMIENTO LIBERTARIO | B25: 46.76666667 | C25: 49.58064516 | D25: 43.75862069 | E25: 47.41176471 | F25: 49.03703704 | G25: 45.58333333 | H25: 43.11111111 | I25: 53.25 | J25: 35
A26: MOVIMIENTO SOCIAL DEMÓCRATA COSTARRICENSE | B26: 51.54545455 | C26: 53.33333333 | D26: 49.82142857 | E26: 52.32 | F26: 53.16 | G26: 51.48 | H26: 43.8 | I26: 55.5 | J26: 36
A27: NUESTRO PUEBLO | B27: 46.71929825 | C27: 49.31034483 | D27: 44.03571429 | E27: 46.71929825 | F27: 49.31034483 | G27: 44.03571429 | H27: 0 | I27: 0 | J27: 0
A28: NUEVA GENERACIÓN | B28: 41.27027027 | C28: 42.34210526 | D28: 40.13888889 | E28: 42.125 | F28: 42.62068966 | G28: 41.59259259 | H28: 38.61111111 | I28: 41.44444444 | J28: 35.77777778
A29: NUEVA REPÚBLICA | B29: 41.97058824 | C29: 44.74285714 | D29: 39.03030303 | E29: 42.01818182 | F29: 44.85714286 | G29: 39.07407407 | H29: 41.76923077 | I29: 44.28571429 | J29: 38.83333333
A30: NUEVO PARTIDO SOCIALISTA | B30: 32.8 | C30: 35 | D30: 31.33333333 | E30: 32.8 | F30: 35 | G30: 31.33333333 | H30: 0 | I30: 0 | J30: 0
A31: NUEVO PARTIDO SOCIALISTA-CARTAGO | B31: 31.5 | C31: 33 | D31: 30 | E31: 31.5 | F31: 33 | G31: 30 | H31: 0 | I31: 0 | J31: 0
A32: PROGRESO SOCIAL DEMOCRÁTICO | B32: 50.61702128 | C32: 51.08 | D32: 50.09090909 | E32: 51.04878049 | F32: 52.75 | G32: 49.42857143 | H32: 47.66666667 | I32: 44.4 | J32: 64
A33: PUEBLO UNIDO | B33: 49.81818182 | C33: 49 | D33: 50.73076923 | E33: 50.13461538 | F33: 49.44444444 | G33: 50.88 | H33: 44.33333333 | I33: 43 | J33: 47
A34: RECUPERANDO VALORES | B34: 48.57142857 | C34: 53.75 | D34: 41.66666667 | E34: 51 | F34: 50.66666667 | G34: 51.5 | H34: 42.5 | I34: 63 | J34: 22
A35: RENOVACIÓN CARTAGO | B35: 54.33333333 | C35: 58.66666667 | D35: 50 | E35: 54.33333333 | F35: 58.66666667 | G35: 50 | H35: 0 | I35: 0 | J35: 0
A36: REPUBLICANO SOCIAL CRISTIANO | B36: 48.02985075 | C36: 54 | D36: 42.23529412 | E36: 48.39285714 | F36: 54.82142857 | G36: 41.96428571 | H36: 46.18181818 | I36: 49.4 | J36: 43.5
A37: RESTAURACIÓN NACIONAL | B37: 48.20689655 | C37: 52.63333333 | D37: 43.46428571 | E37: 48.57407407 | F37: 53.07142857 | G37: 43.73076923 | H37: 43.25 | I37: 46.5 | J37: 40
A38: SOMOS | B38: 45.07142857 | C38: 44.42857143 | D38: 45.71428571 | E38: 45.63636364 | F38: 46 | G38: 45.2 | H38: 43 | I38: 35 | J38: 47
A39: UNIDAD SOCIAL CRISTIANA | B39: 43.33333333 | C39: 42.87179487 | D39: 43.83333333 | E39: 42.70175439 | F39: 42.24137931 | G39: 43.17857143 | H39: 45.33333333 | I39: 44.7 | J39: 46.125
A40: UNIDOS PODEMOS | B40: 39.84210526 | C40: 40.24137931 | D40: 39.42857143 | E40: 39.84210526 | F40: 40.24137931 | G40: 39.42857143 | H40: 0 | I40: 0 | J40: 0
A41: UNIDOS POR COSTA RICA | B41: 41.15 | C41: 41.44444444 | D41: 40.90909091 | E41: 40.31578947 | F41: 41.44444444 | G41: 39.3 | H41: 57 | I41: 0 | J41: 57
A42: UNIÓN COSTARRICENSE DEMOCRÁTICA | B42: 44.6 | C42: 47.59259259 | D42: 41.71428571 | E42: 44.6 | F42: 47.59259259 | G42: 41.71428571 | H42: 0 | I42: 0 | J42: 0
A43: UNIÓN GUANACASTECA | B43: 50 | C43: 51.66666667 | D43: 48.33333333 | E43: 47.5 | F43: 44 | G43: 51 | H43: 55 | I43: 67 | J43: 43
A44: UNIÓN LIBERAL | B44: 41.14492754 | C44: 40.05882353 | D44: 42.2 | E44: 40.8245614 | F44: 40.10714286 | G44: 41.51724138 | H44: 42.66666667 | I44: 39.83333333 | J44: 45.5
A45: VAMOS | B45: 38.21052632 | C45: 34.1 | D45: 42.77777778 | E45: 38.44444444 | F45: 34.11111111 | G45: 42.77777778 | H45: 34 | I45: 34 | J45: 0
A48: Fuente: Departamento de Registro de Partidos Políticos y base de datos de nacimientos a noviembre 2021 del Tribunal Supremo de Elecciones.

Sheet 32
A3: CUADRO 32
A4: COSTA RICA: CANDIDATURAS INSCRITAS A DIPUTACIONES PROPIETARIAS, POR PROVINCIA Y SEXO
A5: SEGÚN POSICIÓN EN LA PAPELETA, ELECCIONES 6 DE FEBRERO 2022
A7: POSICIÓN | B7: COSTA RICA | E7: SAN JOSÉ | H7: ALAJUELA | K7: CARTAGO | N7: HEREDIA | Q7: GUANACASTE | T7: PUNTARENAS | W7: LIMÓN
B8: T | C8: H | D8: M | E8: T | F8: H | G8: M | H8: T | I8: H | J8: M | K8: T | L8: H | M8: M | N8: T | O8: H | P8: M | Q8: T | R8: H | S8: M | T8: T | U8: H | V8: M | W8: T | X8: H | Y8: M
A9: Total | B9: =SUM(B10:B28) -> 1402 | C9: =SUM(C10:C28) -> 712 | D9: 690 | E9: 472 | F9: 241 | G9: 231 | H9: 267 | I9: 136 | J9: 131 | K9: 177 | L9: 89 | M9: 88 | N9: 143 | O9: 71 | P9: 72 | Q9: 100 | R9: 50 | S9: 50 | T9: 118 | U9: 62 | V9: 56 | W9: 125 | X9: 63 | Y9: 62
A10: 1° Posición | B10: 186 | C10: 101 | D10: 85 | E10: 29 | F10: 20 | G10: 9 | H10: 26 | I10: 14 | J10: 12 | K10: 28 | L10: 14 | M10: 14 | N10: 25 | O10: 14 | P10: 11 | Q10: 26 | R10: 11 | S10: 15 | T10: 25 | U10: 14 | V10: 11 | W10: 27 | X10: 14 | Y10: 13
A11: 2° Posición | B11: 184 | C11: 85 | D11: 99 | E11: 28 | F11: 9 | G11: 19 | H11: 26 | I11: 12 | J11: 14 | K11: 28 | L11: 14 | M11: 14 | N11: 25 | O11: 11 | P11: 14 | Q11: 25 | R11: 15 | S11: 10 | T11: 25 | U11: 11 | V11: 14 | W11: 27 | X11: 13 | Y11: 14
A12: 3° Posición | B12: 182 | C12: 98 | D12: 84 | E12: 28 | F12: 19 | G12: 9 | H12: 26 | I12: 14 | J12: 12 | K12: 28 | L12: 14 | M12: 14 | N12: 25 | O12: 14 | P12: 11 | Q12: 25 | R12: 10 | S12: 15 | T12: 24 | U12: 14 | V12: 10 | W12: 26 | X12: 13 | Y12: 13
A13: 4° Posición | B13: 177 | C13: 81 | D13: 96 | E13: 28 | F13: 9 | G13: 19 | H13: 26 | I13: 12 | J13: 14 | K13: 28 | L13: 14 | M13: 14 | N13: 24 | O13: 10 | P13: 14 | Q13: 24 | R13: 14 | S13: 10 | T13: 23 | U13: 10 | V13: 13 | W13: 24 | X13: 12 | Y13: 12
A14: 5° Posición | B14: 143 | C14: 84 | D14: 59 | E14: 28 | F14: 19 | G14: 9 | H14: 25 | I14: 14 | J14: 11 | K14: 25 | L14: 13 | M14: 12 | N14: 23 | O14: 14 | P14: 9 | Q14: 0 | R14: 0 | S14: 0 | T14: 21 | U14: 13 | V14: 8 | W14: 21 | X14: 11 | Y14: 10
A15: 6° Posición | B15: 95 | C15: 37 | D15: 58 | E15: 27 | F15: 8 | G15: 19 | H15: 25 | I15: 11 | J15: 14 | K15: 22 | L15: 10 | M15: 12 | N15: 21 | O15: 8 | P15: 13 | Q15: 0 | R15: 0 | S15: 0 | T15: 0 | U15: 0 | V15: 0 | W15: 0 | X15: 0 | Y15: 0
A16: 7° Posición | B16: 69 | C16: 43 | D16: 26 | E16: 26 | F16: 19 | G16: 7 | H16: 25 | I16: 14 | J16: 11 | K16: 18 | L16: 10 | M16: 8 | N16: 0 | O16: 0 | P16: 0 | Q16: 0 | R16: 0 | S16: 0 | T16: 0 | U16: 0 | V16: 0 | W16: 0 | X16: 0 | Y16: 0
A17: 8° Posición | B17: 51 | C17: 18 | D17: 33 | E17: 26 | F17: 7 | G17: 19 | H17: 25 | I17: 11 | J17: 14 | K17: 0 | L17: 0 | M17: 0 | N17: 0 | O17: 0 | P17: 0 | Q17: 0 | R17: 0 | S17: 0 | T17: 0 | U17: 0 | V17: 0 | W17: 0 | X17: 0 | Y17: 0
A18: 9° Posición | B18: 49 | C18: 31 | D18: 18 | E18: 26 | F18: 19 | G18: 7 | H18: 23 | I18: 12 | J18: 11 | K18: 0 | L18: 0 | M18: 0 | N18: 0 | O18: 0 | P18: 0 | Q18: 0 | R18: 0 | S18: 0 | T18: 0 | U18: 0 | V18: 0 | W18: 0 | X18: 0 | Y18: 0
A19: 10° Posición | B19: 49 | C19: 18 | D19: 31 | E19: 26 | F19: 7 | G19: 19 | H19: 23 | I19: 11 | J19: 12 | K19: 0 | L19: 0 | M19: 0 | N19: 0 | O19: 0 | P19: 0 | Q19: 0 | R19: 0 | S19: 0 | T19: 0 | U19: 0 | V19: 0 | W19: 0 | X19: 0 | Y19: 0
A20: 11° Posición | B20: 43 | C20: 30 | D20: 13 | E20: 26 | F20: 19 | G20: 7 | H20: 17 | I20: 11 | J20: 6 | K20: 0 | L20: 0 | M20: 0 | N20: 0 | O20: 0 | P20: 0 | Q20: 0 | R20: 0 | S20: 0 | T20: 0 | U20: 0 | V20: 0 | W20: 0 | X20: 0 | Y20: 0
A21: 12° Posición | B21: 26 | C21: 7 | D21: 19 | E21: 26 | F21: 7 | G21: 19 | H21: 0 | I21: 0 | J21: 0 | K21: 0 | L21: 0 | M21: 0 | N21: 0 | O21: 0 | P21: 0 | Q21: 0 | R21: 0 | S21: 0 | T21: 0 | U21: 0 | V21: 0 | W21: 0 | X21: 0 | Y21: 0
A22: 13° Posición | B22: 26 | C22: 19 | D22: 7 | E22: 26 | F22: 19 | G22: 7 | H22: 0 | I22: 0 | J22: 0 | K22: 0 | L22: 0 | M22: 0 | N22: 0 | O22: 0 | P22: 0 | Q22: 0 | R22: 0 | S22: 0 | T22: 0 | U22: 0 | V22: 0 | W22: 0 | X22: 0 | Y22: 0
A23: 14° Posición | B23: 24 | C23: 6 | D23: 18 | E23: 24 | F23: 6 | G23: 18 | H23: 0 | I23: 0 | J23: 0 | K23: 0 | L23: 0 | M23: 0 | N23: 0 | O23: 0 | P23: 0 | Q23: 0 | R23: 0 | S23: 0 | T23: 0 | U23: 0 | V23: 0 | W23: 0 | X23: 0 | Y23: 0
A24: 15° Posición | B24: 24 | C24: 18 | D24: 6 | E24: 24 | F24: 18 | G24: 6 | H24: 0 | I24: 0 | J24: 0 | K24: 0 | L24: 0 | M24: 0 | N24: 0 | O24: 0 | P24: 0 | Q24: 0 | R24: 0 | S24: 0 | T24: 0 | U24: 0 | V24: 0 | W24: 0 | X24: 0 | Y24: 0
A25: 16° Posición | B25: 22 | C25: 6 | D25: 16 | E25: 22 | F25: 6 | G25: 16 | H25: 0 | I25: 0 | J25: 0 | K25: 0 | L25: 0 | M25: 0 | N25: 0 | O25: 0 | P25: 0 | Q25: 0 | R25: 0 | S25: 0 | T25: 0 | U25: 0 | V25: 0 | W25: 0 | X25: 0 | Y25: 0
A26: 17° Posición | B26: 21 | C26: 15 | D26: 6 | E26: 21 | F26: 15 | G26: 6 | H26: 0 | I26: 0 | J26: 0 | K26: 0 | L26: 0 | M26: 0 | N26: 0 | O26: 0 | P26: 0 | Q26: 0 | R26: 0 | S26: 0 | T26: 0 | U26: 0 | V26: 0 | W26: 0 | X26: 0 | Y26: 0
A27: 18° Posición | B27: 17 | C27: 6 | D27: 11 | E27: 17 | F27: 6 | G27: 11 | H27: 0 | I27: 0 | J27: 0 | K27: 0 | L27: 0 | M27: 0 | N27: 0 | O27: 0 | P27: 0 | Q27: 0 | R27: 0 | S27: 0 | T27: 0 | U27: 0 | V27: 0 | W27: 0 | X27: 0 | Y27: 0
A28: 19° Posición | B28: 14 | C28: 9 | D28: 5 | E28: 14 | F28: 9 | G28: 5 | H28: 0 | I28: 0 | J28: 0 | K28: 0 | L28: 0 | M28: 0 | N28: 0 | O28: 0 | P28: 0 | Q28: 0 | R28: 0 | S28: 0 | T28: 0 | U28: 0 | V28: 0 | W28: 0 | X28: 0 | Y28: 0
A30: Fuente: Departamento de Registro de Partidos Políticos del Tribunal Supremo de Elecciones.

Sheet 33
A2: CUADRO 33
A3: COSTA RICA: CANDIDATURAS INSCRITAS A DIPUTACIONES PROPIETARIAS, POR POSICIÓN EN LA PAPELETA Y SEXO
A4: SEGÚN PARTIDO POLÍTICO, ELECCIONES 6 DE FEBRERO 2022
A6: PARTIDO POLÍTICO | B6: Total | E6: 1° Posición | H6: 2° Posición | K6: 3° Posición | N6: 4° Posición | Q6: 5° Posición | T6: 6° Posición y más
B7: T | C7: H | D7: M | E7: T | F7: H | G7: M | H7: T | I7: H | J7: M | K7: T | L7: H | M7: M | N7: T | O7: H | P7: M | Q7: T | R7: H | S7: M | T7: T | U7: H | V7: M
A8: TOTAL | B8: =SUM(B9:B44) -> 1402 | C8: =SUM(C9:C44) -> 712 | D8: 690 | E8: 186 | F8: 101 | G8: 85 | H8: 184 | I8: 85 | J8: 99 | K8: 182 | L8: 98 | M8: 84 | N8: 177 | O8: 81 | P8: 96 | Q8: 143 | R8: 84 | S8: 59 | T8: 530 | U8: 263 | V8: 267
A9: ACCESIBILIDAD SIN EXCLUSIÓN | B9: 53 | C9: 27 | D9: 26 | E9: 7 | F9: 4 | G9: 3 | H9: 7 | I9: 3 | J9: 4 | K9: 7 | L9: 4 | M9: 3 | N9: 7 | O9: 3 | P9: 4 | Q9: 6 | R9: 4 | S9: 2 | T9: 19 | U9: 9 | V9: 10
A10: ACCIÓN CIUDADANA | B10: 54 | C10: 28 | D10: 26 | E10: 7 | F10: 3 | G10: 4 | H10: 7 | I10: 4 | J10: 3 | K10: 7 | L10: 3 | M10: 4 | N10: 7 | O10: 4 | P10: 3 | Q10: 6 | R10: 3 | S10: 3 | T10: 20 | U10: 11 | V10: 9
A11: ACTUEMOS YA | B11: 7 | C11: 3 | D11: 4 | E11: 1 | F11: 0 | G11: 1 | H11: 1 | I11: 1 | J11: 0 | K11: 1 | L11: 0 | M11: 1 | N11: 1 | O11: 1 | P11: 0 | Q11: 1 | R11: 0 | S11: 1 | T11: 2 | U11: 1 | V11: 1
A12: ALIANZA DEMÓCRATA CRISTIANA | B12: 31 | C12: 16 | D12: 15 | E12: 7 | F12: 4 | G12: 3 | H12: 6 | I12: 3 | J12: 3 | K12: 6 | L12: 3 | M12: 3 | N12: 4 | O12: 1 | P12: 3 | Q12: 4 | R12: 3 | S12: 1 | T12: 4 | U12: 2 | V12: 2
A13: ANTICORRUPCIÓN COSTARRICENSE | B13: 16 | C13: 8 | D13: 8 | E13: 1 | F13: 1 | G13: 0 | H13: 1 | I13: 0 | J13: 1 | K13: 1 | L13: 1 | M13: 0 | N13: 1 | O13: 0 | P13: 1 | Q13: 1 | R13: 1 | S13: 0 | T13: 11 | U13: 5 | V13: 6
A14: COSTA RICA JUSTA | B14: 57 | C14: 29 | D14: 28 | E14: 7 | F14: 4 | G14: 3 | H14: 7 | I14: 3 | J14: 4 | K14: 7 | L14: 4 | M14: 3 | N14: 7 | O14: 3 | P14: 4 | Q14: 6 | R14: 4 | S14: 2 | T14: 23 | U14: 11 | V14: 12
A15: DE LOS TRABAJADORES | B15: 49 | C15: 25 | D15: 24 | E15: 7 | F15: 4 | G15: 3 | H15: 7 | I15: 3 | J15: 4 | K15: 7 | L15: 4 | M15: 3 | N15: 6 | O15: 3 | P15: 3 | Q15: 3 | R15: 2 | S15: 1 | T15: 19 | U15: 9 | V15: 10
A16: ENCUENTRO NACIONAL | B16: 31 | C16: 17 | D16: 14 | E16: 7 | F16: 4 | G16: 3 | H16: 6 | I16: 3 | J16: 3 | K16: 6 | L16: 3 | M16: 3 | N16: 6 | O16: 3 | P16: 3 | Q16: 3 | R16: 2 | S16: 1 | T16: 3 | U16: 2 | V16: 1
A17: FRENTE AMPLIO | B17: 57 | C17: 28 | D17: 29 | E17: 7 | F17: 3 | G17: 4 | H17: 7 | I17: 4 | J17: 3 | K17: 7 | L17: 3 | M17: 4 | N17: 7 | O17: 4 | P17: 3 | Q17: 6 | R17: 3 | S17: 3 | T17: 23 | U17: 11 | V17: 12
A18: FUERZA NACIONAL | B18: 54 | C18: 28 | D18: 26 | E18: 7 | F18: 4 | G18: 3 | H18: 7 | I18: 3 | J18: 4 | K18: 7 | L18: 4 | M18: 3 | N18: 7 | O18: 3 | P18: 4 | Q18: 6 | R18: 4 | S18: 2 | T18: 20 | U18: 10 | V18: 10
A19: INTEGRACIÓN NACIONAL | B19: 51 | C19: 25 | D19: 26 | E19: 7 | F19: 4 | G19: 3 | H19: 7 | I19: 3 | J19: 4 | K19: 7 | L19: 4 | M19: 3 | N19: 7 | O19: 3 | P19: 4 | Q19: 5 | R19: 2 | S19: 3 | T19: 18 | U19: 9 | V19: 9
A20: IZQUIERDA COSTARRICENSE | B20: 5 | C20: 3 | D20: 2 | E20: 1 | F20: 1 | G20: 0 | H20: 1 | I20: 0 | J20: 1 | K20: 1 | L20: 1 | M20: 0 | N20: 1 | O20: 0 | P20: 1 | Q20: 1 | R20: 1 | S20: 0 | T20: 0 | U20: 0 | V20: 0
A21: JUSTICIA SOCIAL COSTARRICENSE | B21: 56 | C21: 28 | D21: 28 | E21: 7 | F21: 4 | G21: 3 | H21: 7 | I21: 3 | J21: 4 | K21: 7 | L21: 4 | M21: 3 | N21: 7 | O21: 3 | P21: 4 | Q21: 6 | R21: 3 | S21: 3 | T21: 22 | U21: 11 | V21: 11
A22: LIBERACIÓN NACIONAL | B22: 57 | C22: 29 | D22: 28 | E22: 7 | F22: 4 | G22: 3 | H22: 7 | I22: 3 | J22: 4 | K22: 7 | L22: 4 | M22: 3 | N22: 7 | O22: 3 | P22: 4 | Q22: 6 | R22: 3 | S22: 3 | T22: 23 | U22: 12 | V22: 11
A23: LIBERAL PROGRESISTA | B23: 54 | C23: 28 | D23: 26 | E23: 7 | F23: 4 | G23: 3 | H23: 7 | I23: 3 | J23: 4 | K23: 7 | L23: 4 | M23: 3 | N23: 7 | O23: 3 | P23: 4 | Q23: 5 | R23: 4 | S23: 1 | T23: 21 | U23: 10 | V23: 11
A24: MOVIMIENTO LIBERTARIO | B24: 51 | C24: 27 | D24: 24 | E24: 7 | F24: 4 | G24: 3 | H24: 7 | I24: 3 | J24: 4 | K24: 7 | L24: 4 | M24: 3 | N24: 7 | O24: 3 | P24: 4 | Q24: 6 | R24: 4 | S24: 2 | T24: 17 | U24: 9 | V24: 8
A25: MOVIMIENTO SOCIAL DEMÓCRATA COSTA | B25: 50 | C25: 25 | D25: 25 | E25: 7 | F25: 4 | G25: 3 | H25: 7 | I25: 3 | J25: 4 | K25: 7 | L25: 4 | M25: 3 | N25: 7 | O25: 3 | P25: 4 | Q25: 6 | R25: 3 | S25: 3 | T25: 16 | U25: 8 | V25: 8
A26: NUESTRO PUEBLO | B26: 57 | C26: 29 | D26: 28 | E26: 7 | F26: 3 | G26: 4 | H26: 7 | I26: 4 | J26: 3 | K26: 7 | L26: 3 | M26: 4 | N26: 7 | O26: 4 | P26: 3 | Q26: 6 | R26: 3 | S26: 3 | T26: 23 | U26: 12 | V26: 11
A27: NUEVA GENERACIÓN | B27: 56 | C27: 29 | D27: 27 | E27: 7 | F27: 4 | G27: 3 | H27: 7 | I27: 3 | J27: 4 | K27: 7 | L27: 4 | M27: 3 | N27: 7 | O27: 3 | P27: 4 | Q27: 5 | R27: 4 | S27: 1 | T27: 23 | U27: 11 | V27: 12
A28: NUEVA REPÚBLICA | B28: 55 | C28: 28 | D28: 27 | E28: 7 | F28: 4 | G28: 3 | H28: 7 | I28: 3 | J28: 4 | K28: 7 | L28: 4 | M28: 3 | N28: 6 | O28: 2 | P28: 4 | Q28: 6 | R28: 4 | S28: 2 | T28: 22 | U28: 11 | V28: 11
A29: NUEVO PARTIDO SOCIALISTA | B29: 5 | C29: 2 | D29: 3 | E29: 1 | F29: 0 | G29: 1 | H29: 1 | I29: 1 | J29: 0 | K29: 1 | L29: 0 | M29: 1 | N29: 1 | O29: 1 | P29: 0 | Q29: 1 | R29: 0 | S29: 1 | T29: 0 | U29: 0 | V29: 0
A30: NUEVO PARTIDO SOCIALISTA-CARTAGO | B30: 4 | C30: 2 | D30: 2 | E30: 1 | F30: 0 | G30: 1 | H30: 1 | I30: 1 | J30: 0 | K30: 1 | L30: 0 | M30: 1 | N30: 1 | O30: 1 | P30: 0 | Q30: 0 | R30: 0 | S30: 0 | T30: 0 | U30: 0 | V30: 0
A31: PROGRESO SOCIAL DEMOCRÁTICO | B31: 41 | C31: 20 | D31: 21 | E31: 7 | F31: 3 | G31: 4 | H31: 7 | I31: 4 | J31: 3 | K31: 6 | L31: 2 | M31: 4 | N31: 5 | O31: 4 | P31: 1 | Q31: 2 | R31: 0 | S31: 2 | T31: 14 | U31: 7 | V31: 7
A32: PUEBLO UNIDO | B32: 52 | C32: 27 | D32: 25 | E32: 7 | F32: 4 | G32: 3 | H32: 7 | I32: 3 | J32: 4 | K32: 6 | L32: 4 | M32: 2 | N32: 6 | O32: 2 | P32: 4 | Q32: 5 | R32: 4 | S32: 1 | T32: 21 | U32: 10 | V32: 11
A33: RECUPERANDO VALORES | B33: 5 | C33: 3 | D33: 2 | E33: 1 | F33: 1 | G33: 0 | H33: 1 | I33: 0 | J33: 1 | K33: 1 | L33: 1 | M33: 0 | N33: 1 | O33: 0 | P33: 1 | Q33: 1 | R33: 1 | S33: 0 | T33: 0 | U33: 0 | V33: 0
A34: RENOVACIÓN CARTAGO | B34: 6 | C34: 3 | D34: 3 | E34: 1 | F34: 1 | G34: 0 | H34: 1 | I34: 0 | J34: 1 | K34: 1 | L34: 1 | M34: 0 | N34: 1 | O34: 0 | P34: 1 | Q34: 1 | R34: 1 | S34: 0 | T34: 1 | U34: 0 | V34: 1
A35: REPUBLICANO SOCIAL CRISTIANO | B35: 56 | C35: 28 | D35: 28 | E35: 7 | F35: 4 | G35: 3 | H35: 7 | I35: 3 | J35: 4 | K35: 7 | L35: 4 | M35: 3 | N35: 7 | O35: 3 | P35: 4 | Q35: 6 | R35: 3 | S35: 3 | T35: 22 | U35: 11 | V35: 11
A36: RESTAURACIÓN NACIONAL | B36: 54 | C36: 28 | D36: 26 | E36: 7 | F36: 4 | G36: 3 | H36: 7 | I36: 3 | J36: 4 | K36: 7 | L36: 4 | M36: 3 | N36: 7 | O36: 3 | P36: 4 | Q36: 6 | R36: 3 | S36: 3 | T36: 20 | U36: 11 | V36: 9
A37: SOMOS | B37: 11 | C37: 6 | D37: 5 | E37: 1 | F37: 1 | G37: 0 | H37: 1 | I37: 0 | J37: 1 | K37: 1 | L37: 1 | M37: 0 | N37: 1 | O37: 0 | P37: 1 | Q37: 1 | R37: 1 | S37: 0 | T37: 6 | U37: 3 | V37: 3
A38: UNIDAD SOCIAL CRISTIANA | B38: 57 | C38: 29 | D38: 28 | E38: 7 | F38: 4 | G38: 3 | H38: 7 | I38: 3 | J38: 4 | K38: 7 | L38: 4 | M38: 3 | N38: 7 | O38: 3 | P38: 4 | Q38: 6 | R38: 4 | S38: 2 | T38: 23 | U38: 11 | V38: 12
A39: UNIDOS PODEMOS | B39: 57 | C39: 29 | D39: 28 | E39: 7 | F39: 4 | G39: 3 | H39: 7 | I39: 3 | J39: 4 | K39: 7 | L39: 4 | M39: 3 | N39: 7 | O39: 3 | P39: 4 | Q39: 6 | R39: 4 | S39: 2 | T39: 23 | U39: 11 | V39: 12
A40: UNIDOS POR COSTA RICA | B40: 19 | C40: 9 | D40: 10 | E40: 1 | F40: 0 | G40: 1 | H40: 1 | I40: 1 | J40: 0 | K40: 1 | L40: 0 | M40: 1 | N40: 1 | O40: 1 | P40: 0 | Q40: 1 | R40: 0 | S40: 1 | T40: 14 | U40: 7 | V40: 7
A41: UNIÓN COSTARRICENSE DEMOCRÁTICA | B41: 55 | C41: 27 | D41: 28 | E41: 7 | F41: 4 | G41: 3 | H41: 7 | I41: 3 | J41: 4 | K41: 7 | L41: 4 | M41: 3 | N41: 7 | O41: 3 | P41: 4 | Q41: 6 | R41: 3 | S41: 3 | T41: 21 | U41: 10 | V41: 11
A42: UNIÓN GUANACASTECA | B42: 4 | C42: 2 | D42: 2 | E42: 1 | F42: 0 | G42: 1 | H42: 1 | I42: 1 | J42: 0 | K42: 1 | L42: 0 | M42: 1 | N42: 1 | O42: 1 | P42: 0 | Q42: 0 | R42: 0 | S42: 0 | T42: 0 | U42: 0 | V42: 0
A43: UNIÓN LIBERAL | B43: 57 | C43: 28 | D43: 29 | E43: 7 | F43: 4 | G43: 3 | H43: 7 | I43: 3 | J43: 4 | K43: 7 | L43: 4 | M43: 3 | N43: 7 | O43: 3 | P43: 4 | Q43: 6 | R43: 3 | S43: 3 | T43: 23 | U43: 11 | V43: 12
A44: VAMOS | B44: 18 | C44: 9 | D44: 9 | E44: 1 | F44: 0 | G44: 1 | H44: 1 | I44: 1 | J44: 0 | K44: 1 | L44: 0 | M44: 1 | N44: 1 | O44: 1 | P44: 0 | Q44: 1 | R44: 0 | S44: 1 | T44: 13 | U44: 7 | V44: 6
A47: Fuente: Departamento de Registro de Partidos Políticos del Tribunal Supremo de Elecciones.

Sheet 34
A2: CUADRO 34
A3: COSTA RICA: CANDIDATURAS A DIPUTACIONES EN PROPIEDAD Y SUPLENCIA, POR SEXO
A4: SEGÚN PROVINCIA, ELECCIONES 6 DE FEBRERO DE 2022
A5: (CIFRAS ABSOLUTAS Y RELATIVAS)
A7: PROVINCIA | B7: TOTAL | C7: DIPUTACIONES
C8: HOMBRES | E8: MUJERES
C9: ABS | D9: % | E9: ABS | F9: %
A11: COSTA RICA | B11: 1614 | C11: 820 | D11: 50.80545229 | E11: 794 | F11: 49.19454771
A12: SAN JOSÉ | B12: 513 | C12: 263 | D12: 51.26705653 | E12: 250 | F12: 48.73294347
A13: ALAJUELA | B13: 303 | C13: 154 | D13: 50.82508251 | E13: 149 | F13: 49.17491749
A14: CARTAGO | B14: 204 | C14: 103 | D14: 50.49019608 | E14: 101 | F14: 49.50980392
A15: HEREDIA | B15: 165 | C15: 82 | D15: 49.6969697 | E15: 83 | F15: 50.3030303
A16: GUANACASTE | B16: 126 | C16: 63 | D16: 50 | E16: 63 | F16: 50
A17: PUNTARENAS | B17: 148 | C17: 78 | D17: 52.7027027 | E17: 70 | F17: 47.2972973
A18: LIMÓN | B18: 155 | C18: 77 | D18: 49.67741935 | E18: 78 | F18: 50.32258065
A19: EN PROPIEDAD | B19: 1402 | C19: 712 | D19: 50.78459344 | E19: 690 | F19: 49.21540656
A20: SAN JOSÉ | B20: 472 | C20: 241 | D20: 51.05932203 | E20: 231 | F20: 48.94067797
A21: ALAJUELA | B21: 267 | C21: 136 | D21: 50.93632959 | E21: 131 | F21: 49.06367041
A22: CARTAGO | B22: 177 | C22: 89 | D22: 50.28248588 | E22: 88 | F22: 49.71751412
A23: HEREDIA | B23: 143 | C23: 71 | D23: 49.65034965 | E23: 72 | F23: 50.34965035
A24: GUANACASTE | B24: 100 | C24: 50 | D24: 50 | E24: 50 | F24: 50
A25: PUNTARENAS | B25: 118 | C25: 62 | D25: 52.54237288 | E25: 56 | F25: 47.45762712
A26: LIMÓN | B26: 125 | C26: 63 | D26: 50.4 | E26: 62 | F26: 49.6
A27: EN SUPLENCIA | B27: 212 | C27: 108 | D27: 50.94339623 | E27: 104 | F27: 49.05660377
A28: SAN JOSÉ | B28: 41 | C28: 22 | D28: 53.65853659 | E28: 19 | F28: 46.34146341
A29: ALAJUELA | B29: 36 | C29: 18 | D29: 50 | E29: 18 | F29: 50
A30: CARTAGO | B30: 27 | C30: 14 | D30: 51.85185185 | E30: 13 | F30: 48.14814815
A31: HEREDIA | B31: 22 | C31: 11 | D31: 50 | E31: 11 | F31: 50
A32: GUANACASTE | B32: 26 | C32: 13 | D32: 50 | E32: 13 | F32: 50
A33: PUNTARENAS | B33: 30 | C33: 16 | D33: 53.33333333 | E33: 14 | F33: 46.66666667
A34: LIMÓN | B34: 30 | C34: 14 | D34: 46.66666667 | E34: 16 | F34: 53.33333333
A37: Fuente: Departamento de Registro de Partidos Políticos del Tribunal Supremo de Elecciones.

Sheet G5
I4: CANDIDATURAS | J4: HOMBRES | K4: MUJERES
I8: HEREDIA | J8: 49.65034965 | K8: 50.34965035
I9: GUANACASTE | J9: 50 | K9: 50
I10: CARTAGO | J10: 50.28248588 | K10: 49.71751412
I11: LIMÓN | J11: 50.4 | K11: 49.6
I12: ALAJUELA | J12: 50.93632959 | K12: 49.06367041
I13: SAN JOSÉ | J13: 51.05932203 | K13: 48.94067797
I14: PUNTARENAS | J14: 52.54237288 | K14: 47.45762712
A42: Fuente: Cuadro 32.

Sheet 35
A2: CUADRO 35
A3: COSTA RICA: CANDIDATURAS INSCRITAS A DIPUTACIONES
A4: POR AÑO DE ELECCIÓN, SEGÚN PROVINCIA
A5: ELECCIONES GENERALES 2006 - 2022
A7: PROVINCIA | B7: 2006 | C7: 2010 | D7: 2014 | E7: 2018 | F7: 2022
A9: COSTA RICA | B9: =SUM(B11:B17) -> 1167 | C9: =SUM(C11:C17) -> 789 | D9: =SUM(D11:D17) -> 1052 | E9: =SUM(E11:E17) -> 1048 | F9: =SUM(F11:F17) -> 1614
A11: SAN JOSÉ | B11: 425 | C11: 274 | D11: 356 | E11: 415 | F11: =+'34'!B12 -> 513
A12: ALAJUELA | B12: 209 | C12: 153 | D12: 182 | E12: 167 | F12: =+'34'!B13 -> 303
A13: CARTAGO | B13: 162 | C13: 106 | D13: 134 | E13: 118 | F13: =+'34'!B14 -> 204
A14: HEREDIA | B14: 98 | C14: 70 | D14: 110 | E14: 97 | F14: =+'34'!B15 -> 165
A15: GUANACASTE | B15: 84 | C15: 53 | D15: 75 | E15: 74 | F15: =+'34'!B16 -> 126
A16: PUNTARENAS | B16: 91 | C16: 63 | D16: 105 | E16: 84 | F16: =+'34'!B17 -> 148
A17: LIMÓN | B17: 98 | C17: 70 | D17: 90 | E17: 93 | F17: =+'34'!B18 -> 155
A19: Fuente: Departamento de Registro de Partidos Políticos del Tribunal Supremo de Elecciones.

Sheet 36
A2: CUADRO 36
A3: COSTA RICA: CANDIDATURAS INSCRITAS A DIPUTACIONES POR AÑO DE ELECCIÓN, SEGÚN PARTIDO POLÍTICO
A4: ELECCIONES GENERALES 2006 - 2022
A6: PARTIDO POLÍTICO | B6: 2006 | C6: 2010 | D6: 2014 | E6: 2018 | F6: 2022
A7: COSTA RICA | B7: =SUM(B8:B79) -> 1167 | C7: =SUM(C8:C79) -> 789 | D7: =SUM(D8:D79) -> 1052 | E7: =SUM(E8:E79) -> 1048 | F7: =SUM(F8:F79) -> 1614
A8: ACCESIBILIDAD SIN EXCLUSIÓN | B8: 25 | C8: 75 | D8: 73 | E8: 75 | F8: =_xlfn.IFNA(VLOOKUP(A8,'30'!$A$12:$B$47,2,0),0) -> 64
A9: ACCIÓN CIUDADANA | B9: 75 | C9: 74 | D9: 75 | E9: 71 | F9: =_xlfn.IFNA(VLOOKUP(A9,'30'!$A$12:$B$47,2,0),0) -> 56
A10: ACCIÓN DEMOCRÁTICA ALAJUELENSE | B10: 14 | C10: 0 | D10: 0 | E10: 0 | F10: =_xlfn.IFNA(VLOOKUP(A10,'30'!$A$12:$B$47,2,0),0) -> 0
A11: ACCIÓN LABORISTA AGRÍCOLA | B11: 14 | C11: 0 | D11: 0 | E11: 0 | F11: =_xlfn.IFNA(VLOOKUP(A11,'30'!$A$12:$B$47,2,0),0) -> 0
A12: ACTUEMOS YA | B12: 0 | C12: 0 | D12: 0 | E12: 9 | F12: =_xlfn.IFNA(VLOOKUP(A12,'30'!$A$12:$B$47,2,0),0) -> 9
A13: ALIANZA DEMÓCRATA CRISTIANA | B13: 0 | C13: 0 | D13: 9 | E13: 38 | F13: =_xlfn.IFNA(VLOOKUP(A13,'30'!$A$12:$B$47,2,0),0) -> 37
A14: ALIANZA DEMOCRÁTICA NACIONALISTA | B14: 75 | C14: 0 | D14: 0 | E14: 0 | F14: =_xlfn.IFNA(VLOOKUP(A14,'30'!$A$12:$B$47,2,0),0) -> 0
A15: ALIANZA MAYOR | B15: 0 | C15: 25 | D15: 0 | E15: 0 | F15: =_xlfn.IFNA(VLOOKUP(A15,'30'!$A$12:$B$47,2,0),0) -> 0
A16: ALIANZA PATRIÓTICA | B16: 0 | C16: 73 | D16: 7 | E16: 0 | F16: =_xlfn.IFNA(VLOOKUP(A16,'30'!$A$12:$B$47,2,0),0) -> 0
A17: ANTICORRUPCIÓN COSTARRICENSE | B17: 0 | C17: 0 | D17: 0 | E17: 0 | F17: =_xlfn.IFNA(VLOOKUP(A17,'30'!$A$12:$B$47,2,0),0) -> 16
A18: AUTÉNTICO HEREDIANO | B18: 7 | C18: 0 | D18: 0 | E18: 0 | F18: =_xlfn.IFNA(VLOOKUP(A18,'30'!$A$12:$B$47,2,0),0) -> 0
A19: AUTÉNTICO LIMONENSE | B19: 0 | C19: 0 | D19: 0 | E19: 7 | F19: =_xlfn.IFNA(VLOOKUP(A19,'30'!$A$12:$B$47,2,0),0) -> 0
A20: AUTÉNTICO TURRIALBEÑO CARTAGINÉS | B20: 9 | C20: 0 | D20: 0 | E20: 0 | F20: =_xlfn.IFNA(VLOOKUP(A20,'30'!$A$12:$B$47,2,0),0) -> 0
A21: AVANCE NACIONAL | B21: 0 | C21: 0 | D21: 74 | E21: 0 | F21: =_xlfn.IFNA(VLOOKUP(A21,'30'!$A$12:$B$47,2,0),0) -> 0
A22: COALICIÓN IZQUIERDA UNIDA | B22: 75 | C22: 0 | D22: 0 | E22: 0 | F22: =_xlfn.IFNA(VLOOKUP(A22,'30'!$A$12:$B$47,2,0),0) -> 0
A23: COMUNAL UNIDO | B23: 0 | C23: 0 | D23: 0 | E23: 24 | F23: =_xlfn.IFNA(VLOOKUP(A23,'30'!$A$12:$B$47,2,0),0) -> 0
A24: COSTA RICA JUSTA | B24: 0 | C24: 0 | D24: 0 | E24: 0 | F24: =_xlfn.IFNA(VLOOKUP(A24,'30'!$A$12:$B$47,2,0),0) -> 75
A25: DE LOS TRABAJADORES | B25: 0 | C25: 0 | D25: 74 | E25: 40 | F25: =_xlfn.IFNA(VLOOKUP(A25,'30'!$A$12:$B$47,2,0),0) -> 49
A26: DE LOS TRANSPORTISTAS | B26: 0 | C26: 0 | D26: 24 | E26: 24 | F26: =_xlfn.IFNA(VLOOKUP(A26,'30'!$A$12:$B$47,2,0),0) -> 0
A27: ENCUENTRO NACIONAL | B27: 0 | C27: 0 | D27: 0 | E27: 0 | F27: =_xlfn.IFNA(VLOOKUP(A27,'30'!$A$12:$B$47,2,0),0) -> 32
A28: FRENTE AMPLIO | B28: 25 | C28: 74 | D28: 75 | E28: 73 | F28: =_xlfn.IFNA(VLOOKUP(A28,'30'!$A$12:$B$47,2,0),0) -> 74
A29: FUERZA AGRARIA DE LOS CARTAGINESES | B29: 9 | C29: 0 | D29: 0 | E29: 0 | F29: =_xlfn.IFNA(VLOOKUP(A29,'30'!$A$12:$B$47,2,0),0) -> 0
A30: FUERZA DEMOCRÁTICA | B30: 74 | C30: 0 | D30: 0 | E30: 0 | F30: =_xlfn.IFNA(VLOOKUP(A30,'30'!$A$12:$B$47,2,0),0) -> 0
A31: FUERZA FAMILIAR ALAJUELENSE | B31: 0 | C31: 14 | D31: 0 | E31: 0 | F31: =_xlfn.IFNA(VLOOKUP(A31,'30'!$A$12:$B$47,2,0),0) -> 0
A32: FUERZA NACIONAL | B32: 0 | C32: 0 | D32: 0 | E32: 0 | F32: =_xlfn.IFNA(VLOOKUP(A32,'30'!$A$12:$B$47,2,0),0) -> 61
A33: FUERZAS UNIDAS PARA EL CAMBIO | B33: 0 | C33: 0 | D33: 0 | E33: 20 | F33: =_xlfn.IFNA(VLOOKUP(A33,'30'!$A$12:$B$47,2,0),0) -> 0
A34: GUANACASTE INDEPENDIENTE | B34: 6 | C34: 0 | D34: 0 | E34: 0 | F34: =_xlfn.IFNA(VLOOKUP(A34,'30'!$A$12:$B$47,2,0),0) -> 0
A35: INTEGRACIÓN NACIONAL | B35: 75 | C35: 74 | D35: 69 | E35: 73 | F35: =_xlfn.IFNA(VLOOKUP(A35,'30'!$A$12:$B$47,2,0),0) -> 57
A36: INTEGRACIÓN PROVINCIAL TRES | B36: 9 | C36: 0 | D36: 0 | E36: 0 | F36: =_xlfn.IFNA(VLOOKUP(A36,'30'!$A$12:$B$47,2,0),0) -> 0
A37: IZQUIERDA COSTARRICENSE | B37: 0 | C37: 0 | D37: 0 | E37: 0 | F37: =_xlfn.IFNA(VLOOKUP(A37,'30'!$A$12:$B$47,2,0),0) -> 5
A38: JUSTICIA SOCIAL COSTARRICENSE | B38: 0 | C38: 0 | D38: 0 | E38: 0 | F38: =_xlfn.IFNA(VLOOKUP(A38,'30'!$A$12:$B$47,2,0),0) -> 72
A39: LIBERACIÓN NACIONAL | B39: 75 | C39: 75 | D39: 75 | E39: 74 | F39: =_xlfn.IFNA(VLOOKUP(A39,'30'!$A$12:$B$47,2,0),0) -> 75
A40: LIBERAL PROGRESISTA | B40: 0 | C40: 0 | D40: 0 | E40: 6 | F40: =_xlfn.IFNA(VLOOKUP(A40,'30'!$A$12:$B$47,2,0),0) -> 54
A41: MOVIMIENTO DE TRABAJADORES Y CAMPESINOS | B41: 7 | C41: 7 | D41: 0 | E41: 0 | F41: =_xlfn.IFNA(VLOOKUP(A41,'30'!$A$12:$B$47,2,0),0) -> 0
A42: MOVIMIENTO LIBERTARIO | B42: 75 | C42: 75 | D42: 74 | E42: 75 | F42: =_xlfn.IFNA(VLOOKUP(A42,'30'!$A$12:$B$47,2,0),0) -> 60
A43: MOVIMIENTO SOCIAL DEMÓCRATA COSTARRICENSE | B43: 0 | C43: 0 | D43: 0 | E43: 0 | F43: =_xlfn.IFNA(VLOOKUP(A43,'30'!$A$12:$B$47,2,0),0) -> 55
A44: NUESTRO PUEBLO | B44: 0 | C44: 0 | D44: 0 | E44: 0 | F44: =_xlfn.IFNA(VLOOKUP(A44,'30'!$A$12:$B$47,2,0),0) -> 57
A45: NUEVA GENERACIÓN | B45: 0 | C45: 0 | D45: 75 | E45: 70 | F45: =_xlfn.IFNA(VLOOKUP(A45,'30'!$A$12:$B$47,2,0),0) -> 74
A46: NUEVA LIGA FEMINISTA | B46: 25 | C46: 0 | D46: 0 | E46: 0 | F46: =_xlfn.IFNA(VLOOKUP(A46,'30'!$A$12:$B$47,2,0),0) -> 0
A47: NUEVA REPÚBLICA | B47: 0 | C47: 0 | D47: 0 | E47: 0 | F47: =_xlfn.IFNA(VLOOKUP(A47,'30'!$A$12:$B$47,2,0),0) -> 68
A48: NUEVO PARTIDO SOCIALISTA | B48: 0 | C48: 0 | D48: 8 | E48: 8 | F48: =_xlfn.IFNA(VLOOKUP(A48,'30'!$A$12:$B$47,2,0),0) -> 5
A49: NUEVO PARTIDO SOCIALISTA-CARTAGO | B49: 0 | C49: 0 | D49: 0 | E49: 0 | F49: =_xlfn.IFNA(VLOOKUP(A49,'30'!$A$12:$B$47,2,0),0) -> 4
A50: PATRIA NUEVA | B50: 0 | C50: 0 | D50: 69 | E50: 0 | F50: =_xlfn.IFNA(VLOOKUP(A50,'30'!$A$12:$B$47,2,0),0) -> 0
A51: PATRIA PRIMERO | B51: 75 | C51: 0 | D51: 0 | E51: 0 | F51: =_xlfn.IFNA(VLOOKUP(A51,'30'!$A$12:$B$47,2,0),0) -> 0
A52: PATRIA, IGUALDAD Y DEMOCRACIA | B52: 0 | C52: 0 | D52: 24 | E52: 22 | F52: =_xlfn.IFNA(VLOOKUP(A52,'30'!$A$12:$B$47,2,0),0) -> 0
A53: PATRIA, IGUALDAD Y DEMOCRACIA DE PUNTARENAS | B53: 0 | C53: 0 | D53: 7 | E53: 0 | F53: =_xlfn.IFNA(VLOOKUP(A53,'30'!$A$12:$B$47,2,0),0) -> 0
A54: PROGRESO SOCIAL DEMOCRÁTICO | B54: 0 | C54: 0 | D54: 0 | E54: 0 | F54: =_xlfn.IFNA(VLOOKUP(A54,'30'!$A$12:$B$47,2,0),0) -> 47
A55: PUEBLO UNIDO | B55: 0 | C55: 0 | D55: 0 | E55: 0 | F55: =_xlfn.IFNA(VLOOKUP(A55,'30'!$A$12:$B$47,2,0),0) -> 55
A56: RECUPERANDO VALORES | B56: 0 | C56: 0 | D56: 0 | E56: 5 | F56: =_xlfn.IFNA(VLOOKUP(A56,'30'!$A$12:$B$47,2,0),0) -> 7
A57: RENOVACIÓN CARTAGO | B57: 0 | C57: 0 | D57: 0 | E57: 0 | F57: =_xlfn.IFNA(VLOOKUP(A57,'30'!$A$12:$B$47,2,0),0) -> 6
A58: RENOVACIÓN COSTARRICENSE | B58: 75 | C58: 75 | D58: 75 | E58: 74 | F58: =_xlfn.IFNA(VLOOKUP(A58,'30'!$A$12:$B$47,2,0),0) -> 0
A59: REPUBLICANO SOCIAL CRISTIANO | B59: 0 | C59: 0 | D59: 0 | E59: 72 | F59: =_xlfn.IFNA(VLOOKUP(A59,'30'!$A$12:$B$47,2,0),0) -> 67
A60: RESTAURACIÓN ALAJUELENSE | B60: 0 | C60: 14 | D60: 0 | E60: 0 | F60: =_xlfn.IFNA(VLOOKUP(A60,'30'!$A$12:$B$47,2,0),0) -> 0
A61: RESTAURACIÓN HEREDIANA | B61: 0 | C61: 7 | D61: 0 | E61: 0 | F61: =_xlfn.IFNA(VLOOKUP(A61,'30'!$A$12:$B$47,2,0),0) -> 0
A62: RESTAURACIÓN NACIONAL | B62: 25 | C62: 25 | D62: 74 | E62: 70 | F62: =_xlfn.IFNA(VLOOKUP(A62,'30'!$A$12:$B$47,2,0),0) -> 58
A63: SOMOS | B63: 0 | C63: 0 | D63: 0 | E63: 0 | F63: =_xlfn.IFNA(VLOOKUP(A63,'30'!$A$12:$B$47,2,0),0) -> 14
A64: TODOS | B64: 0 | C64: 0 | D64: 0 | E64: 22 | F64: =_xlfn.IFNA(VLOOKUP(A64,'30'!$A$12:$B$47,2,0),0) -> 0
A65: TRANSPARENCIA CARTAGINÉS | B65: 0 | C65: 9 | D65: 0 | E65: 0 | F65: =_xlfn.IFNA(VLOOKUP(A65,'30'!$A$12:$B$47,2,0),0) -> 0
A66: UNIDAD SOCIAL CRISTIANA | B66: 75 | C66: 75 | D66: 75 | E66: 66 | F66: =_xlfn.IFNA(VLOOKUP(A66,'30'!$A$12:$B$47,2,0),0) -> 75
A67: UNIDOS PODEMOS | B67: 0 | C67: 0 | D67: 0 | E67: 0 | F67: =_xlfn.IFNA(VLOOKUP(A67,'30'!$A$12:$B$47,2,0),0) -> 57
A68: UNIDOS POR COSTA RICA | B68: 0 | C68: 0 | D68: 0 | E68: 0 | F68: =_xlfn.IFNA(VLOOKUP(A68,'30'!$A$12:$B$47,2,0),0) -> 20
A69: UNIÓN COSTARRICENSE DEMOCRÁTICA | B69: 0 | C69: 0 | D69: 0 | E69: 0 | F69: =_xlfn.IFNA(VLOOKUP(A69,'30'!$A$12:$B$47,2,0),0) -> 55
A70: UNIÓN AGRÍCOLA CARTAGINÉS | B70: 9 | C70: 9 | D70: 0 | E70: 0 | F70: =_xlfn.IFNA(VLOOKUP(A70,'30'!$A$12:$B$47,2,0),0) -> 0
A71: UNIÓN GUANACASTECA | B71: 0 | C71: 0 | D71: 0 | E71: 6 | F71: =_xlfn.IFNA(VLOOKUP(A71,'30'!$A$12:$B$47,2,0),0) -> 6
A72: UNIÓN LIBERAL | B72: 0 | C72: 0 | D72: 0 | E72: 0 | F72: =_xlfn.IFNA(VLOOKUP(A72,'30'!$A$12:$B$47,2,0),0) -> 69
A73: UNIÓN NACIONAL | B73: 75 | C73: 0 | D73: 0 | E73: 0 | F73: =_xlfn.IFNA(VLOOKUP(A73,'30'!$A$12:$B$47,2,0),0) -> 0
A74: UNIÓN PARA EL CAMBIO | B74: 75 | C74: 0 | D74: 0 | E74: 0 | F74: =_xlfn.IFNA(VLOOKUP(A74,'30'!$A$12:$B$47,2,0),0) -> 0
A75: UNIÓN PATRIÓTICA | B75: 75 | C75: 0 | D75: 0 | E75: 0 | F75: =_xlfn.IFNA(VLOOKUP(A75,'30'!$A$12:$B$47,2,0),0) -> 0
A76: VAMOS | B76: 0 | C76: 0 | D76: 0 | E76: 24 | F76: =_xlfn.IFNA(VLOOKUP(A76,'30'!$A$12:$B$47,2,0),0) -> 19
A77: VERDE | B77: 0 | C77: 0 | D77: 9 | E77: 0 | F77: =_xlfn.IFNA(VLOOKUP(A77,'30'!$A$12:$B$47,2,0),0) -> 0
A78: VERDE ECOLOGISTA | B78: 9 | C78: 9 | D78: 0 | E78: 0 | F78: =_xlfn.IFNA(VLOOKUP(A78,'30'!$A$12:$B$47,2,0),0) -> 0
A79: VIVA PUNTARENAS | B79: 0 | C79: 0 | D79: 7 | E79: 0 | F79: =_xlfn.IFNA(VLOOKUP(A79,'30'!$A$12:$B$47,2,0),0) -> 0
A80: Fuente: Departamento de Registro de Partidos Políticos del Tribunal Supremo de Elecciones.
